Body Name,Body,Service Label,Service Code,CIPFA Detailed Expenditure Type,CIPFA Detailed Expenditure Code,Date,Transaction Number,Net Amount,Supplier Name
Nottinghamshire County Council,1111/1001,Children and Young People,CYP,Employee Related,ABA,06/02/2012,11-00946,263,Sutton Cent Comm Coll
Nottinghamshire County Council,1111/1001,Children and Young People,CYP,Employee Related,ABA,07/02/2012,11-01330,500,Serco Ltd
Nottinghamshire County Council,1111/1001,Children and Young People,CYP,Employee Related,ABA,09/02/2012,11-01712,600,Fountaindale Special School
Nottinghamshire County Council,1111/1001,Children and Young People,CYP,Employee Related,ABA,17/02/2012,11-02214,897.4,The Dukeries College
Nottinghamshire County Council,1111/1001,Children and Young People,CYP,Employee Related,ABA,21/02/2012,11-03280,1380,In Trac Training & Consultancy Ltd
Nottinghamshire County Council,1111/1001,Children and Young People,CYP,Employee Related,ABA,21/02/2012,11-03281,1705.2,In Trac Training & Consultancy Ltd
Nottinghamshire County Council,1111/1001,Children and Young People,CYP,Premises Related,BAA,13/02/2012,11-02201,768,Otis Ltd
Nottinghamshire County Council,1111/1001,Children and Young People,CYP,Premises Related,BAA,17/02/2012,11-02936,4123.17,Instatherm Combustion Services Ltd
Nottinghamshire County Council,1111/1001,Children and Young People,CYP,Premises Related,BAA,20/02/2012,11-03055,500,Ian Rawlins Joinery Services Ltd
Nottinghamshire County Council,1111/1001,Children and Young People,CYP,Premises Related,BAA,22/02/2012,11-03361,608.15,Wilson Electrics Ltd
Nottinghamshire County Council,1111/1001,Children and Young People,CYP,Premises Related,BAA,23/02/2012,11-07326,2873,Slack & Co Floorcoverings
Nottinghamshire County Council,1111/1001,Children and Young People,CYP,Premises Related,BCA,06/02/2012,11-00946,603.17, Sutton Cent Comm Coll - DO NOT USE
Nottinghamshire County Council,1111/1001,Children and Young People,CYP,Premises Related,BCA,08/02/2012,11-00202,469.65,The Dukeries College
Nottinghamshire County Council,1111/1001,Children and Young People,CYP,Premises Related,BCA,09/02/2012,11-01692,945,Mansfield District Council
Nottinghamshire County Council,1111/1001,Children and Young People,CYP,Premises Related,BCA,14/02/2012,11-02415,2091.51,N Power
Nottinghamshire County Council,1111/1001,Children and Young People,CYP,Premises Related,BCA,24/02/2012,11-03818,2047.08,Emo Oil Ltd
Nottinghamshire County Council,1111/1001,Children and Young People,CYP,Premises Related,BCA,24/02/2012,11-07053,1295,Forever Fuels Ltd
Nottinghamshire County Council,1111/1001,Children and Young People,CYP,Premises Related,BCA,29/02/2012,11-06938,7864.22,Corona Energy Retail Limited
Nottinghamshire County Council,1111/1001,Children and Young People,CYP,Premises Related,BCA,29/02/2012,11-06939,6324.66,Corona Energy Retail Limited
Nottinghamshire County Council,1111/1001,Children and Young People,CYP,Premises Related,BCA,29/02/2012,11-06940,6516.37,Corona Energy Retail Limited
Nottinghamshire County Council,1111/1001,Children and Young People,CYP,Premises Related,BCA,29/02/2012,11-06941,6848.23,Corona Energy Retail Limited
Nottinghamshire County Council,1111/1001,Children and Young People,CYP,Premises Related,BDA,01/02/2012,11-00345,664.4,Mansfield District Council
Nottinghamshire County Council,1111/1001,Children and Young People,CYP,Premises Related,BDA,03/02/2012,11-00902,2200,Horizon Social Housing Ltd
Nottinghamshire County Council,1111/1001,Children and Young People,CYP,Premises Related,BDA,06/02/2012,11-00924,2200,Horizon Social Housing Ltd
Nottinghamshire County Council,1111/1001,Children and Young People,CYP,Premises Related,BDA,07/02/2012,11-01329,2275,The Derbyshire Hotel
Nottinghamshire County Council,1111/1001,Children and Young People,CYP,Premises Related,BDA,07/02/2012,11-01335,790,Leacan 14 Ltd
Nottinghamshire County Council,1111/1001,Children and Young People,CYP,Premises Related,BDA,08/02/2012,11-01672,6850,Edge Hill Enterprises Ltd
Nottinghamshire County Council,1111/1001,Children and Young People,CYP,Premises Related,BDA,08/02/2012,11-01674,509.5,Fischer Education Project Ltd Cowbr
Nottinghamshire County Council,1111/1001,Children and Young People,CYP,Premises Related,BDA,10/02/2012,11-02041,2200,Horizon Social Housing Ltd
Nottinghamshire County Council,1111/1001,Children and Young People,CYP,Premises Related,BDA,13/02/2012,11-02173,4580,Fischer Education Project Ltd Cowbr
Nottinghamshire County Council,1111/1001,Children and Young People,CYP,Premises Related,BDA,15/02/2012,11-02658,7571,Sherwood Forest Hosp Nhs Trust
Nottinghamshire County Council,1111/1001,Children and Young People,CYP,Premises Related,BDA,17/02/2012,11-02214,27305.29,The Dukeries College
Nottinghamshire County Council,1111/1001,Children and Young People,CYP,Premises Related,BDA,17/02/2012,11-02925,2850,The Derbyshire Hotel
Nottinghamshire County Council,1111/1001,Children and Young People,CYP,Premises Related,BDA,17/02/2012,11-02926,1633.33,The Derbyshire Hotel
Nottinghamshire County Council,1111/1001,Children and Young People,CYP,Premises Related,BDA,17/02/2012,11-02927,568.1,Notts Enterprises Ltd
Nottinghamshire County Council,1111/1001,Children and Young People,CYP,Premises Related,BDA,17/02/2012,11-02930,1214.25,The Derbyshire Hotel
Nottinghamshire County Council,1111/1001,Children and Young People,CYP,Premises Related,BDA,17/02/2012,11-02931,730,Notts Enterprises Ltd
Nottinghamshire County Council,1111/1001,Children and Young People,CYP,Premises Related,BDA,24/02/2012,11-03715,2187.1,Slm Community Leisure Ltd
Nottinghamshire County Council,1111/1001,Children and Young People,CYP,Premises Related,BDA,24/02/2012,11-03815,917.5,Welbeck Estates Company Ltd
Nottinghamshire County Council,1111/1001,Children and Young People,CYP,Premises Related,BDA,28/02/2012,11-06895,2416.67,The Derbyshire Hotel
Nottinghamshire County Council,1111/1001,Children and Young People,CYP,Premises Related,BDA,29/02/2012,11-07036,5719.98,Sports & Leisure Management
Nottinghamshire County Council,1111/1001,Children and Young People,CYP,Premises Related,BFA,06/02/2012,11-00946,82.09, Sutton Cent Comm Coll - DO NOT USE
Nottinghamshire County Council,1111/1001,Children and Young People,CYP,Premises Related,BFA,06/02/2012,11-01046,806.15,Severn Trent Water Ltd
Nottinghamshire County Council,1111/1001,Children and Young People,CYP,Premises Related,BFA,08/02/2012,11-01641,4759.09,Severn Trent Water Ltd
Nottinghamshire County Council,1111/1001,Children and Young People,CYP,Premises Related,BFA,08/02/2012,11-01651,945.73,Severn Trent Water Ltd
Nottinghamshire County Council,1111/1001,Children and Young People,CYP,Premises Related,BFA,08/02/2012,11-01652,3350.75,Severn Trent Water Ltd
Nottinghamshire County Council,1111/1001,Children and Young People,CYP,Premises Related,BFA,10/02/2012,11-02049,10731.38,Severn Trent Water Ltd
Nottinghamshire County Council,1111/1001,Children and Young People,CYP,Premises Related,BFA,15/02/2012,11-01648,3145.76,Severn Trent Water Ltd
Nottinghamshire County Council,1111/1001,Children and Young People,CYP,Premises Related,BFA,15/02/2012,11-02528,1601.67,Severn Trent Water Ltd
Nottinghamshire County Council,1111/1001,Children and Young People,CYP,Premises Related,BFA,16/02/2012,11-02054,1454.66,Severn Trent Water Ltd
Nottinghamshire County Council,1111/1001,Children and Young People,CYP,Premises Related,BFA,16/02/2012,11-02539,1272.77,Severn Trent Water Ltd
Nottinghamshire County Council,1111/1001,Children and Young People,CYP,Premises Related,BFA,16/02/2012,11-02570,1472.57,Severn Trent Water Ltd
Nottinghamshire County Council,1111/1001,Children and Young People,CYP,Premises Related,BFA,16/02/2012,11-02584,4054.18,Severn Trent Water Ltd
Nottinghamshire County Council,1111/1001,Children and Young People,CYP,Premises Related,BFA,22/02/2012,11-03456,1216.04,Severn Trent Water Ltd
Nottinghamshire County Council,1111/1001,Children and Young People,CYP,Premises Related,BFA,22/02/2012,11-03457,4827,Severn Trent Water Ltd
Nottinghamshire County Council,1111/1001,Children and Young People,CYP,Premises Related,BFA,24/02/2012,11-03723,1135.46,Severn Trent Water Ltd
Nottinghamshire County Council,1111/1001,Children and Young People,CYP,Premises Related,BJA,14/02/2012,11-02399,604.48,Phs Group Plc
Nottinghamshire County Council,1111/1001,Children and Young People,CYP,Premises Related,BJA,17/02/2012,11-01690,678.19,Phs Group Plc
Nottinghamshire County Council,1111/1001,Children and Young People,CYP,Premises Related,BJA,20/02/2012,11-02982,1972,Making It! Enterprises Ltd
Nottinghamshire County Council,1111/1001,Children and Young People,CYP,Transport Related,CAA,22/02/2012,11-07118,596.53,Lovers Leap Garage
Nottinghamshire County Council,1111/1001,Children and Young People,CYP,Transport Related,CCA,01/02/2012,11-00071,1496.4,Amvale Ltd
Nottinghamshire County Council,1111/1001,Children and Young People,CYP,Transport Related,CCA,01/02/2012,11-00324,585.9,Dial A Trip
Nottinghamshire County Council,1111/1001,Children and Young People,CYP,Transport Related,CCA,01/02/2012,11-00325,1893,Arrow Specialised Transport Ltd
Nottinghamshire County Council,1111/1001,Children and Young People,CYP,Transport Related,CCA,01/02/2012,11-00326,2620.2,Arrow Specialised Transport Ltd
Nottinghamshire County Council,1111/1001,Children and Young People,CYP,Transport Related,CCA,01/02/2012,11-00327,1454.24,Arrow Specialised Transport Ltd
Nottinghamshire County Council,1111/1001,Children and Young People,CYP,Transport Related,CCA,01/02/2012,11-00330,631.6,P & P Taxis
Nottinghamshire County Council,1111/1001,Children and Young People,CYP,Transport Related,CCA,01/02/2012,11-00331,675.23,P & P Taxis
Nottinghamshire County Council,1111/1001,Children and Young People,CYP,Transport Related,CCA,01/02/2012,11-00332,800,Town Taxis Ltd
Nottinghamshire County Council,1111/1001,Children and Young People,CYP,Transport Related,CCA,02/02/2012,11-00547,26500,Stagecoach Services Ltd
Nottinghamshire County Council,1111/1001,Children and Young People,CYP,Transport Related,CCA,02/02/2012,11-00548,4000,Trent Motor Traction Company Ltd
Nottinghamshire County Council,1111/1001,Children and Young People,CYP,Transport Related,CCA,02/02/2012,11-00549,4000,Marshalls Of Sutton On Trent Ltd
Nottinghamshire County Council,1111/1001,Children and Young People,CYP,Transport Related,CCA,02/02/2012,11-00550,5500,Nottm City Transport Ltd
Nottinghamshire County Council,1111/1001,Children and Young People,CYP,Transport Related,CCA,02/02/2012,11-00551,1000,Travel Wright Ltd
Nottinghamshire County Council,1111/1001,Children and Young People,CYP,Transport Related,CCA,02/02/2012,11-00552,12000,Sharpes Of Nottingham
Nottinghamshire County Council,1111/1001,Children and Young People,CYP,Transport Related,CCA,03/02/2012,11-00049,944.2,Nottingham City Council
Nottinghamshire County Council,1111/1001,Children and Young People,CYP,Transport Related,CCA,03/02/2012,11-00747,1355.2,Taxicover Uk Ltd
Nottinghamshire County Council,1111/1001,Children and Young People,CYP,Transport Related,CCA,03/02/2012,11-00748,2840.2,Taxicover Uk Ltd
Nottinghamshire County Council,1111/1001,Children and Young People,CYP,Transport Related,CCA,03/02/2012,11-00749,3239.6,Taxicover Uk Ltd
Nottinghamshire County Council,1111/1001,Children and Young People,CYP,Transport Related,CCA,03/02/2012,11-00750,3560,Taxicover Uk Ltd
Nottinghamshire County Council,1111/1001,Children and Young People,CYP,Transport Related,CCA,03/02/2012,11-00751,3234.2,Taxicover Uk Ltd
Nottinghamshire County Council,1111/1001,Children and Young People,CYP,Transport Related,CCA,03/02/2012,11-00752,2522.6,Taxicover Uk Ltd
Nottinghamshire County Council,1111/1001,Children and Young People,CYP,Transport Related,CCA,03/02/2012,11-00753,1750,Taxicover Uk Ltd
Nottinghamshire County Council,1111/1001,Children and Young People,CYP,Transport Related,CCA,03/02/2012,11-00754,2816,Taxicover Uk Ltd
Nottinghamshire County Council,1111/1001,Children and Young People,CYP,Transport Related,CCA,03/02/2012,11-00755,2860,Taxicover Uk Ltd
Nottinghamshire County Council,1111/1001,Children and Young People,CYP,Transport Related,CCA,03/02/2012,11-00756,3480,Taxicover Uk Ltd
Nottinghamshire County Council,1111/1001,Children and Young People,CYP,Transport Related,CCA,03/02/2012,11-00757,3320,Taxicover Uk Ltd
Nottinghamshire County Council,1111/1001,Children and Young People,CYP,Transport Related,CCA,03/02/2012,11-00758,2280.03,Taxicover Uk Ltd
Nottinghamshire County Council,1111/1001,Children and Young People,CYP,Transport Related,CCA,03/02/2012,11-00759,2822.45,Taxicover Uk Ltd
Nottinghamshire County Council,1111/1001,Children and Young People,CYP,Transport Related,CCA,03/02/2012,11-00760,3124.74,Taxicover Uk Ltd
Nottinghamshire County Council,1111/1001,Children and Young People,CYP,Transport Related,CCA,03/02/2012,11-00761,3552.05,Taxicover Uk Ltd
Nottinghamshire County Council,1111/1001,Children and Young People,CYP,Transport Related,CCA,03/02/2012,11-00762,2832.9,Taxicover Uk Ltd
Nottinghamshire County Council,1111/1001,Children and Young People,CYP,Transport Related,CCA,03/02/2012,11-00763,2940.63,Taxicover Uk Ltd
Nottinghamshire County Council,1111/1001,Children and Young People,CYP,Transport Related,CCA,03/02/2012,11-00764,1500,Taxicover Uk Ltd
Nottinghamshire County Council,1111/1001,Children and Young People,CYP,Transport Related,CCA,03/02/2012,11-00765,2520,Taxicover Uk Ltd
Nottinghamshire County Council,1111/1001,Children and Young People,CYP,Transport Related,CCA,03/02/2012,11-00766,1875,Taxicover Uk Ltd
Nottinghamshire County Council,1111/1001,Children and Young People,CYP,Transport Related,CCA,03/02/2012,11-00767,1614.6,Taxicover Uk Ltd
Nottinghamshire County Council,1111/1001,Children and Young People,CYP,Transport Related,CCA,03/02/2012,11-00768,3410.2,Taxicover Uk Ltd
Nottinghamshire County Council,1111/1001,Children and Young People,CYP,Transport Related,CCA,03/02/2012,11-00769,3452.8,Taxicover Uk Ltd
Nottinghamshire County Council,1111/1001,Children and Young People,CYP,Transport Related,CCA,03/02/2012,11-00770,1422,Southside Cars
Nottinghamshire County Council,1111/1001,Children and Young People,CYP,Transport Related,CCA,03/02/2012,11-00771,1167.5,Southside Cars
Nottinghamshire County Council,1111/1001,Children and Young People,CYP,Transport Related,CCA,03/02/2012,11-00772,881,Southside Cars
Nottinghamshire County Council,1111/1001,Children and Young People,CYP,Transport Related,CCA,03/02/2012,11-00773,570,Southside Cars
Nottinghamshire County Council,1111/1001,Children and Young People,CYP,Transport Related,CCA,03/02/2012,11-00774,586.5,Southside Cars
Nottinghamshire County Council,1111/1001,Children and Young People,CYP,Transport Related,CCA,03/02/2012,11-00775,1545,Southside Cars
Nottinghamshire County Council,1111/1001,Children and Young People,CYP,Transport Related,CCA,03/02/2012,11-00776,705,Southside Cars
Nottinghamshire County Council,1111/1001,Children and Young People,CYP,Transport Related,CCA,03/02/2012,11-00777,612,Southside Cars
Nottinghamshire County Council,1111/1001,Children and Young People,CYP,Transport Related,CCA,03/02/2012,11-00778,792,Southside Cars
Nottinghamshire County Council,1111/1001,Children and Young People,CYP,Transport Related,CCA,03/02/2012,11-00779,1660.32,Southside Cars
Nottinghamshire County Council,1111/1001,Children and Young People,CYP,Transport Related,CCA,03/02/2012,11-00780,1100,All Wayz Travel
Nottinghamshire County Council,1111/1001,Children and Young People,CYP,Transport Related,CCA,03/02/2012,11-00781,1168.5,All Wayz Travel
Nottinghamshire County Council,1111/1001,Children and Young People,CYP,Transport Related,CCA,03/02/2012,11-00782,2608.7,Marriotts Travel
Nottinghamshire County Council,1111/1001,Children and Young People,CYP,Transport Related,CCA,03/02/2012,11-00783,637,Fozcabs Newark Taxis
Nottinghamshire County Council,1111/1001,Children and Young People,CYP,Transport Related,CCA,03/02/2012,11-00784,1326.65,Fozcabs Newark Taxis
Nottinghamshire County Council,1111/1001,Children and Young People,CYP,Transport Related,CCA,03/02/2012,11-00785,1176,Fozcabs Newark Taxis
Nottinghamshire County Council,1111/1001,Children and Young People,CYP,Transport Related,CCA,03/02/2012,11-00786,422.5,Fozcabs Newark Taxis
Nottinghamshire County Council,1111/1001,Children and Young People,CYP,Transport Related,CCA,03/02/2012,11-00787,1656,Fozcabs Newark Taxis
Nottinghamshire County Council,1111/1001,Children and Young People,CYP,Transport Related,CCA,03/02/2012,11-00788,575.04,Fozcabs Newark Taxis
Nottinghamshire County Council,1111/1001,Children and Young People,CYP,Transport Related,CCA,03/02/2012,11-00789,1611,Fozcabs Newark Taxis
Nottinghamshire County Council,1111/1001,Children and Young People,CYP,Transport Related,CCA,03/02/2012,11-00790,0.01,Hawkins Taxis & Transport
Nottinghamshire County Council,1111/1001,Children and Young People,CYP,Transport Related,CCA,03/02/2012,11-00791,1351.68,Hawkins Taxis & Transport
Nottinghamshire County Council,1111/1001,Children and Young People,CYP,Transport Related,CCA,03/02/2012,11-00792,2406,Horizon Travel
Nottinghamshire County Council,1111/1001,Children and Young People,CYP,Transport Related,CCA,03/02/2012,11-00793,2028.36,Horizon Travel
Nottinghamshire County Council,1111/1001,Children and Young People,CYP,Transport Related,CCA,03/02/2012,11-00794,3073.2,Horizon Travel
Nottinghamshire County Council,1111/1001,Children and Young People,CYP,Transport Related,CCA,03/02/2012,11-00795,1340.82,Midfield Travel
Nottinghamshire County Council,1111/1001,Children and Young People,CYP,Transport Related,CCA,03/02/2012,11-00796,2990.98,Midfield Travel
Nottinghamshire County Council,1111/1001,Children and Young People,CYP,Transport Related,CCA,03/02/2012,11-00797,1045.6,Elkingtons Park Garage
Nottinghamshire County Council,1111/1001,Children and Young People,CYP,Transport Related,CCA,03/02/2012,11-00798,2890,Bn Gibson Ltd
Nottinghamshire County Council,1111/1001,Children and Young People,CYP,Transport Related,CCA,03/02/2012,11-00800,1710,Garys Coaches Ltd
Nottinghamshire County Council,1111/1001,Children and Young People,CYP,Transport Related,CCA,03/02/2012,11-00801,574.18,P & P Taxis
Nottinghamshire County Council,1111/1001,Children and Young People,CYP,Transport Related,CCA,03/02/2012,11-00802,1360,P & P Taxis
Nottinghamshire County Council,1111/1001,Children and Young People,CYP,Transport Related,CCA,03/02/2012,11-00806,3799,Kettlewell Retford Ltd
Nottinghamshire County Council,1111/1001,Children and Young People,CYP,Transport Related,CCA,03/02/2012,11-00807,3408.8,Kettlewell Retford Ltd
Nottinghamshire County Council,1111/1001,Children and Young People,CYP,Transport Related,CCA,03/02/2012,11-00808,2211,Kettlewell Retford Ltd
Nottinghamshire County Council,1111/1001,Children and Young People,CYP,Transport Related,CCA,03/02/2012,11-00809,890,AAA Taxis
Nottinghamshire County Council,1111/1001,Children and Young People,CYP,Transport Related,CCA,03/02/2012,11-00810,1970.3,AAA Taxis
Nottinghamshire County Council,1111/1001,Children and Young People,CYP,Transport Related,CCA,03/02/2012,11-00811,1970,AAA Taxis
Nottinghamshire County Council,1111/1001,Children and Young People,CYP,Transport Related,CCA,03/02/2012,11-00812,1688,AAA Taxis
Nottinghamshire County Council,1111/1001,Children and Young People,CYP,Transport Related,CCA,03/02/2012,11-00813,1199.6,AAA Taxis
Nottinghamshire County Council,1111/1001,Children and Young People,CYP,Transport Related,CCA,03/02/2012,11-00814,1296,AAA Taxis
Nottinghamshire County Council,1111/1001,Children and Young People,CYP,Transport Related,CCA,03/02/2012,11-00815,1070,AAA Taxis
Nottinghamshire County Council,1111/1001,Children and Young People,CYP,Transport Related,CCA,03/02/2012,11-00816,715.8,AAA Taxis
Nottinghamshire County Council,1111/1001,Children and Young People,CYP,Transport Related,CCA,03/02/2012,11-00817,1360,AAA Taxis
Nottinghamshire County Council,1111/1001,Children and Young People,CYP,Transport Related,CCA,03/02/2012,11-00818,1700,Stubbsy Travel
Nottinghamshire County Council,1111/1001,Children and Young People,CYP,Transport Related,CCA,08/02/2012,11-00202,15.96,The Dukeries College
Nottinghamshire County Council,1111/1001,Children and Young People,CYP,Transport Related,CCA,08/02/2012,11-01443,646,Mar Taxis Ltd
Nottinghamshire County Council,1111/1001,Children and Young People,CYP,Transport Related,CCA,08/02/2012,11-01444,569.5,Mar Taxis Ltd
Nottinghamshire County Council,1111/1001,Children and Young People,CYP,Transport Related,CCA,08/02/2012,11-01445,800,A C Taxis
Nottinghamshire County Council,1111/1001,Children and Young People,CYP,Transport Related,CCA,08/02/2012,11-01446,615.06,A Line Taxis
Nottinghamshire County Council,1111/1001,Children and Young People,CYP,Transport Related,CCA,08/02/2012,11-01447,665,A Line Taxis
Nottinghamshire County Council,1111/1001,Children and Young People,CYP,Transport Related,CCA,08/02/2012,11-01450,3235.8,Marriotts Travel
Nottinghamshire County Council,1111/1001,Children and Young People,CYP,Transport Related,CCA,08/02/2012,11-01451,2386.97,Martins Travel
Nottinghamshire County Council,1111/1001,Children and Young People,CYP,Transport Related,CCA,08/02/2012,11-01453,4025,Premiere Travel Ltd
Nottinghamshire County Council,1111/1001,Children and Young People,CYP,Transport Related,CCA,08/02/2012,11-01463,3437.1,Redfern Travel
Nottinghamshire County Council,1111/1001,Children and Young People,CYP,Transport Related,CCA,08/02/2012,11-01465,1035,Redfern Travel
Nottinghamshire County Council,1111/1001,Children and Young People,CYP,Transport Related,CCA,08/02/2012,11-01466,2965,Redfern Travel
Nottinghamshire County Council,1111/1001,Children and Young People,CYP,Transport Related,CCA,08/02/2012,11-01468,2280,Vale Travel
Nottinghamshire County Council,1111/1001,Children and Young People,CYP,Transport Related,CCA,08/02/2012,11-01469,1474.2,Ace Of Mansfield Ltd
Nottinghamshire County Council,1111/1001,Children and Young People,CYP,Transport Related,CCA,08/02/2012,11-01471,2200,Arnold Acorn Travel
Nottinghamshire County Council,1111/1001,Children and Young People,CYP,Transport Related,CCA,08/02/2012,11-01473,651.8,Alpha Cars
Nottinghamshire County Council,1111/1001,Children and Young People,CYP,Transport Related,CCA,08/02/2012,11-01474,2040,Arrow Specialised Transport Ltd
Nottinghamshire County Council,1111/1001,Children and Young People,CYP,Transport Related,CCA,08/02/2012,11-01475,2020,Arrow Specialised Transport Ltd
Nottinghamshire County Council,1111/1001,Children and Young People,CYP,Transport Related,CCA,08/02/2012,11-01476,2500,Arrow Specialised Transport Ltd
Nottinghamshire County Council,1111/1001,Children and Young People,CYP,Transport Related,CCA,08/02/2012,11-01477,1780,Arrow Specialised Transport Ltd
Nottinghamshire County Council,1111/1001,Children and Young People,CYP,Transport Related,CCA,08/02/2012,11-01478,1008,Arrow Specialised Transport Ltd
Nottinghamshire County Council,1111/1001,Children and Young People,CYP,Transport Related,CCA,08/02/2012,11-01479,2060,Arrow Specialised Transport Ltd
Nottinghamshire County Council,1111/1001,Children and Young People,CYP,Transport Related,CCA,08/02/2012,11-01480,986,Arrow Specialised Transport Ltd
Nottinghamshire County Council,1111/1001,Children and Young People,CYP,Transport Related,CCA,08/02/2012,11-01481,1691,Arrow Specialised Transport Ltd
Nottinghamshire County Council,1111/1001,Children and Young People,CYP,Transport Related,CCA,08/02/2012,11-01482,704,Arrow Specialised Transport Ltd
Nottinghamshire County Council,1111/1001,Children and Young People,CYP,Transport Related,CCA,08/02/2012,11-01483,2229.37,Arrow Specialised Transport Ltd
Nottinghamshire County Council,1111/1001,Children and Young People,CYP,Transport Related,CCA,08/02/2012,11-01484,732,Arrow Specialised Transport Ltd
Nottinghamshire County Council,1111/1001,Children and Young People,CYP,Transport Related,CCA,08/02/2012,11-01485,1880,Arrow Specialised Transport Ltd
Nottinghamshire County Council,1111/1001,Children and Young People,CYP,Transport Related,CCA,08/02/2012,11-01486,2200,Arrow Specialised Transport Ltd
Nottinghamshire County Council,1111/1001,Children and Young People,CYP,Transport Related,CCA,08/02/2012,11-01487,2154.8,Arrow Specialised Transport Ltd
Nottinghamshire County Council,1111/1001,Children and Young People,CYP,Transport Related,CCA,08/02/2012,11-01488,2170.8,Arrow Specialised Transport Ltd
Nottinghamshire County Council,1111/1001,Children and Young People,CYP,Transport Related,CCA,08/02/2012,11-01489,2130.6,Arrow Specialised Transport Ltd
Nottinghamshire County Council,1111/1001,Children and Young People,CYP,Transport Related,CCA,08/02/2012,11-01490,2320,Arrow Specialised Transport Ltd
Nottinghamshire County Council,1111/1001,Children and Young People,CYP,Transport Related,CCA,08/02/2012,11-01491,1700,Arrow Specialised Transport Ltd
Nottinghamshire County Council,1111/1001,Children and Young People,CYP,Transport Related,CCA,08/02/2012,11-01492,1104,Arrow Specialised Transport Ltd
Nottinghamshire County Council,1111/1001,Children and Young People,CYP,Transport Related,CCA,08/02/2012,11-01493,1976,Arrow Specialised Transport Ltd
Nottinghamshire County Council,1111/1001,Children and Young People,CYP,Transport Related,CCA,08/02/2012,11-01494,1615,Arrow Specialised Transport Ltd
Nottinghamshire County Council,1111/1001,Children and Young People,CYP,Transport Related,CCA,08/02/2012,11-01495,1073.16,Arrow Specialised Transport Ltd
Nottinghamshire County Council,1111/1001,Children and Young People,CYP,Transport Related,CCA,08/02/2012,11-01496,1104,Arrow Specialised Transport Ltd
Nottinghamshire County Council,1111/1001,Children and Young People,CYP,Transport Related,CCA,08/02/2012,11-01497,1184,Arrow Specialised Transport Ltd
Nottinghamshire County Council,1111/1001,Children and Young People,CYP,Transport Related,CCA,08/02/2012,11-01498,2800,Arrow Specialised Transport Ltd
Nottinghamshire County Council,1111/1001,Children and Young People,CYP,Transport Related,CCA,08/02/2012,11-01499,8721.65,Arrow Specialised Transport Ltd
Nottinghamshire County Council,1111/1001,Children and Young People,CYP,Transport Related,CCA,08/02/2012,11-01500,2024.7,Arrow Specialised Transport Ltd
Nottinghamshire County Council,1111/1001,Children and Young People,CYP,Transport Related,CCA,08/02/2012,11-01501,1655.8,Arrow Specialised Transport Ltd
Nottinghamshire County Council,1111/1001,Children and Young People,CYP,Transport Related,CCA,08/02/2012,11-01502,2148.8,Arrow Specialised Transport Ltd
Nottinghamshire County Council,1111/1001,Children and Young People,CYP,Transport Related,CCA,08/02/2012,11-01503,2236,Arrow Specialised Transport Ltd
Nottinghamshire County Council,1111/1001,Children and Young People,CYP,Transport Related,CCA,08/02/2012,11-01504,1088,Arrow Specialised Transport Ltd
Nottinghamshire County Council,1111/1001,Children and Young People,CYP,Transport Related,CCA,08/02/2012,11-01505,1029.5,Arrow Specialised Transport Ltd
Nottinghamshire County Council,1111/1001,Children and Young People,CYP,Transport Related,CCA,08/02/2012,11-01506,1224,Arrow Specialised Transport Ltd
Nottinghamshire County Council,1111/1001,Children and Young People,CYP,Transport Related,CCA,08/02/2012,11-01507,1139,Arrow Specialised Transport Ltd
Nottinghamshire County Council,1111/1001,Children and Young People,CYP,Transport Related,CCA,08/02/2012,11-01508,3700,Arrow Specialised Transport Ltd
Nottinghamshire County Council,1111/1001,Children and Young People,CYP,Transport Related,CCA,08/02/2012,11-01509,2352,Arrow Specialised Transport Ltd
Nottinghamshire County Council,1111/1001,Children and Young People,CYP,Transport Related,CCA,08/02/2012,11-01510,1480,Arrow Specialised Transport Ltd
Nottinghamshire County Council,1111/1001,Children and Young People,CYP,Transport Related,CCA,08/02/2012,11-01511,770,Arrow Specialised Transport Ltd
Nottinghamshire County Council,1111/1001,Children and Young People,CYP,Transport Related,CCA,08/02/2012,11-01512,2478.2,Arrow Specialised Transport Ltd
Nottinghamshire County Council,1111/1001,Children and Young People,CYP,Transport Related,CCA,08/02/2012,11-01513,1700,Arrow Specialised Transport Ltd
Nottinghamshire County Council,1111/1001,Children and Young People,CYP,Transport Related,CCA,08/02/2012,11-01514,1520,Arrow Specialised Transport Ltd
Nottinghamshire County Council,1111/1001,Children and Young People,CYP,Transport Related,CCA,08/02/2012,11-01515,1620,Arrow Specialised Transport Ltd
Nottinghamshire County Council,1111/1001,Children and Young People,CYP,Transport Related,CCA,08/02/2012,11-01516,1940,Arrow Specialised Transport Ltd
Nottinghamshire County Council,1111/1001,Children and Young People,CYP,Transport Related,CCA,08/02/2012,11-01517,1680,Arrow Specialised Transport Ltd
Nottinghamshire County Council,1111/1001,Children and Young People,CYP,Transport Related,CCA,08/02/2012,11-01518,1148,Arrow Specialised Transport Ltd
Nottinghamshire County Council,1111/1001,Children and Young People,CYP,Transport Related,CCA,08/02/2012,11-01519,2232,Arrow Specialised Transport Ltd
Nottinghamshire County Council,1111/1001,Children and Young People,CYP,Transport Related,CCA,08/02/2012,11-01520,2280,Arrow Specialised Transport Ltd
Nottinghamshire County Council,1111/1001,Children and Young People,CYP,Transport Related,CCA,08/02/2012,11-01521,3041.61,Arrow Specialised Transport Ltd
Nottinghamshire County Council,1111/1001,Children and Young People,CYP,Transport Related,CCA,08/02/2012,11-01522,665,Arrow Specialised Transport Ltd
Nottinghamshire County Council,1111/1001,Children and Young People,CYP,Transport Related,CCA,08/02/2012,11-01523,2145.4,Arrow Specialised Transport Ltd
Nottinghamshire County Council,1111/1001,Children and Young People,CYP,Transport Related,CCA,08/02/2012,11-01524,1010.23,Bridges Transport Services
Nottinghamshire County Council,1111/1001,Children and Young People,CYP,Transport Related,CCA,08/02/2012,11-01525,1140,Bridges Transport Services
Nottinghamshire County Council,1111/1001,Children and Young People,CYP,Transport Related,CCA,08/02/2012,11-01526,1115.2,Bridges Transport Services
Nottinghamshire County Council,1111/1001,Children and Young People,CYP,Transport Related,CCA,08/02/2012,11-01527,764.6,Bridges Transport Services
Nottinghamshire County Council,1111/1001,Children and Young People,CYP,Transport Related,CCA,08/02/2012,11-01528,1566.8,Bridges Transport Services
Nottinghamshire County Council,1111/1001,Children and Young People,CYP,Transport Related,CCA,08/02/2012,11-01529,1170,Bridges Transport Services
Nottinghamshire County Council,1111/1001,Children and Young People,CYP,Transport Related,CCA,08/02/2012,11-01530,784.6,Bridges Transport Services
Nottinghamshire County Council,1111/1001,Children and Young People,CYP,Transport Related,CCA,08/02/2012,11-01532,1642.83,Bridges Transport Services
Nottinghamshire County Council,1111/1001,Children and Young People,CYP,Transport Related,CCA,08/02/2012,11-01533,1400,Bridges Transport Services
Nottinghamshire County Council,1111/1001,Children and Young People,CYP,Transport Related,CCA,08/02/2012,11-01534,1386.21,Bridges Transport Services
Nottinghamshire County Council,1111/1001,Children and Young People,CYP,Transport Related,CCA,08/02/2012,11-01535,1366.72,Bridges Transport Services
Nottinghamshire County Council,1111/1001,Children and Young People,CYP,Transport Related,CCA,08/02/2012,11-01536,1060.96,Bridges Transport Services
Nottinghamshire County Council,1111/1001,Children and Young People,CYP,Transport Related,CCA,08/02/2012,11-01537,877.4,Bridges Transport Services
Nottinghamshire County Council,1111/1001,Children and Young People,CYP,Transport Related,CCA,08/02/2012,11-01538,2094.33,Headland Taxi Services
Nottinghamshire County Council,1111/1001,Children and Young People,CYP,Transport Related,CCA,08/02/2012,11-01539,1495.2,Headland Taxi Services
Nottinghamshire County Council,1111/1001,Children and Young People,CYP,Transport Related,CCA,08/02/2012,11-01540,2431.2,Ja Travel Ltd
Nottinghamshire County Council,1111/1001,Children and Young People,CYP,Transport Related,CCA,08/02/2012,11-01541,2780,Ja Travel Ltd
Nottinghamshire County Council,1111/1001,Children and Young People,CYP,Transport Related,CCA,08/02/2012,11-01542,3076,Ja Travel Ltd
Nottinghamshire County Council,1111/1001,Children and Young People,CYP,Transport Related,CCA,08/02/2012,11-01543,2489.6,Mct Uk Ltd
Nottinghamshire County Council,1111/1001,Children and Young People,CYP,Transport Related,CCA,08/02/2012,11-01544,1631.98,Oasis Taxis Mansfield Ltd
Nottinghamshire County Council,1111/1001,Children and Young People,CYP,Transport Related,CCA,08/02/2012,11-01545,3128.16,F & J Marriott T/A Unity Coaches
Nottinghamshire County Council,1111/1001,Children and Young People,CYP,Transport Related,CCA,08/02/2012,11-01547,3015,F & J Marriott T/A Unity Coaches
Nottinghamshire County Council,1111/1001,Children and Young People,CYP,Transport Related,CCA,08/02/2012,11-01548,3015,F & J Marriott T/A Unity Coaches
Nottinghamshire County Council,1111/1001,Children and Young People,CYP,Transport Related,CCA,08/02/2012,11-01549,1506.69,Bn Gibson Ltd
Nottinghamshire County Council,1111/1001,Children and Young People,CYP,Transport Related,CCA,08/02/2012,11-01550,3373.2,Goldstar Travel Nottm Ltd
Nottinghamshire County Council,1111/1001,Children and Young People,CYP,Transport Related,CCA,08/02/2012,11-01551,1400,Goldstar Travel Nottm Ltd
Nottinghamshire County Council,1111/1001,Children and Young People,CYP,Transport Related,CCA,08/02/2012,11-01552,2373.2,K & S Coaches
Nottinghamshire County Council,1111/1001,Children and Young People,CYP,Transport Related,CCA,08/02/2012,11-01553,1751.8,P Rhodes Transport Ltd
Nottinghamshire County Council,1111/1001,Children and Young People,CYP,Transport Related,CCA,08/02/2012,11-01554,2500,Travelwise Coaches Ltd
Nottinghamshire County Council,1111/1001,Children and Young People,CYP,Transport Related,CCA,08/02/2012,11-01555,2232.8,Travelwise Coaches Ltd
Nottinghamshire County Council,1111/1001,Children and Young People,CYP,Transport Related,CCA,08/02/2012,11-01556,2053.2,Travelwise Coaches Ltd
Nottinghamshire County Council,1111/1001,Children and Young People,CYP,Transport Related,CCA,08/02/2012,11-01557,2180.82,Travelwise Coaches Ltd
Nottinghamshire County Council,1111/1001,Children and Young People,CYP,Transport Related,CCA,08/02/2012,11-01558,2045.4,Travelwise Coaches Ltd
Nottinghamshire County Council,1111/1001,Children and Young People,CYP,Transport Related,CCA,08/02/2012,11-01559,1866.4,Travelwise Coaches Ltd
Nottinghamshire County Council,1111/1001,Children and Young People,CYP,Transport Related,CCA,08/02/2012,11-01560,2306.95,Amvale Ltd
Nottinghamshire County Council,1111/1001,Children and Young People,CYP,Transport Related,CCA,08/02/2012,11-01561,560,AOT Coaches
Nottinghamshire County Council,1111/1001,Children and Young People,CYP,Transport Related,CCA,08/02/2012,11-01562,1382.5,AOT Coaches
Nottinghamshire County Council,1111/1001,Children and Young People,CYP,Transport Related,CCA,08/02/2012,11-01563,1300,K & R Cars
Nottinghamshire County Council,1111/1001,Children and Young People,CYP,Transport Related,CCA,08/02/2012,11-01572,3055.2,Marshalls Of Sutton On Trent Ltd
Nottinghamshire County Council,1111/1001,Children and Young People,CYP,Transport Related,CCA,08/02/2012,11-01578,1025.2,Meden Travel
Nottinghamshire County Council,1111/1001,Children and Young People,CYP,Transport Related,CCA,08/02/2012,11-01580,756.18,Nottm Minibuses & Coaches
Nottinghamshire County Council,1111/1001,Children and Young People,CYP,Transport Related,CCA,08/02/2012,11-01582,1085,Silverdale Tours Nottm Ltd
Nottinghamshire County Council,1111/1001,Children and Young People,CYP,Transport Related,CCA,08/02/2012,11-01583,877.5,Silverdale Tours Nottm Ltd
Nottinghamshire County Council,1111/1001,Children and Young People,CYP,Transport Related,CCA,08/02/2012,11-01584,1819,Tiger European Uk Ltd
Nottinghamshire County Council,1111/1001,Children and Young People,CYP,Transport Related,CCA,08/02/2012,11-01596,1849.2,Ashfield Travel
Nottinghamshire County Council,1111/1001,Children and Young People,CYP,Transport Related,CCA,08/02/2012,11-01597,1986.6,Jc Coaches
Nottinghamshire County Council,1111/1001,Children and Young People,CYP,Transport Related,CCA,08/02/2012,11-01604,2670,Freeway Coaches Ltd
Nottinghamshire County Council,1111/1001,Children and Young People,CYP,Transport Related,CCA,08/02/2012,11-01605,7310,Kettlewell Retford Ltd
Nottinghamshire County Council,1111/1001,Children and Young People,CYP,Transport Related,CCA,08/02/2012,11-01606,1170,AAA Taxis
Nottinghamshire County Council,1111/1001,Children and Young People,CYP,Transport Related,CCA,08/02/2012,11-01607,1757.5,AAA Taxis
Nottinghamshire County Council,1111/1001,Children and Young People,CYP,Transport Related,CCA,08/02/2012,11-01609,3316.6,C W Moxon Ltd
Nottinghamshire County Council,1111/1001,Children and Young People,CYP,Transport Related,CCA,08/02/2012,11-01611,2227,C W Moxon Ltd
Nottinghamshire County Council,1111/1001,Children and Young People,CYP,Transport Related,CCA,09/02/2012,11-01729,2608,Sharpes Of Nottingham
Nottinghamshire County Council,1111/1001,Children and Young People,CYP,Transport Related,CCA,09/02/2012,11-01734,2510,Sharpes Of Nottingham
Nottinghamshire County Council,1111/1001,Children and Young People,CYP,Transport Related,CCA,09/02/2012,11-01735,1484.6,A Line Taxis
Nottinghamshire County Council,1111/1001,Children and Young People,CYP,Transport Related,CCA,09/02/2012,11-01738,900,CBC Taxis Ltd
Nottinghamshire County Council,1111/1001,Children and Young People,CYP,Transport Related,CCA,09/02/2012,11-01739,560,CBC Taxis Ltd
Nottinghamshire County Council,1111/1001,Children and Young People,CYP,Transport Related,CCA,09/02/2012,11-01740,840,CBC Taxis Ltd
Nottinghamshire County Council,1111/1001,Children and Young People,CYP,Transport Related,CCA,09/02/2012,11-01741,1164.8,Acorn Travel
Nottinghamshire County Council,1111/1001,Children and Young People,CYP,Transport Related,CCA,09/02/2012,11-01742,1680,Sprays Transport Ltd
Nottinghamshire County Council,1111/1001,Children and Young People,CYP,Transport Related,CCA,09/02/2012,11-01743,1700,Sprays Transport Ltd
Nottinghamshire County Council,1111/1001,Children and Young People,CYP,Transport Related,CCA,09/02/2012,11-01744,1700,Sprays Transport Ltd
Nottinghamshire County Council,1111/1001,Children and Young People,CYP,Transport Related,CCA,09/02/2012,11-01745,1560,Sprays Transport Ltd
Nottinghamshire County Council,1111/1001,Children and Young People,CYP,Transport Related,CCA,09/02/2012,11-01746,850,Sprays Transport Ltd
Nottinghamshire County Council,1111/1001,Children and Young People,CYP,Transport Related,CCA,09/02/2012,11-01747,1700,Sprays Transport Ltd
Nottinghamshire County Council,1111/1001,Children and Young People,CYP,Transport Related,CCA,09/02/2012,11-01748,1800,Sprays Transport Ltd
Nottinghamshire County Council,1111/1001,Children and Young People,CYP,Transport Related,CCA,09/02/2012,11-01749,1920,Sprays Transport Ltd
Nottinghamshire County Council,1111/1001,Children and Young People,CYP,Transport Related,CCA,09/02/2012,11-01750,1880,Sprays Transport Ltd
Nottinghamshire County Council,1111/1001,Children and Young People,CYP,Transport Related,CCA,09/02/2012,11-01751,1600,Sprays Transport Ltd
Nottinghamshire County Council,1111/1001,Children and Young People,CYP,Transport Related,CCA,09/02/2012,11-01752,1700,Sprays Transport Ltd
Nottinghamshire County Council,1111/1001,Children and Young People,CYP,Transport Related,CCA,09/02/2012,11-01753,1394,Sprays Transport Ltd
Nottinghamshire County Council,1111/1001,Children and Young People,CYP,Transport Related,CCA,09/02/2012,11-01754,1496,Sprays Transport Ltd
Nottinghamshire County Council,1111/1001,Children and Young People,CYP,Transport Related,CCA,09/02/2012,11-01755,969,Sprays Transport Ltd
Nottinghamshire County Council,1111/1001,Children and Young People,CYP,Transport Related,CCA,09/02/2012,11-01756,1680,Sprays Transport Ltd
Nottinghamshire County Council,1111/1001,Children and Young People,CYP,Transport Related,CCA,09/02/2012,11-01757,1955,Sprays Transport Ltd
Nottinghamshire County Council,1111/1001,Children and Young People,CYP,Transport Related,CCA,09/02/2012,11-01758,2247.8,Sprays Transport Ltd
Nottinghamshire County Council,1111/1001,Children and Young People,CYP,Transport Related,CCA,09/02/2012,11-01759,2191.2,Sprays Transport Ltd
Nottinghamshire County Council,1111/1001,Children and Young People,CYP,Transport Related,CCA,09/02/2012,11-01760,2040,Sprays Transport Ltd
Nottinghamshire County Council,1111/1001,Children and Young People,CYP,Transport Related,CCA,09/02/2012,11-01761,2163.2,Sprays Transport Ltd
Nottinghamshire County Council,1111/1001,Children and Young People,CYP,Transport Related,CCA,09/02/2012,11-01762,2194.42,Sprays Transport Ltd
Nottinghamshire County Council,1111/1001,Children and Young People,CYP,Transport Related,CCA,09/02/2012,11-01763,2037.56,Sprays Transport Ltd
Nottinghamshire County Council,1111/1001,Children and Young People,CYP,Transport Related,CCA,09/02/2012,11-01764,2613,Sprays Transport Ltd
Nottinghamshire County Council,1111/1001,Children and Young People,CYP,Transport Related,CCA,09/02/2012,11-01765,2376.6,Sprays Transport Ltd
Nottinghamshire County Council,1111/1001,Children and Young People,CYP,Transport Related,CCA,09/02/2012,11-01766,2535.6,Sprays Transport Ltd
Nottinghamshire County Council,1111/1001,Children and Young People,CYP,Transport Related,CCA,09/02/2012,11-01767,1245.7,Sprays Transport Ltd
Nottinghamshire County Council,1111/1001,Children and Young People,CYP,Transport Related,CCA,09/02/2012,11-01768,2864.2,Sprays Transport Ltd
Nottinghamshire County Council,1111/1001,Children and Young People,CYP,Transport Related,CCA,09/02/2012,11-01769,666,Trent Cars
Nottinghamshire County Council,1111/1001,Children and Young People,CYP,Transport Related,CCA,09/02/2012,11-01770,1500,Trent Cars
Nottinghamshire County Council,1111/1001,Children and Young People,CYP,Transport Related,CCA,09/02/2012,11-01771,720,Trent Cars
Nottinghamshire County Council,1111/1001,Children and Young People,CYP,Transport Related,CCA,09/02/2012,11-01773,2131.8,Vallances Coaches
Nottinghamshire County Council,1111/1001,Children and Young People,CYP,Transport Related,CCA,09/02/2012,11-01774,1101.4,County Cars
Nottinghamshire County Council,1111/1001,Children and Young People,CYP,Transport Related,CCA,09/02/2012,11-01775,0.02,Premier Taxis
Nottinghamshire County Council,1111/1001,Children and Young People,CYP,Transport Related,CCA,09/02/2012,11-01782,3341.72,AOT Coaches
Nottinghamshire County Council,1111/1001,Children and Young People,CYP,Transport Related,CCA,09/02/2012,11-01783,540,Beechwood Taxis
Nottinghamshire County Council,1111/1001,Children and Young People,CYP,Transport Related,CCA,09/02/2012,11-01784,750,Jb Tours Watnall Ltd
Nottinghamshire County Council,1111/1001,Children and Young People,CYP,Transport Related,CCA,09/02/2012,11-01785,660,Jb Tours Watnall Ltd
Nottinghamshire County Council,1111/1001,Children and Young People,CYP,Transport Related,CCA,09/02/2012,11-01791,2801.77,Tiger European Uk Ltd
Nottinghamshire County Council,1111/1001,Children and Young People,CYP,Transport Related,CCA,09/02/2012,11-01793,936,Town Taxis Ltd
Nottinghamshire County Council,1111/1001,Children and Young People,CYP,Transport Related,CCA,09/02/2012,11-01794,750,Town Taxis Ltd
Nottinghamshire County Council,1111/1001,Children and Young People,CYP,Transport Related,CCA,10/02/2012,11-01979,1266.4,Sharpes Of Nottingham
Nottinghamshire County Council,1111/1001,Children and Young People,CYP,Transport Related,CCA,10/02/2012,11-01980,577.5,Sharpes Of Nottingham
Nottinghamshire County Council,1111/1001,Children and Young People,CYP,Transport Related,CCA,10/02/2012,11-01981,2482.4,Sharpes Of Nottingham
Nottinghamshire County Council,1111/1001,Children and Young People,CYP,Transport Related,CCA,10/02/2012,11-01983,1867.1,Vallances Coaches
Nottinghamshire County Council,1111/1001,Children and Young People,CYP,Transport Related,CCA,10/02/2012,11-01984,3096.81,Travel Wright Ltd
Nottinghamshire County Council,1111/1001,Children and Young People,CYP,Transport Related,CCA,10/02/2012,11-01985,12819.8,Travel Wright Ltd
Nottinghamshire County Council,1111/1001,Children and Young People,CYP,Transport Related,CCA,10/02/2012,11-01986,2496.03,Travel Wright Ltd
Nottinghamshire County Council,1111/1001,Children and Young People,CYP,Transport Related,CCA,10/02/2012,11-01993,2945,Travel Wright Ltd
Nottinghamshire County Council,1111/1001,Children and Young People,CYP,Transport Related,CCA,10/02/2012,11-01996,1540,Town Taxis Ltd
Nottinghamshire County Council,1111/1001,Children and Young People,CYP,Transport Related,CCA,13/02/2012,11-02097,1128,6 Five 2s
Nottinghamshire County Council,1111/1001,Children and Young People,CYP,Transport Related,CCA,13/02/2012,11-02098,1246,6 Five 2s
Nottinghamshire County Council,1111/1001,Children and Young People,CYP,Transport Related,CCA,13/02/2012,11-02099,1056,6 Five 2s
Nottinghamshire County Council,1111/1001,Children and Young People,CYP,Transport Related,CCA,13/02/2012,11-02100,1547.55,6 Five 2s
Nottinghamshire County Council,1111/1001,Children and Young People,CYP,Transport Related,CCA,13/02/2012,11-02101,1360,6 Five 2s
Nottinghamshire County Council,1111/1001,Children and Young People,CYP,Transport Related,CCA,13/02/2012,11-02102,790.4,6 Five 2s
Nottinghamshire County Council,1111/1001,Children and Young People,CYP,Transport Related,CCA,13/02/2012,11-02103,924.4,6 Five 2s
Nottinghamshire County Council,1111/1001,Children and Young People,CYP,Transport Related,CCA,13/02/2012,11-02104,874.44,6 Five 2s
Nottinghamshire County Council,1111/1001,Children and Young People,CYP,Transport Related,CCA,13/02/2012,11-02105,1668.4,6 Five 2s
Nottinghamshire County Council,1111/1001,Children and Young People,CYP,Transport Related,CCA,13/02/2012,11-02106,1157,6 Five 2s
Nottinghamshire County Council,1111/1001,Children and Young People,CYP,Transport Related,CCA,13/02/2012,11-02107,1255.5,6 Five 2s
Nottinghamshire County Council,1111/1001,Children and Young People,CYP,Transport Related,CCA,13/02/2012,11-02108,1398,6 Five 2s
Nottinghamshire County Council,1111/1001,Children and Young People,CYP,Transport Related,CCA,13/02/2012,11-02112,1411,Arrow Specialised Transport Ltd
Nottinghamshire County Council,1111/1001,Children and Young People,CYP,Transport Related,CCA,13/02/2012,11-02113,1444.2,Bridges Transport Services
Nottinghamshire County Council,1111/1001,Children and Young People,CYP,Transport Related,CCA,13/02/2012,11-02114,619.4,Fozcabs Newark Taxis
Nottinghamshire County Council,1111/1001,Children and Young People,CYP,Transport Related,CCA,13/02/2012,11-02115,2398,Ron Gash & Sons Ltd
Nottinghamshire County Council,1111/1001,Children and Young People,CYP,Transport Related,CCA,13/02/2012,11-02136,2850,Stagecoach Services Ltd
Nottinghamshire County Council,1111/1001,Children and Young People,CYP,Transport Related,CCA,13/02/2012,11-02138,6400,Stagecoach Services Ltd
Nottinghamshire County Council,1111/1001,Children and Young People,CYP,Transport Related,CCA,13/02/2012,11-02158,1179.9,Stagecoach Services Ltd
Nottinghamshire County Council,1111/1001,Children and Young People,CYP,Transport Related,CCA,13/02/2012,11-02165,1074.45,Rio Cabs
Nottinghamshire County Council,1111/1001,Children and Young People,CYP,Transport Related,CCA,13/02/2012,11-02167,1601,Rio Cabs
Nottinghamshire County Council,1111/1001,Children and Young People,CYP,Transport Related,CCA,14/02/2012,11-02362,1581,D G Private Hire Ltd
Nottinghamshire County Council,1111/1001,Children and Young People,CYP,Transport Related,CCA,14/02/2012,11-02364,2410.4,Harrison Ford
Nottinghamshire County Council,1111/1001,Children and Young People,CYP,Transport Related,CCA,14/02/2012,11-02367,2481.8,1st 4 Care Ltd
Nottinghamshire County Council,1111/1001,Children and Young People,CYP,Transport Related,CCA,14/02/2012,11-02368,2567.4,1st 4 Care Ltd
Nottinghamshire County Council,1111/1001,Children and Young People,CYP,Transport Related,CCA,14/02/2012,11-02369,2518,1st 4 Care Ltd
Nottinghamshire County Council,1111/1001,Children and Young People,CYP,Transport Related,CCA,14/02/2012,11-02370,2187.66,1st 4 Care Ltd
Nottinghamshire County Council,1111/1001,Children and Young People,CYP,Transport Related,CCA,14/02/2012,11-02371,1035,123 Taxis
Nottinghamshire County Council,1111/1001,Children and Young People,CYP,Transport Related,CCA,14/02/2012,11-02372,683.4,123 Taxis
Nottinghamshire County Council,1111/1001,Children and Young People,CYP,Transport Related,CCA,14/02/2012,11-02373,612,123 Taxis
Nottinghamshire County Council,1111/1001,Children and Young People,CYP,Transport Related,CCA,14/02/2012,11-02416,1435,Cabline Uk Ltd
Nottinghamshire County Council,1111/1001,Children and Young People,CYP,Transport Related,CCA,14/02/2012,11-02422,1320,Central Cars Nottm Ltd
Nottinghamshire County Council,1111/1001,Children and Young People,CYP,Transport Related,CCA,14/02/2012,11-02423,3392,Central Cars Nottm Ltd
Nottinghamshire County Council,1111/1001,Children and Young People,CYP,Transport Related,CCA,14/02/2012,11-02424,1245.42,Central Cars Nottm Ltd
Nottinghamshire County Council,1111/1001,Children and Young People,CYP,Transport Related,CCA,14/02/2012,11-02426,532,Central Cars Nottm Ltd
Nottinghamshire County Council,1111/1001,Children and Young People,CYP,Transport Related,CCA,14/02/2012,11-02427,1020,Central Cars Nottm Ltd
Nottinghamshire County Council,1111/1001,Children and Young People,CYP,Transport Related,CCA,14/02/2012,11-02428,1294.28,Central Cars Nottm Ltd
Nottinghamshire County Council,1111/1001,Children and Young People,CYP,Transport Related,CCA,14/02/2012,11-02429,600,D G Private Hire Ltd
Nottinghamshire County Council,1111/1001,Children and Young People,CYP,Transport Related,CCA,14/02/2012,11-02430,1480,D G Private Hire Ltd
Nottinghamshire County Council,1111/1001,Children and Young People,CYP,Transport Related,CCA,14/02/2012,11-02431,900,D G Private Hire Ltd
Nottinghamshire County Council,1111/1001,Children and Young People,CYP,Transport Related,CCA,14/02/2012,11-02432,954.75,D G Private Hire Ltd
Nottinghamshire County Council,1111/1001,Children and Young People,CYP,Transport Related,CCA,14/02/2012,11-02434,1251.2,Motorvation Taxis
Nottinghamshire County Council,1111/1001,Children and Young People,CYP,Transport Related,CCA,14/02/2012,11-02436,2381.4,1st 4 Care Ltd
Nottinghamshire County Council,1111/1001,Children and Young People,CYP,Transport Related,CCA,14/02/2012,11-02437,2220,1st 4 Care Ltd
Nottinghamshire County Council,1111/1001,Children and Young People,CYP,Transport Related,CCA,14/02/2012,11-02438,3238.55,1st 4 Care Ltd
Nottinghamshire County Council,1111/1001,Children and Young People,CYP,Transport Related,CCA,14/02/2012,11-02440,975,1st 4 Care Ltd
Nottinghamshire County Council,1111/1001,Children and Young People,CYP,Transport Related,CCA,14/02/2012,11-02441,1247.4,1st 4 Care Ltd
Nottinghamshire County Council,1111/1001,Children and Young People,CYP,Transport Related,CCA,14/02/2012,11-02442,4000,1st 4 Care Ltd
Nottinghamshire County Council,1111/1001,Children and Young People,CYP,Transport Related,CCA,14/02/2012,11-02443,1616.52,Bn Gibson Ltd
Nottinghamshire County Council,1111/1001,Children and Young People,CYP,Transport Related,CCA,14/02/2012,11-02463,1220,Town Taxis Ltd
Nottinghamshire County Council,1111/1001,Children and Young People,CYP,Transport Related,CCA,14/02/2012,11-02464,698.2,Town Taxis Ltd
Nottinghamshire County Council,1111/1001,Children and Young People,CYP,Transport Related,CCA,14/02/2012,11-02465,693,Direct Cars (Lincoln) Ltd
Nottinghamshire County Council,1111/1001,Children and Young People,CYP,Transport Related,CCA,21/02/2012,11-03187,633.6,Alert Cars Ltd
Nottinghamshire County Council,1111/1001,Children and Young People,CYP,Transport Related,CCA,21/02/2012,11-03193,1200,Cabline Uk Ltd
Nottinghamshire County Council,1111/1001,Children and Young People,CYP,Transport Related,CCA,21/02/2012,11-03194,1020,Cabline Uk Ltd
Nottinghamshire County Council,1111/1001,Children and Young People,CYP,Transport Related,CCA,21/02/2012,11-03195,1200,Cabline Uk Ltd
Nottinghamshire County Council,1111/1001,Children and Young People,CYP,Transport Related,CCA,21/02/2012,11-03197,880,Central Cars Nottm Ltd
Nottinghamshire County Council,1111/1001,Children and Young People,CYP,Transport Related,CCA,21/02/2012,11-03201,2659.8,D G Private Hire Ltd
Nottinghamshire County Council,1111/1001,Children and Young People,CYP,Transport Related,CCA,21/02/2012,11-03202,500,D G Private Hire Ltd
Nottinghamshire County Council,1111/1001,Children and Young People,CYP,Transport Related,CCA,21/02/2012,11-03204,2064.6,Sprays Transport Ltd
Nottinghamshire County Council,1111/1001,Children and Young People,CYP,Transport Related,CCA,21/02/2012,11-03205,2193.8,Sprays Transport Ltd
Nottinghamshire County Council,1111/1001,Children and Young People,CYP,Transport Related,CCA,21/02/2012,11-03212,2394,1st 4 Care Ltd
Nottinghamshire County Council,1111/1001,Children and Young People,CYP,Transport Related,CCA,21/02/2012,11-03213,4973.2,Bn Gibson Ltd
Nottinghamshire County Council,1111/1001,Children and Young People,CYP,Transport Related,CCA,21/02/2012,11-03214,3061.09,Bn Gibson Ltd
Nottinghamshire County Council,1111/1001,Children and Young People,CYP,Transport Related,CCA,21/02/2012,11-03215,3046.65,Bn Gibson Ltd
Nottinghamshire County Council,1111/1001,Children and Young People,CYP,Transport Related,CCA,21/02/2012,11-03216,3398.13,Bn Gibson Ltd
Nottinghamshire County Council,1111/1001,Children and Young People,CYP,Transport Related,CCA,21/02/2012,11-03217,2479.5,Bn Gibson Ltd
Nottinghamshire County Council,1111/1001,Children and Young People,CYP,Transport Related,CCA,21/02/2012,11-03218,3239.8,Bn Gibson Ltd
Nottinghamshire County Council,1111/1001,Children and Young People,CYP,Transport Related,CCA,21/02/2012,11-03219,2784.6,Bn Gibson Ltd
Nottinghamshire County Council,1111/1001,Children and Young People,CYP,Transport Related,CCA,21/02/2012,11-03220,4452.4,Bn Gibson Ltd
Nottinghamshire County Council,1111/1001,Children and Young People,CYP,Transport Related,CCA,21/02/2012,11-03221,3437.1,Bn Gibson Ltd
Nottinghamshire County Council,1111/1001,Children and Young People,CYP,Transport Related,CCA,21/02/2012,11-03222,2934.8,Bn Gibson Ltd
Nottinghamshire County Council,1111/1001,Children and Young People,CYP,Transport Related,CCA,21/02/2012,11-03223,2975.76,Bn Gibson Ltd
Nottinghamshire County Council,1111/1001,Children and Young People,CYP,Transport Related,CCA,21/02/2012,11-03224,2273,Bn Gibson Ltd
Nottinghamshire County Council,1111/1001,Children and Young People,CYP,Transport Related,CCA,21/02/2012,11-03225,2522.8,Bn Gibson Ltd
Nottinghamshire County Council,1111/1001,Children and Young People,CYP,Transport Related,CCA,21/02/2012,11-03226,1554,Bn Gibson Ltd
Nottinghamshire County Council,1111/1001,Children and Young People,CYP,Transport Related,CCA,21/02/2012,11-03227,3168.8,Bn Gibson Ltd
Nottinghamshire County Council,1111/1001,Children and Young People,CYP,Transport Related,CCA,21/02/2012,11-03228,2586.09,Bn Gibson Ltd
Nottinghamshire County Council,1111/1001,Children and Young People,CYP,Transport Related,CCA,21/02/2012,11-03229,2444.35,Bn Gibson Ltd
Nottinghamshire County Council,1111/1001,Children and Young People,CYP,Transport Related,CCA,21/02/2012,11-03230,2192.97,Bn Gibson Ltd
Nottinghamshire County Council,1111/1001,Children and Young People,CYP,Transport Related,CCA,21/02/2012,11-03231,2746.26,Bn Gibson Ltd
Nottinghamshire County Council,1111/1001,Children and Young People,CYP,Transport Related,CCA,21/02/2012,11-03232,3935.47,Bn Gibson Ltd
Nottinghamshire County Council,1111/1001,Children and Young People,CYP,Transport Related,CCA,21/02/2012,11-03233,2741.7,Bn Gibson Ltd
Nottinghamshire County Council,1111/1001,Children and Young People,CYP,Transport Related,CCA,21/02/2012,11-03234,2864.25,Bn Gibson Ltd
Nottinghamshire County Council,1111/1001,Children and Young People,CYP,Transport Related,CCA,21/02/2012,11-03235,3501.7,Bn Gibson Ltd
Nottinghamshire County Council,1111/1001,Children and Young People,CYP,Transport Related,CCA,21/02/2012,11-03236,3266.4,Bn Gibson Ltd
Nottinghamshire County Council,1111/1001,Children and Young People,CYP,Transport Related,CCA,21/02/2012,11-03237,2012.8,Bn Gibson Ltd
Nottinghamshire County Council,1111/1001,Children and Young People,CYP,Transport Related,CCA,21/02/2012,11-03238,2440,Bn Gibson Ltd
Nottinghamshire County Council,1111/1001,Children and Young People,CYP,Transport Related,CCA,21/02/2012,11-03239,2180.28,AOT Coaches
Nottinghamshire County Council,1111/1001,Children and Young People,CYP,Transport Related,CCA,21/02/2012,11-03250,4422,Isle Coaches
Nottinghamshire County Council,1111/1001,Children and Young People,CYP,Transport Related,CCA,21/02/2012,11-07079,998.5,Crelling Harnesses For Disabled Ltd
Nottinghamshire County Council,1111/1001,Children and Young People,CYP,Transport Related,CCA,24/02/2012,11-03820,700,Cabline Uk Ltd
Nottinghamshire County Council,1111/1001,Children and Young People,CYP,Transport Related,CCA,24/02/2012,11-03822,2890,Bn Gibson Ltd
Nottinghamshire County Council,1111/1001,Children and Young People,CYP,Transport Related,CCA,24/02/2012,11-03823,1662.25,Bn Gibson Ltd
Nottinghamshire County Council,1111/1001,Children and Young People,CYP,Transport Related,CCA,24/02/2012,11-03824,2891.2,Bn Gibson Ltd
Nottinghamshire County Council,1111/1001,Children and Young People,CYP,Transport Related,CCA,24/02/2012,11-03825,3075.4,Bn Gibson Ltd
Nottinghamshire County Council,1111/1001,Children and Young People,CYP,Transport Related,CCA,24/02/2012,11-03826,1829.16,Bn Gibson Ltd
Nottinghamshire County Council,1111/1001,Children and Young People,CYP,Transport Related,CCA,24/02/2012,11-03829,1392.72,Diamond Cars
Nottinghamshire County Council,1111/1001,Children and Young People,CYP,Transport Related,CCA,24/02/2012,11-03830,518.4,Bassetlaw Action Centre
Nottinghamshire County Council,1111/1001,Children and Young People,CYP,Transport Related,CCA,27/02/2012,11-06881,275,Fozcabs Newark Taxis
Nottinghamshire County Council,1111/1001,Children and Young People,CYP,Transport Related,CDA,01/02/2012,11-00330,90.22,P & P Taxis
Nottinghamshire County Council,1111/1001,Children and Young People,CYP,Transport Related,CDA,01/02/2012,11-00331,96.46,P & P Taxis
Nottinghamshire County Council,1111/1001,Children and Young People,CYP,Transport Related,CDA,02/02/2012,11-00546,46300,Nottm Minibuses & Coaches
Nottinghamshire County Council,1111/1001,Children and Young People,CYP,Transport Related,CDA,02/02/2012,11-00547,45200,Stagecoach Services Ltd
Nottinghamshire County Council,1111/1001,Children and Young People,CYP,Transport Related,CDA,02/02/2012,11-00548,14500,Trent Motor Traction Company Ltd
Nottinghamshire County Council,1111/1001,Children and Young People,CYP,Transport Related,CDA,02/02/2012,11-00549,15200,Marshalls Of Sutton On Trent Ltd
Nottinghamshire County Council,1111/1001,Children and Young People,CYP,Transport Related,CDA,02/02/2012,11-00550,8000,Nottm City Transport Ltd
Nottinghamshire County Council,1111/1001,Children and Young People,CYP,Transport Related,CDA,02/02/2012,11-00551,14000,Travel Wright Ltd
Nottinghamshire County Council,1111/1001,Children and Young People,CYP,Transport Related,CDA,02/02/2012,11-00552,1000,Sharpes Of Nottingham
Nottinghamshire County Council,1111/1001,Children and Young People,CYP,Transport Related,CDA,02/02/2012,11-00553,11600,Premiere Travel Ltd
Nottinghamshire County Council,1111/1001,Children and Young People,CYP,Transport Related,CDA,02/02/2012,11-00554,21150,Paul S Winson Coaches
Nottinghamshire County Council,1111/1001,Children and Young People,CYP,Transport Related,CDA,02/02/2012,11-00555,32000,Silverdale Tours Nottm Ltd
Nottinghamshire County Council,1111/1001,Children and Young People,CYP,Transport Related,CDA,02/02/2012,11-00556,18000,Johnson Bros Tours Ltd
Nottinghamshire County Council,1111/1001,Children and Young People,CYP,Transport Related,CDA,02/02/2012,11-00557,14100,Mass Engineering
Nottinghamshire County Council,1111/1001,Children and Young People,CYP,Transport Related,CDA,03/02/2012,11-00786,422.5,Fozcabs Newark Taxis
Nottinghamshire County Council,1111/1001,Children and Young People,CYP,Transport Related,CDA,03/02/2012,11-00801,82.02,P & P Taxis
Nottinghamshire County Council,1111/1001,Children and Young People,CYP,Transport Related,CDA,03/02/2012,11-00809,890,AAA Taxis
Nottinghamshire County Council,1111/1001,Children and Young People,CYP,Transport Related,CDA,08/02/2012,11-01469,163.8,Ace Of Mansfield Ltd
Nottinghamshire County Council,1111/1001,Children and Young People,CYP,Transport Related,CDA,08/02/2012,11-01511,770,Arrow Specialised Transport Ltd
Nottinghamshire County Council,1111/1001,Children and Young People,CYP,Transport Related,CDA,08/02/2012,11-01518,1148,Arrow Specialised Transport Ltd
Nottinghamshire County Council,1111/1001,Children and Young People,CYP,Transport Related,CDA,08/02/2012,11-01521,608.03,Arrow Specialised Transport Ltd
Nottinghamshire County Council,1111/1001,Children and Young People,CYP,Transport Related,CDA,08/02/2012,11-01531,936,Bridges Transport Services
Nottinghamshire County Council,1111/1001,Children and Young People,CYP,Transport Related,CDA,08/02/2012,11-01535,128.96,Bridges Transport Services
Nottinghamshire County Council,1111/1001,Children and Young People,CYP,Transport Related,CDA,08/02/2012,11-01553,1751.8,P Rhodes Transport Ltd
Nottinghamshire County Council,1111/1001,Children and Young People,CYP,Transport Related,CDA,08/02/2012,11-01620,1200,Lavender Line Travel
Nottinghamshire County Council,1111/1001,Children and Young People,CYP,Transport Related,CDA,09/02/2012,11-01746,850,Sprays Transport Ltd
Nottinghamshire County Council,1111/1001,Children and Young People,CYP,Transport Related,CDA,09/02/2012,11-01767,1245.7,Sprays Transport Ltd
Nottinghamshire County Council,1111/1001,Children and Young People,CYP,Transport Related,CDA,13/02/2012,11-02100,212.45,6 Five 2s
Nottinghamshire County Council,1111/1001,Children and Young People,CYP,Transport Related,CDA,13/02/2012,11-02165,358.15,Rio Cabs
Nottinghamshire County Council,1111/1001,Children and Young People,CYP,Transport Related,CDA,21/02/2012,11-03219,928.2,Bn Gibson Ltd
Nottinghamshire County Council,1111/1001,Children and Young People,CYP,Transport Related,CDA,24/02/2012,11-03823,997.35,Bn Gibson Ltd
Nottinghamshire County Council,1111/1001,Children and Young People,CYP,Transport Related,CDA,27/02/2012,11-06881,275,Fozcabs Newark Taxis
Nottinghamshire County Council,1111/1001,Children and Young People,CYP,Transport Related,CEA,20/02/2012,11-02982,450,Making It! Enterprises Ltd
Nottinghamshire County Council,1111/1001,Children and Young People,CYP,Supplies & Services,DAA,02/02/2012,11-00580,1600,South Nottinghamshire Academy
Nottinghamshire County Council,1111/1001,Children and Young People,CYP,Supplies & Services,DAA,02/02/2012,11-00581,17551,South Nottinghamshire Academy
Nottinghamshire County Council,1111/1001,Children and Young People,CYP,Supplies & Services,DAA,02/02/2012,11-00600,1000000,Joseph Whittaker Academy
Nottinghamshire County Council,1111/1001,Children and Young People,CYP,Supplies & Services,DAA,03/02/2012,11-00901,1050,Redfern Travel
Nottinghamshire County Council,1111/1001,Children and Young People,CYP,Supplies & Services,DAA,06/02/2012,11-00946,453.78, Sutton Cent Comm Coll - DO NOT USE
Nottinghamshire County Council,1111/1001,Children and Young People,CYP,Supplies & Services,DAA,07/02/2012,11-01248,656.67,Home Leisure Direct Ltd
Nottinghamshire County Council,1111/1001,Children and Young People,CYP,Supplies & Services,DAA,08/02/2012,11-00202,149.64,The Dukeries College
Nottinghamshire County Council,1111/1001,Children and Young People,CYP,Supplies & Services,DAA,08/02/2012,11-01669,4675.72,Norbridge Primary School
Nottinghamshire County Council,1111/1001,Children and Young People,CYP,Supplies & Services,DAA,08/02/2012,11-01671,10000,Christ The King School (Budget)
Nottinghamshire County Council,1111/1001,Children and Young People,CYP,Supplies & Services,DAA,08/02/2012,11-01678,1684.64,Vps Uk Ltd
Nottinghamshire County Council,1111/1001,Children and Young People,CYP,Supplies & Services,DAA,10/02/2012,11-01975,2000,Nottingham Bluecoat
Nottinghamshire County Council,1111/1001,Children and Young People,CYP,Supplies & Services,DAA,13/02/2012,11-02281,6342.56,Nottingham City Council
Nottinghamshire County Council,1111/1001,Children and Young People,CYP,Supplies & Services,DAA,14/02/2012,11-02308,1021.28,Portland School
Nottinghamshire County Council,1111/1001,Children and Young People,CYP,Supplies & Services,DAA,14/02/2012,11-02402,49395,George Spencer Acadamy
Nottinghamshire County Council,1111/1001,Children and Young People,CYP,Supplies & Services,DAA,14/02/2012,11-02403,1000,George Spencer Acadamy
Nottinghamshire County Council,1111/1001,Children and Young People,CYP,Supplies & Services,DAA,15/02/2012,11-02586,30000,Toothill Academy
Nottinghamshire County Council,1111/1001,Children and Young People,CYP,Supplies & Services,DAA,17/02/2012,11-02214,-1650.63,The Dukeries College
Nottinghamshire County Council,1111/1001,Children and Young People,CYP,Supplies & Services,DAA,17/02/2012,11-02404,500,Garibaldi School Ncc
Nottinghamshire County Council,1111/1001,Children and Young People,CYP,Supplies & Services,DAA,17/02/2012,11-02929,867.5,Computaform (UK) Ltd T/A Primo IT
Nottinghamshire County Council,1111/1001,Children and Young People,CYP,Supplies & Services,DAA,17/02/2012,11-02939,82.48, Sutton Cent Comm Coll - DO NOT USE
Nottinghamshire County Council,1111/1001,Children and Young People,CYP,Supplies & Services,DAA,20/02/2012,11-02995,1872.62,Aiguille Ltd
Nottinghamshire County Council,1111/1001,Children and Young People,CYP,Supplies & Services,DAA,21/02/2012,11-03161,550.6,South Forest Leisure Centre
Nottinghamshire County Council,1111/1001,Children and Young People,CYP,Supplies & Services,DAA,21/02/2012,11-03164,875,Rich By Merritt
Nottinghamshire County Council,1111/1001,Children and Young People,CYP,Supplies & Services,DAA,21/02/2012,11-03270,500000,Joseph Whittaker Academy
Nottinghamshire County Council,1111/1001,Children and Young People,CYP,Supplies & Services,DAA,22/02/2012,11-03515,25000,George Spencer Acadamy
Nottinghamshire County Council,1111/1001,Children and Young People,CYP,Supplies & Services,DAA,22/02/2012,11-07334,646,Pineapple Contracts
Nottinghamshire County Council,1111/1001,Children and Young People,CYP,Supplies & Services,DAA,23/02/2012,11-02932,7115.9,AG Inclusion Solutions Ltd
Nottinghamshire County Council,1111/1001,Children and Young People,CYP,Supplies & Services,DAA,23/02/2012,11-03685,123605,The Minster School Ncc Account
Nottinghamshire County Council,1111/1001,Children and Young People,CYP,Supplies & Services,DAA,24/02/2012,11-03747,1703.18,Leasing Payments Only Neopost Fin L
Nottinghamshire County Council,1111/1001,Children and Young People,CYP,Supplies & Services,DAA,28/02/2012,11-06922,1287,Gedling Borough Council
Nottinghamshire County Council,1111/1001,Children and Young People,CYP,Supplies & Services,DAA,29/02/2012,11-02175,4515.77,Norbridge Academy Trust
Nottinghamshire County Council,1111/1001,Children and Young People,CYP,Supplies & Services,DBA,01/02/2012,11-00413,272.02,M Maloney Country Butchers & B Ltd
Nottinghamshire County Council,1111/1001,Children and Young People,CYP,Supplies & Services,DBA,01/02/2012,11-00415,347.02,Hallam Country Fresh Foods Ltd
Nottinghamshire County Council,1111/1001,Children and Young People,CYP,Supplies & Services,DBA,01/02/2012,11-00417,257.03,M Maloney Country Butchers & B Ltd
Nottinghamshire County Council,1111/1001,Children and Young People,CYP,Supplies & Services,DBA,01/02/2012,11-00418,249.07,M Maloney Country Butchers & B Ltd
Nottinghamshire County Council,1111/1001,Children and Young People,CYP,Supplies & Services,DBA,02/02/2012,11-00487,255.68,Brake Bros Ltd
Nottinghamshire County Council,1111/1001,Children and Young People,CYP,Supplies & Services,DBA,02/02/2012,11-00489,135.34,Brake Bros Ltd
Nottinghamshire County Council,1111/1001,Children and Young People,CYP,Supplies & Services,DBA,02/02/2012,11-00534,254.83,Arnold Dairies Ltd
Nottinghamshire County Council,1111/1001,Children and Young People,CYP,Supplies & Services,DBA,02/02/2012,11-00535,591.67,Brake Bros Ltd
Nottinghamshire County Council,1111/1001,Children and Young People,CYP,Supplies & Services,DBA,02/02/2012,11-00583,184.74,Arnold Dairies Ltd
Nottinghamshire County Council,1111/1001,Children and Young People,CYP,Supplies & Services,DBA,03/02/2012,11-00827,655.11,Brake Bros Ltd
Nottinghamshire County Council,1111/1001,Children and Young People,CYP,Supplies & Services,DBA,03/02/2012,11-00828,276.94,Brake Bros Ltd
Nottinghamshire County Council,1111/1001,Children and Young People,CYP,Supplies & Services,DBA,03/02/2012,11-00832,476.55,Brake Bros Ltd
Nottinghamshire County Council,1111/1001,Children and Young People,CYP,Supplies & Services,DBA,03/02/2012,11-00833,508.1,Brake Bros Ltd
Nottinghamshire County Council,1111/1001,Children and Young People,CYP,Supplies & Services,DBA,03/02/2012,11-00835,321.91,Brake Bros Ltd
Nottinghamshire County Council,1111/1001,Children and Young People,CYP,Supplies & Services,DBA,07/02/2012,11-01356,297.12,Hallam Country Fresh Foods Ltd
Nottinghamshire County Council,1111/1001,Children and Young People,CYP,Supplies & Services,DBA,13/02/2012,11-02082,306.2,M Maloney Country Butchers & B Ltd
Nottinghamshire County Council,1111/1001,Children and Young People,CYP,Supplies & Services,DBA,13/02/2012,11-02084,531.07,M Maloney Country Butchers & B Ltd
Nottinghamshire County Council,1111/1001,Children and Young People,CYP,Supplies & Services,DBA,15/02/2012,11-02533,176.85,Arnold Dairies Ltd
Nottinghamshire County Council,1111/1001,Children and Young People,CYP,Supplies & Services,DBA,15/02/2012,11-02549,244.24,Hallam Country Fresh Foods Ltd
Nottinghamshire County Council,1111/1001,Children and Young People,CYP,Supplies & Services,DBA,15/02/2012,11-02550,675.54,Brake Bros Ltd
Nottinghamshire County Council,1111/1001,Children and Young People,CYP,Supplies & Services,DBA,15/02/2012,11-02551,608.41,Brake Bros Ltd
Nottinghamshire County Council,1111/1001,Children and Young People,CYP,Supplies & Services,DBA,15/02/2012,11-02553,237.39,Brake Bros Ltd
Nottinghamshire County Council,1111/1001,Children and Young People,CYP,Supplies & Services,DBA,15/02/2012,11-02554,510.07,Brake Bros Ltd
Nottinghamshire County Council,1111/1001,Children and Young People,CYP,Supplies & Services,DBA,17/02/2012,11-02922,165.88,Brake Bros Ltd
Nottinghamshire County Council,1111/1001,Children and Young People,CYP,Supplies & Services,DBA,17/02/2012,11-02923,-0.89,Brake Bros Ltd
Nottinghamshire County Council,1111/1001,Children and Young People,CYP,Supplies & Services,DBA,17/02/2012,11-02924,377.79,Brake Bros Ltd
Nottinghamshire County Council,1111/1001,Children and Young People,CYP,Supplies & Services,DBA,21/02/2012,11-03269,362.28,Hallam Country Fresh Foods Ltd
Nottinghamshire County Council,1111/1001,Children and Young People,CYP,Supplies & Services,DBA,22/02/2012,11-03420,193.37,Arnold Dairies Ltd
Nottinghamshire County Council,1111/1001,Children and Young People,CYP,Supplies & Services,DBA,23/02/2012,11-03543,213.55,Arnold Dairies Ltd
Nottinghamshire County Council,1111/1001,Children and Young People,CYP,Supplies & Services,DBA,24/02/2012,11-03810,147.89,Brake Bros Ltd
Nottinghamshire County Council,1111/1001,Children and Young People,CYP,Supplies & Services,DBA,28/02/2012,11-06888,377.1,M Maloney Country Butchers & B Ltd
Nottinghamshire County Council,1111/1001,Children and Young People,CYP,Supplies & Services,DBA,28/02/2012,11-06889,269.75,M Maloney Country Butchers & B Ltd
Nottinghamshire County Council,1111/1001,Children and Young People,CYP,Supplies & Services,DBA,29/02/2012,11-06980,129.73,Brake Bros Ltd
Nottinghamshire County Council,1111/1001,Children and Young People,CYP,Supplies & Services,DBA,29/02/2012,11-06981,381.34,Brake Bros Ltd
Nottinghamshire County Council,1111/1001,Children and Young People,CYP,Supplies & Services,DBA,29/02/2012,11-06984,175.97,Brake Bros Ltd
Nottinghamshire County Council,1111/1001,Children and Young People,CYP,Supplies & Services,DBA,29/02/2012,11-07037,319.18,Hallam Country Fresh Foods Ltd
Nottinghamshire County Council,1111/1001,Children and Young People,CYP,Supplies & Services,DDA,08/02/2012,11-00202,373.77,The Dukeries College
Nottinghamshire County Council,1111/1001,Children and Young People,CYP,Supplies & Services,DEA,01/02/2012,11-00321,5875,T Harries & Partners Llp
Nottinghamshire County Council,1111/1001,Children and Young People,CYP,Supplies & Services,DEA,06/02/2012,11-00946,9080, Sutton Cent Comm Coll - DO NOT USE
Nottinghamshire County Council,1111/1001,Children and Young People,CYP,Supplies & Services,DEA,08/02/2012,11-00202,13640.89,The Dukeries College
Nottinghamshire County Council,1111/1001,Children and Young People,CYP,Supplies & Services,DEA,08/02/2012,11-01483,68.23,Arrow Specialised Transport Ltd
Nottinghamshire County Council,1111/1001,Children and Young People,CYP,Supplies & Services,DEA,08/02/2012,11-07113,500,The Wright Initiative Ltd
Nottinghamshire County Council,1111/1001,Children and Young People,CYP,Supplies & Services,DEA,09/02/2012,11-01709,1140,Ravenshead Out Of School Club
Nottinghamshire County Council,1111/1001,Children and Young People,CYP,Supplies & Services,DEA,09/02/2012,11-01711,988.5,Childrens House Ltd
Nottinghamshire County Council,1111/1001,Children and Young People,CYP,Supplies & Services,DEA,10/02/2012,11-07131,600,The Wright Initiative Ltd
Nottinghamshire County Council,1111/1001,Children and Young People,CYP,Supplies & Services,DEA,13/02/2012,11-02280,660,Urban Projections
Nottinghamshire County Council,1111/1001,Children and Young People,CYP,Supplies & Services,DEA,14/02/2012,11-02317,1507.8,City & Guilds Of London Institute
Nottinghamshire County Council,1111/1001,Children and Young People,CYP,Supplies & Services,DEA,15/02/2012,11-01328,7556,Norsaca Society Office
Nottinghamshire County Council,1111/1001,Children and Young People,CYP,Supplies & Services,DEA,15/02/2012,11-02495,1000,Irwin Mitchell Solicitors
Nottinghamshire County Council,1111/1001,Children and Young People,CYP,Supplies & Services,DEA,15/02/2012,11-02496,906.6,Irwin Mitchell Solicitors
Nottinghamshire County Council,1111/1001,Children and Young People,CYP,Supplies & Services,DEA,15/02/2012,11-02591,1140,Transpose Media
Nottinghamshire County Council,1111/1001,Children and Young People,CYP,Supplies & Services,DEA,16/02/2012,11-02902,1479.62,Daniel Scott
Nottinghamshire County Council,1111/1001,Children and Young People,CYP,Supplies & Services,DEA,17/02/2012,11-02214,1413.05,The Dukeries College
Nottinghamshire County Council,1111/1001,Children and Young People,CYP,Supplies & Services,DEA,17/02/2012,11-02909,1931.1,Pearson Education
Nottinghamshire County Council,1111/1001,Children and Young People,CYP,Supplies & Services,DEA,20/02/2012,11-07263,572,Ocn East Midlands Region
Nottinghamshire County Council,1111/1001,Children and Young People,CYP,Supplies & Services,DEA,21/02/2012,11-07311,900,S4W Ltd
Nottinghamshire County Council,1111/1001,Children and Young People,CYP,Supplies & Services,DEA,23/02/2012,11-03532,2376.53,Vincent & Gorbing Ltd
Nottinghamshire County Council,1111/1001,Children and Young People,CYP,Supplies & Services,DEA,24/02/2012,11-03062,525,Fickle Chicken Productions
Nottinghamshire County Council,1111/1001,Children and Young People,CYP,Supplies & Services,DEA,24/02/2012,11-03814,1000,Unanima Theatre
Nottinghamshire County Council,1111/1001,Children and Young People,CYP,Supplies & Services,DEA,27/02/2012,11-03911,650,Gedling Play Forum
Nottinghamshire County Council,1111/1001,Children and Young People,CYP,Supplies & Services,DEA,29/02/2012,11-03928,3860,Trixchildcare Ltd
Nottinghamshire County Council,1111/1001,Children and Young People,CYP,Supplies & Services,DEA,29/02/2012,11-06967,1500,Notts County Fc Community Programme
Nottinghamshire County Council,1111/1001,Children and Young People,CYP,Supplies & Services,DFA,06/02/2012,11-00946,14.4, Sutton Cent Comm Coll - DO NOT USE
Nottinghamshire County Council,1111/1001,Children and Young People,CYP,Supplies & Services,DFA,07/02/2012,11-01280,504.41,Lantec Services Ltd
Nottinghamshire County Council,1111/1001,Children and Young People,CYP,Supplies & Services,DFA,08/02/2012,11-00202,1000.06,The Dukeries College
Nottinghamshire County Council,1111/1001,Children and Young People,CYP,Supplies & Services,DFA,17/02/2012,11-07236,2040.82,Specialist Computer Centres
Nottinghamshire County Council,1111/1001,Children and Young People,CYP,Supplies & Services,DFA,17/02/2012,11-07237,6874.49,Specialist Computer Centres
Nottinghamshire County Council,1111/1001,Children and Young People,CYP,Supplies & Services,DFA,20/02/2012,11-02982,520.74,Making It! Enterprises Ltd
Nottinghamshire County Council,1111/1001,Children and Young People,CYP,Supplies & Services,DFA,22/02/2012,11-03497,500,Frank Mach Top Ups Only Neopost Ltd
Nottinghamshire County Council,1111/1001,Children and Young People,CYP,Supplies & Services,DFA,23/02/2012,11-03553,750.34,Frank Mach Top Ups Only Neopost Ltd
Nottinghamshire County Council,1111/1001,Children and Young People,CYP,Supplies & Services,DGA,21/02/2012,11-03150,1500,M Stimpson
Nottinghamshire County Council,1111/1001,Children and Young People,CYP,Supplies & Services,DHA,02/02/2012,11-00593,604.82,Ncma Services Ltd
Nottinghamshire County Council,1111/1001,Children and Young People,CYP,Supplies & Services,DHA,02/02/2012,11-00692,915,Leahurst Road Pre-School
Nottinghamshire County Council,1111/1001,Children and Young People,CYP,Supplies & Services,DHA,07/02/2012,11-01327,3050,Children 1st @ Breedon House
Nottinghamshire County Council,1111/1001,Children and Young People,CYP,Supplies & Services,DHA,22/02/2012,11-03453,532.22,Bassetlaw Primary Care Trust
Nottinghamshire County Council,1111/1001,Children and Young People,CYP,Supplies & Services,DKA,01/02/2012,11-00009,689.09,Mencap Accounts Region 2
Nottinghamshire County Council,1111/1001,Children and Young People,CYP,Supplies & Services,DKA,01/02/2012,11-00015,793.94,Mencap Accounts Region 2
Nottinghamshire County Council,1111/1001,Children and Young People,CYP,Supplies & Services,DKA,01/02/2012,11-00016,977.45,Mencap Accounts Region 2
Nottinghamshire County Council,1111/1001,Children and Young People,CYP,Supplies & Services,DKA,01/02/2012,11-00046,988.68,Mencap Accounts Region 2
Nottinghamshire County Council,1111/1001,Children and Young People,CYP,Supplies & Services,DKA,02/02/2012,11-00599,3388.5,Foster Care Associates Ltd
Nottinghamshire County Council,1111/1001,Children and Young People,CYP,Supplies & Services,DKA,02/02/2012,11-00716,14143,Redhill Academy
Nottinghamshire County Council,1111/1001,Children and Young People,CYP,Supplies & Services,DKA,02/02/2012,11-00717,2747,George Spencer Acadamy
Nottinghamshire County Council,1111/1001,Children and Young People,CYP,Supplies & Services,DKA,02/02/2012,11-00718,7299,The Brunts Academy
Nottinghamshire County Council,1111/1001,Children and Young People,CYP,Supplies & Services,DKA,02/02/2012,11-00719,2747,Arnold Hill Academy
Nottinghamshire County Council,1111/1001,Children and Young People,CYP,Supplies & Services,DKA,02/02/2012,11-00738,1080,Norsaca Society Office
Nottinghamshire County Council,1111/1001,Children and Young People,CYP,Supplies & Services,DKA,02/02/2012,11-00739,1080,Norsaca Society Office
Nottinghamshire County Council,1111/1001,Children and Young People,CYP,Supplies & Services,DKA,03/02/2012,11-00758,284.97,Taxicover Uk Ltd
Nottinghamshire County Council,1111/1001,Children and Young People,CYP,Supplies & Services,DKA,03/02/2012,11-00887,1500,Horizon Social Housing Ltd
Nottinghamshire County Council,1111/1001,Children and Young People,CYP,Supplies & Services,DKA,03/02/2012,11-00888,1500,Horizon Social Housing Ltd
Nottinghamshire County Council,1111/1001,Children and Young People,CYP,Supplies & Services,DKA,03/02/2012,11-00896,1500,Horizon Social Housing Ltd
Nottinghamshire County Council,1111/1001,Children and Young People,CYP,Supplies & Services,DKA,03/02/2012,11-00897,1500,Horizon Social Housing Ltd
Nottinghamshire County Council,1111/1001,Children and Young People,CYP,Supplies & Services,DKA,03/02/2012,11-00898,1500,Horizon Social Housing Ltd
Nottinghamshire County Council,1111/1001,Children and Young People,CYP,Supplies & Services,DKA,03/02/2012,11-00899,1500,Horizon Social Housing Ltd
Nottinghamshire County Council,1111/1001,Children and Young People,CYP,Supplies & Services,DKA,03/02/2012,11-00900,1500,Horizon Social Housing Ltd
Nottinghamshire County Council,1111/1001,Children and Young People,CYP,Supplies & Services,DKA,03/02/2012,11-00903,1500,Horizon Social Housing Ltd
Nottinghamshire County Council,1111/1001,Children and Young People,CYP,Supplies & Services,DKA,03/02/2012,11-00904,1500,Horizon Social Housing Ltd
Nottinghamshire County Council,1111/1001,Children and Young People,CYP,Supplies & Services,DKA,03/02/2012,11-00910,1500,Horizon Social Housing Ltd
Nottinghamshire County Council,1111/1001,Children and Young People,CYP,Supplies & Services,DKA,03/02/2012,11-00912,1500,Horizon Social Housing Ltd
Nottinghamshire County Council,1111/1001,Children and Young People,CYP,Supplies & Services,DKA,06/02/2012,11-00957,9101.65,Foster Care Associates Ltd
Nottinghamshire County Council,1111/1001,Children and Young People,CYP,Supplies & Services,DKA,07/02/2012,11-01265,1500,Horizon Social Housing Ltd
Nottinghamshire County Council,1111/1001,Children and Young People,CYP,Supplies & Services,DKA,07/02/2012,11-01267,1500,Horizon Social Housing Ltd
Nottinghamshire County Council,1111/1001,Children and Young People,CYP,Supplies & Services,DKA,07/02/2012,11-01270,1500,Horizon Social Housing Ltd
Nottinghamshire County Council,1111/1001,Children and Young People,CYP,Supplies & Services,DKA,07/02/2012,11-01274,750,Lloyds Tsb Commercial Finance
Nottinghamshire County Council,1111/1001,Children and Young People,CYP,Supplies & Services,DKA,07/02/2012,11-01276,1550,Carefirst Services
Nottinghamshire County Council,1111/1001,Children and Young People,CYP,Supplies & Services,DKA,07/02/2012,11-01277,1500,Horizon Social Housing Ltd
Nottinghamshire County Council,1111/1001,Children and Young People,CYP,Supplies & Services,DKA,07/02/2012,11-01304,1500,Horizon Social Housing Ltd
Nottinghamshire County Council,1111/1001,Children and Young People,CYP,Supplies & Services,DKA,09/02/2012,11-00198,500,Derbyshire County Council
Nottinghamshire County Council,1111/1001,Children and Young People,CYP,Supplies & Services,DKA,09/02/2012,11-01942,1500,Carefirst Services
Nottinghamshire County Council,1111/1001,Children and Young People,CYP,Supplies & Services,DKA,09/02/2012,11-01944,900,Carefirst Services
Nottinghamshire County Council,1111/1001,Children and Young People,CYP,Supplies & Services,DKA,10/02/2012,11-00598,2044.9,Nottm Community Housing Assoc
Nottinghamshire County Council,1111/1001,Children and Young People,CYP,Supplies & Services,DKA,10/02/2012,11-02040,2350,Carefirst Services
Nottinghamshire County Council,1111/1001,Children and Young People,CYP,Supplies & Services,DKA,10/02/2012,11-02042,1500,Horizon Social Housing Ltd
Nottinghamshire County Council,1111/1001,Children and Young People,CYP,Supplies & Services,DKA,13/02/2012,11-02211,700,Carefirst Services
Nottinghamshire County Council,1111/1001,Children and Young People,CYP,Supplies & Services,DKA,13/02/2012,11-02296,2808,Hope Fostering Services Ltd
Nottinghamshire County Council,1111/1001,Children and Young People,CYP,Supplies & Services,DKA,14/02/2012,11-02309,1500,Horizon Social Housing Ltd
Nottinghamshire County Council,1111/1001,Children and Young People,CYP,Supplies & Services,DKA,14/02/2012,11-02310,1500,Horizon Social Housing Ltd
Nottinghamshire County Council,1111/1001,Children and Young People,CYP,Supplies & Services,DKA,15/02/2012,11-02524,3068,Stepping Stones
Nottinghamshire County Council,1111/1001,Children and Young People,CYP,Supplies & Services,DKA,15/02/2012,11-02631,889.8,Nottm Community Housing Ass
Nottinghamshire County Council,1111/1001,Children and Young People,CYP,Supplies & Services,DKA,15/02/2012,11-07057,6250,Family Action
Nottinghamshire County Council,1111/1001,Children and Young People,CYP,Supplies & Services,DKA,16/02/2012,11-02745,129943,Fountaindale Special School
Nottinghamshire County Council,1111/1001,Children and Young People,CYP,Supplies & Services,DKA,16/02/2012,11-02746,2160,Norsaca Society Office
Nottinghamshire County Council,1111/1001,Children and Young People,CYP,Supplies & Services,DKA,17/02/2012,11-00720,3592,Toot Hill School
Nottinghamshire County Council,1111/1001,Children and Young People,CYP,Supplies & Services,DKA,17/02/2012,11-01627,1163.16,TPM Services UK Ltd
Nottinghamshire County Council,1111/1001,Children and Young People,CYP,Supplies & Services,DKA,20/02/2012,11-03047,500,Churchill Lettings
Nottinghamshire County Council,1111/1001,Children and Young People,CYP,Supplies & Services,DKA,22/02/2012,11-03362,500,Ashfield Foster Carers Support Grou
Nottinghamshire County Council,1111/1001,Children and Young People,CYP,Supplies & Services,DKA,22/02/2012,11-03428,1500,Horizon Social Housing Ltd
Nottinghamshire County Council,1111/1001,Children and Young People,CYP,Supplies & Services,DKA,22/02/2012,11-03445,8160,The Becket Catholic Voluntary Acada
Nottinghamshire County Council,1111/1001,Children and Young People,CYP,Supplies & Services,DKA,24/02/2012,11-03432,1689.1,Framework Housing Assoc
Nottinghamshire County Council,1111/1001,Children and Young People,CYP,Supplies & Services,DKA,27/02/2012,11-03844,3388.5,Foster Care Associates Ltd
Nottinghamshire County Council,1111/1001,Children and Young People,CYP,Supplies & Services,DKA,28/02/2012,11-06927,849,High-Life
Nottinghamshire County Council,1111/1001,Children and Young People,CYP,Supplies & Services,DKA,29/02/2012,11-06958,4190,The Becket Catholic Voluntary Acada
Nottinghamshire County Council,1111/1001,Children and Young People,CYP,Supplies & Services,DKA,29/02/2012,11-06959,3514,Retford Oaks High
Nottinghamshire County Council,1111/1001,Children and Young People,CYP,Supplies & Services,DKA,29/02/2012,11-06960,1369,Brunts Charity
Nottinghamshire County Council,1111/1001,Children and Young People,CYP,Supplies & Services,DKA,29/02/2012,11-06961,3477,Carlton Le Willows Academy
Nottinghamshire County Council,1111/1001,Children and Young People,CYP,Supplies & Services,DKA,29/02/2012,11-06962,11860,Quarrydale School Ncc Account
Nottinghamshire County Council,1111/1001,Children and Young People,CYP,Supplies & Services,DKA,29/02/2012,11-06963,1896,George Spencer Acadamy
Nottinghamshire County Council,1111/1001,Children and Young People,CYP,Supplies & Services,DKA,29/02/2012,11-06964,1034,George Spencer Acadamy
Nottinghamshire County Council,1111/1001,Children and Young People,CYP,Supplies & Services,DKA,29/02/2012,11-06965,3800,St Edmund Campion Catholic Primary
Nottinghamshire County Council,1111/1001,Children and Young People,CYP,Supplies & Services,DKA,29/02/2012,11-06973,21625,Family Action
Nottinghamshire County Council,1111/1001,Children and Young People,CYP,Supplies & Services,DKA,29/02/2012,11-06976,30000,Carlton Le Willows Academy
Nottinghamshire County Council,1111/1001,Children and Young People,CYP,Supplies & Services,DKA,29/02/2012,11-06979,4330,St Edmund Campion Catholic Primary
Nottinghamshire County Council,1111/1001,Children and Young People,CYP,Third Party Payments,EBA,02/02/2012,11-00708,53803.89,Derbyshire County Council
Nottinghamshire County Council,1111/1001,Children and Young People,CYP,Third Party Payments,EBA,09/02/2012,11-07116,6271.5,The Rowan Organisation
Nottinghamshire County Council,1111/1001,Children and Young People,CYP,Third Party Payments,EBA,10/02/2012,11-07135,1900.8,The Rowan Organisation
Nottinghamshire County Council,1111/1001,Children and Young People,CYP,Third Party Payments,EBA,22/02/2012,11-07086,38741.62,Family Action
Nottinghamshire County Council,1111/1001,Children and Young People,CYP,Third Party Payments,EBA,22/02/2012,11-07109,42241.63,Family Action
Nottinghamshire County Council,1111/1001,Children and Young People,CYP,Third Party Payments,EBA,23/02/2012,11-03546,29619.47,Derbyshire County Council
Nottinghamshire County Council,1111/1001,Children and Young People,CYP,Third Party Payments,EBA,23/02/2012,11-03551,10771.27,Leicestershire County Council
Nottinghamshire County Council,1111/1001,Children and Young People,CYP,Third Party Payments,EBA,24/02/2012,11-07137,75000,Family Action
Nottinghamshire County Council,1111/1001,Children and Young People,CYP,Third Party Payments,EBA,29/02/2012,11-06945,1000,Notts Training Network
Nottinghamshire County Council,1111/1001,Children and Young People,CYP,Third Party Payments,EBA,29/02/2012,11-07125,36000,Catch 22
Nottinghamshire County Council,1111/1001,Children and Young People,CYP,Third Party Payments,EBA,29/02/2012,11-07126,12500.33,Catch 22
Nottinghamshire County Council,1111/1001,Children and Young People,CYP,Third Party Payments,ECA,01/02/2012,11-00300,668965.83,Nottinghamshire Healthcare Nhs Trus
Nottinghamshire County Council,1111/1001,Children and Young People,CYP,Third Party Payments,ECA,20/02/2012,11-03076,2074.65,Nottinghamshire Healthcare Nhs Trus
Nottinghamshire County Council,1111/1001,Children and Young People,CYP,Third Party Payments,EFA,02/02/2012,11-00513,3300,Educational Excellence
Nottinghamshire County Council,1111/1001,Children and Young People,CYP,Third Party Payments,EFA,02/02/2012,11-00514,3300,Educational Excellence
Nottinghamshire County Council,1111/1001,Children and Young People,CYP,Third Party Payments,EFA,02/02/2012,11-00591,3000,Hope Fostering Services Ltd
Nottinghamshire County Council,1111/1001,Children and Young People,CYP,Third Party Payments,EFA,02/02/2012,11-00703,15657.67,Senad Ltd
Nottinghamshire County Council,1111/1001,Children and Young People,CYP,Third Party Payments,EFA,02/02/2012,11-00704,4635,Sutherland House Trading Ltd
Nottinghamshire County Council,1111/1001,Children and Young People,CYP,Third Party Payments,EFA,02/02/2012,11-00705,23920,Whitegates (Sparken Hill)
Nottinghamshire County Council,1111/1001,Children and Young People,CYP,Third Party Payments,EFA,02/02/2012,11-00706,4635,Sutherland House Trading Ltd
Nottinghamshire County Council,1111/1001,Children and Young People,CYP,Third Party Payments,EFA,02/02/2012,11-00707,9769.9,Bredon School (2002) Ltd
Nottinghamshire County Council,1111/1001,Children and Young People,CYP,Third Party Payments,EFA,02/02/2012,11-00709,5836.95,Maple Hayes School
Nottinghamshire County Council,1111/1001,Children and Young People,CYP,Third Party Payments,EFA,02/02/2012,11-00710,8950,I Can Services Ltd
Nottinghamshire County Council,1111/1001,Children and Young People,CYP,Third Party Payments,EFA,02/02/2012,11-00711,4317.95,Maple Hayes School
Nottinghamshire County Council,1111/1001,Children and Young People,CYP,Third Party Payments,EFA,02/02/2012,11-00712,2706.17,7ks Corporate & Finance
Nottinghamshire County Council,1111/1001,Children and Young People,CYP,Third Party Payments,EFA,02/02/2012,11-00714,5858.7,Maple Hayes School
Nottinghamshire County Council,1111/1001,Children and Young People,CYP,Third Party Payments,EFA,02/02/2012,11-00715,8685,St Davids College Trust
Nottinghamshire County Council,1111/1001,Children and Young People,CYP,Third Party Payments,EFA,06/02/2012,11-00935,928,Swinton Lock Activity Centre
Nottinghamshire County Council,1111/1001,Children and Young People,CYP,Third Party Payments,EFA,06/02/2012,11-01017,8694,I Can Services Ltd
Nottinghamshire County Council,1111/1001,Children and Young People,CYP,Third Party Payments,EFA,06/02/2012,11-01018,8157,Mary Hare School
Nottinghamshire County Council,1111/1001,Children and Young People,CYP,Third Party Payments,EFA,08/02/2012,11-01681,5946,A4e Ltd
Nottinghamshire County Council,1111/1001,Children and Young People,CYP,Third Party Payments,EFA,09/02/2012,11-01943,662,Tough Furniture Ltd
Nottinghamshire County Council,1111/1001,Children and Young People,CYP,Third Party Payments,EFA,10/02/2012,11-02035,5680,I Can Services Ltd
Nottinghamshire County Council,1111/1001,Children and Young People,CYP,Third Party Payments,EFA,10/02/2012,11-02036,5858.7,Maple Hayes School
Nottinghamshire County Council,1111/1001,Children and Young People,CYP,Third Party Payments,EFA,10/02/2012,11-07141,7812,The West Bridgford Equestrian Centr
Nottinghamshire County Council,1111/1001,Children and Young People,CYP,Third Party Payments,EFA,13/02/2012,11-00517,1278.18,Eileen Fursland
Nottinghamshire County Council,1111/1001,Children and Young People,CYP,Third Party Payments,EFA,20/02/2012,11-03063,3000,Hope Fostering Services Ltd
Nottinghamshire County Council,1111/1001,Children and Young People,CYP,Third Party Payments,EFA,22/02/2012,11-03451,2808,Hope Fostering Services Ltd
Nottinghamshire County Council,1111/1001,Children and Young People,CYP,Third Party Payments,EFA,22/02/2012,11-07328,7800,Stone Soup Project
Nottinghamshire County Council,1111/1001,Children and Young People,CYP,Third Party Payments,EFA,23/02/2012,11-03548,18305,Sutherland House Trading Ltd
Nottinghamshire County Council,1111/1001,Children and Young People,CYP,Third Party Payments,EFA,23/02/2012,11-03549,19240,Sutherland House Trading Ltd
Nottinghamshire County Council,1111/1001,Children and Young People,CYP,Third Party Payments,EFA,23/02/2012,11-03550,501.7,Sutherland House Trading Ltd
Nottinghamshire County Council,1111/1001,Children and Young People,CYP,Third Party Payments,EFA,27/02/2012,11-03452,3537.1,Foster Care Associates Ltd
Nottinghamshire County Council,1111/1001,Children and Young People,CYP,Third Party Payments,EFA,27/02/2012,11-03845,2992.63,Fostering Solutions Ltd
Nottinghamshire County Council,1111/1001,Children and Young People,CYP,Third Party Payments,EFA,27/02/2012,11-03846,1651.1,Fostering Solutions Ltd
Nottinghamshire County Council,1111/1001,Children and Young People,CYP,Third Party Payments,EFA,29/02/2012,11-06966,2563.74,7ks Corporate & Finance
Nottinghamshire County Council,1111/1001,Children and Young People,CYP,Third Party Payments,EFA,29/02/2012,11-07033,766.5,Sarah Mann Shaw
Nottinghamshire County Council,1111/1001,Children and Young People,CYP,Third Party Payments,EGA,01/02/2012,11-00371,1224.5,Foster Care Associates Ltd
Nottinghamshire County Council,1111/1001,Children and Young People,CYP,Third Party Payments,EGA,01/02/2012,11-00372,550,Fostering People Ltd
Nottinghamshire County Council,1111/1001,Children and Young People,CYP,Third Party Payments,EGA,01/02/2012,11-00373,550,Fostering People Ltd
Nottinghamshire County Council,1111/1001,Children and Young People,CYP,Third Party Payments,EGA,01/02/2012,11-00374,979.76,At Your Service Care Ltd
Nottinghamshire County Council,1111/1001,Children and Young People,CYP,Third Party Payments,EGA,02/02/2012,11-00061,525,Arnold House Day Nursery
Nottinghamshire County Council,1111/1001,Children and Young People,CYP,Third Party Payments,EGA,02/02/2012,11-00062,777,Ravenshead Out Of School Club
Nottinghamshire County Council,1111/1001,Children and Young People,CYP,Third Party Payments,EGA,02/02/2012,11-00519,1200,Rocking Horse Nursery Butlers Hill
Nottinghamshire County Council,1111/1001,Children and Young People,CYP,Third Party Payments,EGA,02/02/2012,11-00520,900,Church House Day Nursery
Nottinghamshire County Council,1111/1001,Children and Young People,CYP,Third Party Payments,EGA,02/02/2012,11-00522,1125,Valmarys Childrens Centre 2
Nottinghamshire County Council,1111/1001,Children and Young People,CYP,Third Party Payments,EGA,02/02/2012,11-07052,19233.25,S Yorks Victim Offender Mediation S
Nottinghamshire County Council,1111/1001,Children and Young People,CYP,Third Party Payments,EGA,06/02/2012,11-00996,12975.71,Progressive Care
Nottinghamshire County Council,1111/1001,Children and Young People,CYP,Third Party Payments,EGA,06/02/2012,11-00997,3252.9,Jay Fostering
Nottinghamshire County Council,1111/1001,Children and Young People,CYP,Third Party Payments,EGA,06/02/2012,11-00998,793.5,Quayside Care Ltd
Nottinghamshire County Council,1111/1001,Children and Young People,CYP,Third Party Payments,EGA,06/02/2012,11-00999,14083.33,Fairview Only Total Care Matters Lt
Nottinghamshire County Council,1111/1001,Children and Young People,CYP,Third Party Payments,EGA,06/02/2012,11-01000,13444,Fairview Only Total Care Matters Lt
Nottinghamshire County Council,1111/1001,Children and Young People,CYP,Third Party Payments,EGA,06/02/2012,11-01001,3074.27,Jay Fostering
Nottinghamshire County Council,1111/1001,Children and Young People,CYP,Third Party Payments,EGA,06/02/2012,11-01002,3074.27,Jay Fostering
Nottinghamshire County Council,1111/1001,Children and Young People,CYP,Third Party Payments,EGA,06/02/2012,11-01003,3074.27,Jay Fostering
Nottinghamshire County Council,1111/1001,Children and Young People,CYP,Third Party Payments,EGA,06/02/2012,11-01004,5692.53,The National Fostering Agency
Nottinghamshire County Council,1111/1001,Children and Young People,CYP,Third Party Payments,EGA,06/02/2012,11-01005,3150.84,The National Fostering Agency
Nottinghamshire County Council,1111/1001,Children and Young People,CYP,Third Party Payments,EGA,06/02/2012,11-01006,1680,Bettercare Keys Ltd
Nottinghamshire County Council,1111/1001,Children and Young People,CYP,Third Party Payments,EGA,06/02/2012,11-01008,13650,Fairview Only Total Care Matters Lt
Nottinghamshire County Council,1111/1001,Children and Young People,CYP,Third Party Payments,EGA,06/02/2012,11-01009,2166.86,Stepping Stones
Nottinghamshire County Council,1111/1001,Children and Young People,CYP,Third Party Payments,EGA,06/02/2012,11-01010,1586.84,Stepping Stones
Nottinghamshire County Council,1111/1001,Children and Young People,CYP,Third Party Payments,EGA,06/02/2012,11-01053,10628.67,Northerncare
Nottinghamshire County Council,1111/1001,Children and Young People,CYP,Third Party Payments,EGA,07/02/2012,11-01281,1493.8,Cherubs Childrens Centre Pleasley
Nottinghamshire County Council,1111/1001,Children and Young People,CYP,Third Party Payments,EGA,07/02/2012,11-01282,746.9,Treetops Nursery
Nottinghamshire County Council,1111/1001,Children and Young People,CYP,Third Party Payments,EGA,07/02/2012,11-01283,746.9,Pelham Pre-School
Nottinghamshire County Council,1111/1001,Children and Young People,CYP,Third Party Payments,EGA,07/02/2012,11-01298,1120.35,Killisick Pre-School
Nottinghamshire County Council,1111/1001,Children and Young People,CYP,Third Party Payments,EGA,07/02/2012,11-01299,1120.35,Little Kites Pre-School
Nottinghamshire County Council,1111/1001,Children and Young People,CYP,Third Party Payments,EGA,07/02/2012,11-01300,570.36,PSLA Meden Vale Childcare
Nottinghamshire County Council,1111/1001,Children and Young People,CYP,Third Party Payments,EGA,07/02/2012,11-01301,1493.8,Duncroft Day Nursery
Nottinghamshire County Council,1111/1001,Children and Young People,CYP,Third Party Payments,EGA,07/02/2012,11-07090,3554.46,Fostering Solutions Ltd
Nottinghamshire County Council,1111/1001,Children and Young People,CYP,Third Party Payments,EGA,07/02/2012,11-07094,3376.74,Fostering Solutions Ltd
Nottinghamshire County Council,1111/1001,Children and Young People,CYP,Third Party Payments,EGA,08/02/2012,11-01402,7765.26,Farndon St Peters Early Years
Nottinghamshire County Council,1111/1001,Children and Young People,CYP,Third Party Payments,EGA,08/02/2012,11-01432,621,Quayside Care Ltd
Nottinghamshire County Council,1111/1001,Children and Young People,CYP,Third Party Payments,EGA,08/02/2012,11-01433,552,Quayside Care Ltd
Nottinghamshire County Council,1111/1001,Children and Young People,CYP,Third Party Payments,EGA,08/02/2012,11-01434,13604.04,Scope Central Trading
Nottinghamshire County Council,1111/1001,Children and Young People,CYP,Third Party Payments,EGA,08/02/2012,11-01435,2871.43,The Kirkby Trust
Nottinghamshire County Council,1111/1001,Children and Young People,CYP,Third Party Payments,EGA,08/02/2012,11-01436,10628.57,Northerncare
Nottinghamshire County Council,1111/1001,Children and Young People,CYP,Third Party Payments,EGA,08/02/2012,11-01437,5757.01,Hope Fostering Services Ltd
Nottinghamshire County Council,1111/1001,Children and Young People,CYP,Third Party Payments,EGA,08/02/2012,11-01439,13703.4,Care Today
Nottinghamshire County Council,1111/1001,Children and Young People,CYP,Third Party Payments,EGA,08/02/2012,11-07092,3554.46,Fostering Solutions Ltd
Nottinghamshire County Council,1111/1001,Children and Young People,CYP,Third Party Payments,EGA,08/02/2012,11-07115,3423.95,Five Rivers Child Care Ltd
Nottinghamshire County Council,1111/1001,Children and Young People,CYP,Third Party Payments,EGA,09/02/2012,11-00070,2486.4,The Rowan Organisation
Nottinghamshire County Council,1111/1001,Children and Young People,CYP,Third Party Payments,EGA,09/02/2012,11-01689,13150.14,Lowdham & Epperstone Pre-School
Nottinghamshire County Council,1111/1001,Children and Young People,CYP,Third Party Payments,EGA,09/02/2012,11-01691,9615.86,Pelham Pre-School
Nottinghamshire County Council,1111/1001,Children and Young People,CYP,Third Party Payments,EGA,09/02/2012,11-01698,13150.14,Lowdham & Epperstone Pre-School
Nottinghamshire County Council,1111/1001,Children and Young People,CYP,Third Party Payments,EGA,09/02/2012,11-07122,3442.88,Archway Care Ltd
Nottinghamshire County Council,1111/1001,Children and Young People,CYP,Third Party Payments,EGA,10/02/2012,11-00031,2612.61,Nottinghamshire Helathcare NHS Trus
Nottinghamshire County Council,1111/1001,Children and Young People,CYP,Third Party Payments,EGA,10/02/2012,11-02003,2410.45,Tiny World Mansfield
Nottinghamshire County Council,1111/1001,Children and Young People,CYP,Third Party Payments,EGA,10/02/2012,11-02004,746.9,Granby House Nursery
Nottinghamshire County Council,1111/1001,Children and Young People,CYP,Third Party Payments,EGA,10/02/2012,11-02005,1459.85,West Street Pre-School
Nottinghamshire County Council,1111/1001,Children and Young People,CYP,Third Party Payments,EGA,10/02/2012,11-02006,746.9,Oceans Day Nursery
Nottinghamshire County Council,1111/1001,Children and Young People,CYP,Third Party Payments,EGA,10/02/2012,11-02007,1799.35,Kidzgrove
Nottinghamshire County Council,1111/1001,Children and Young People,CYP,Third Party Payments,EGA,10/02/2012,11-02008,1493.8,Shaping Futures Ltd
Nottinghamshire County Council,1111/1001,Children and Young People,CYP,Third Party Payments,EGA,13/02/2012,11-07159,3376.83,Fostering Solutions Ltd
Nottinghamshire County Council,1111/1001,Children and Young People,CYP,Third Party Payments,EGA,14/02/2012,11-02391,746.9,Shaping Futures Oakham Day Nursery
Nottinghamshire County Council,1111/1001,Children and Young People,CYP,Third Party Payments,EGA,14/02/2012,11-07171,3096.9,Fostering People Ltd
Nottinghamshire County Council,1111/1001,Children and Young People,CYP,Third Party Payments,EGA,15/02/2012,11-02659,14542,I Can Services Ltd
Nottinghamshire County Council,1111/1001,Children and Young People,CYP,Third Party Payments,EGA,16/02/2012,11-01326,1506.12,Pre School Learning Alliance
Nottinghamshire County Council,1111/1001,Children and Young People,CYP,Third Party Payments,EGA,16/02/2012,11-02660,960,Bettercare Keys Ltd
Nottinghamshire County Council,1111/1001,Children and Young People,CYP,Third Party Payments,EGA,16/02/2012,11-02661,11071.34,Broadwood Educational Services Ltd
Nottinghamshire County Council,1111/1001,Children and Young People,CYP,Third Party Payments,EGA,16/02/2012,11-02663,4669.8,Premier Training Nottingham
Nottinghamshire County Council,1111/1001,Children and Young People,CYP,Third Party Payments,EGA,16/02/2012,11-02669,13604.04,Scope Central Trading
Nottinghamshire County Council,1111/1001,Children and Young People,CYP,Third Party Payments,EGA,16/02/2012,11-02670,13444,Fairview Only Total Care Matters Lt
Nottinghamshire County Council,1111/1001,Children and Young People,CYP,Third Party Payments,EGA,16/02/2012,11-02671,15878,Wings Education Ltd
Nottinghamshire County Council,1111/1001,Children and Young People,CYP,Third Party Payments,EGA,16/02/2012,11-02672,18821.43,Turnaround
Nottinghamshire County Council,1111/1001,Children and Young People,CYP,Third Party Payments,EGA,16/02/2012,11-02673,833.72,Newark Emmaus Trust
Nottinghamshire County Council,1111/1001,Children and Young People,CYP,Third Party Payments,EGA,16/02/2012,11-02674,1990.6,Newark Emmaus Trust
Nottinghamshire County Council,1111/1001,Children and Young People,CYP,Third Party Payments,EGA,16/02/2012,11-02675,13064.33,Direct Care Ltd
Nottinghamshire County Council,1111/1001,Children and Young People,CYP,Third Party Payments,EGA,16/02/2012,11-02676,14083.33,Fairview Only Total Care Matters Lt
Nottinghamshire County Council,1111/1001,Children and Young People,CYP,Third Party Payments,EGA,16/02/2012,11-02677,36883,Wings Education Ltd
Nottinghamshire County Council,1111/1001,Children and Young People,CYP,Third Party Payments,EGA,16/02/2012,11-02678,2418.39,Hope Fostering Services Ltd
Nottinghamshire County Council,1111/1001,Children and Young People,CYP,Third Party Payments,EGA,16/02/2012,11-02679,23295,Wings Education Ltd
Nottinghamshire County Council,1111/1001,Children and Young People,CYP,Third Party Payments,EGA,16/02/2012,11-02680,4033,I Can Services Ltd
Nottinghamshire County Council,1111/1001,Children and Young People,CYP,Third Party Payments,EGA,16/02/2012,11-02683,6678.57,Turnaround
Nottinghamshire County Council,1111/1001,Children and Young People,CYP,Third Party Payments,EGA,16/02/2012,11-02684,14000,Blue Mountain Homes Ltd
Nottinghamshire County Council,1111/1001,Children and Young People,CYP,Third Party Payments,EGA,16/02/2012,11-02685,13263.66,Direct Care Ltd
Nottinghamshire County Council,1111/1001,Children and Young People,CYP,Third Party Payments,EGA,16/02/2012,11-02686,13650,Fairview Only Total Care Matters Lt
Nottinghamshire County Council,1111/1001,Children and Young People,CYP,Third Party Payments,EGA,16/02/2012,11-02687,26666.67,Wilds Lodge School
Nottinghamshire County Council,1111/1001,Children and Young People,CYP,Third Party Payments,EGA,16/02/2012,11-02688,3911.4,Fostering People Ltd
Nottinghamshire County Council,1111/1001,Children and Young People,CYP,Third Party Payments,EGA,16/02/2012,11-02693,908.5,G4s Policing Solutions Ltd
Nottinghamshire County Council,1111/1001,Children and Young People,CYP,Third Party Payments,EGA,16/02/2012,11-02696,2162.86,Homeforce
Nottinghamshire County Council,1111/1001,Children and Young People,CYP,Third Party Payments,EGA,16/02/2012,11-02704,3498.57,Hillcrest Nursing Home
Nottinghamshire County Council,1111/1001,Children and Young People,CYP,Third Party Payments,EGA,16/02/2012,11-02706,2237.23,I Can Services Ltd
Nottinghamshire County Council,1111/1001,Children and Young People,CYP,Third Party Payments,EGA,16/02/2012,11-02714,1992.68,Foster Care Associates Ltd
Nottinghamshire County Council,1111/1001,Children and Young People,CYP,Third Party Payments,EGA,16/02/2012,11-02715,3096.9,Fostering People Ltd
Nottinghamshire County Council,1111/1001,Children and Young People,CYP,Third Party Payments,EGA,16/02/2012,11-02716,3498.57,Hillcrest Nursing Home
Nottinghamshire County Council,1111/1001,Children and Young People,CYP,Third Party Payments,EGA,16/02/2012,11-02717,3186.49,The National Fostering Agency
Nottinghamshire County Council,1111/1001,Children and Young People,CYP,Third Party Payments,EGA,16/02/2012,11-02719,2629.46,Hillcrest Nursing Home
Nottinghamshire County Council,1111/1001,Children and Young People,CYP,Third Party Payments,EGA,16/02/2012,11-02722,14171.34,Continuum Group
Nottinghamshire County Council,1111/1001,Children and Young People,CYP,Third Party Payments,EGA,16/02/2012,11-02725,3478.2,Anglia Fostering Agency
Nottinghamshire County Council,1111/1001,Children and Young People,CYP,Third Party Payments,EGA,16/02/2012,11-02726,1586.84,Stepping Stones
Nottinghamshire County Council,1111/1001,Children and Young People,CYP,Third Party Payments,EGA,16/02/2012,11-02727,13285.67,Bettercare Keys Ltd
Nottinghamshire County Council,1111/1001,Children and Young People,CYP,Third Party Payments,EGA,16/02/2012,11-02728,7308.48,Care Today
Nottinghamshire County Council,1111/1001,Children and Young People,CYP,Third Party Payments,EGA,16/02/2012,11-02729,12221.47,Direct Care Ltd
Nottinghamshire County Council,1111/1001,Children and Young People,CYP,Third Party Payments,EGA,16/02/2012,11-02730,12407.94,Direct Care Ltd
Nottinghamshire County Council,1111/1001,Children and Young People,CYP,Third Party Payments,EGA,16/02/2012,11-02731,20750,Hesley Group Ltd
Nottinghamshire County Council,1111/1001,Children and Young People,CYP,Third Party Payments,EGA,16/02/2012,11-02732,20750,Hesley Group Ltd
Nottinghamshire County Council,1111/1001,Children and Young People,CYP,Third Party Payments,EGA,16/02/2012,11-02733,20750,Hesley Group Ltd
Nottinghamshire County Council,1111/1001,Children and Young People,CYP,Third Party Payments,EGA,16/02/2012,11-02734,2300.06,Lloyds Tsb Commercial Finance
Nottinghamshire County Council,1111/1001,Children and Young People,CYP,Third Party Payments,EGA,16/02/2012,11-02735,3323.64,Hillcrest Nursing Home
Nottinghamshire County Council,1111/1001,Children and Young People,CYP,Third Party Payments,EGA,16/02/2012,11-02748,5837.62,Lincolnshire County Council
Nottinghamshire County Council,1111/1001,Children and Young People,CYP,Third Party Payments,EGA,16/02/2012,11-02749,34825,Wings Education Ltd
Nottinghamshire County Council,1111/1001,Children and Young People,CYP,Third Party Payments,EGA,16/02/2012,11-02750,3478.2,Anglia Fostering Agency
Nottinghamshire County Council,1111/1001,Children and Young People,CYP,Third Party Payments,EGA,16/02/2012,11-02752,1442.8,16 Plus
Nottinghamshire County Council,1111/1001,Children and Young People,CYP,Third Party Payments,EGA,16/02/2012,11-02753,2841.4,16 Plus
Nottinghamshire County Council,1111/1001,Children and Young People,CYP,Third Party Payments,EGA,16/02/2012,11-02754,3049.16,16 Plus
Nottinghamshire County Council,1111/1001,Children and Young People,CYP,Third Party Payments,EGA,16/02/2012,11-02755,2236.34,16 Plus
Nottinghamshire County Council,1111/1001,Children and Young People,CYP,Third Party Payments,EGA,16/02/2012,11-02756,963.27,16 Plus
Nottinghamshire County Council,1111/1001,Children and Young People,CYP,Third Party Payments,EGA,16/02/2012,11-02757,2459,16 Plus
Nottinghamshire County Council,1111/1001,Children and Young People,CYP,Third Party Payments,EGA,16/02/2012,11-02758,552.25,G4s Policing Solutions Ltd
Nottinghamshire County Council,1111/1001,Children and Young People,CYP,Third Party Payments,EGA,16/02/2012,11-02796,2629.46,Hillcrest Nursing Home
Nottinghamshire County Council,1111/1001,Children and Young People,CYP,Third Party Payments,EGA,16/02/2012,11-02797,3323.64,Hillcrest Nursing Home
Nottinghamshire County Council,1111/1001,Children and Young People,CYP,Third Party Payments,EGA,16/02/2012,11-07200,3109.3,Hope Fostering Services Ltd
Nottinghamshire County Council,1111/1001,Children and Young People,CYP,Third Party Payments,EGA,20/02/2012,11-07266,4118.66,By The Bridge
Nottinghamshire County Council,1111/1001,Children and Young People,CYP,Third Party Payments,EGA,20/02/2012,11-07268,4118.57,By The Bridge
Nottinghamshire County Council,1111/1001,Children and Young People,CYP,Third Party Payments,EGA,20/02/2012,11-07274,5363,Fostering People Ltd
Nottinghamshire County Council,1111/1001,Children and Young People,CYP,Third Party Payments,EGA,20/02/2012,11-07275,5692.53,The National Fostering Agency
Nottinghamshire County Council,1111/1001,Children and Young People,CYP,Third Party Payments,EGA,20/02/2012,11-07276,1626.24,The National Fostering Agency
Nottinghamshire County Council,1111/1001,Children and Young People,CYP,Third Party Payments,EGA,20/02/2012,11-07277,1414.53,The National Fostering Agency
Nottinghamshire County Council,1111/1001,Children and Young People,CYP,Third Party Payments,EGA,20/02/2012,11-07278,3096.9,Fostering People Ltd
Nottinghamshire County Council,1111/1001,Children and Young People,CYP,Third Party Payments,EGA,20/02/2012,11-07279,3270.5,Fostering People Ltd
Nottinghamshire County Council,1111/1001,Children and Young People,CYP,Third Party Payments,EGA,20/02/2012,11-07280,3270.5,Fostering People Ltd
Nottinghamshire County Council,1111/1001,Children and Young People,CYP,Third Party Payments,EGA,20/02/2012,11-07282,3270.5,Fostering People Ltd
Nottinghamshire County Council,1111/1001,Children and Young People,CYP,Third Party Payments,EGA,20/02/2012,11-07283,3193.31,Jay Fostering
Nottinghamshire County Council,1111/1001,Children and Young People,CYP,Third Party Payments,EGA,20/02/2012,11-07284,3410,Fostering People Ltd
Nottinghamshire County Council,1111/1001,Children and Young People,CYP,Third Party Payments,EGA,20/02/2012,11-07285,3410,Fostering People Ltd
Nottinghamshire County Council,1111/1001,Children and Young People,CYP,Third Party Payments,EGA,20/02/2012,11-07286,3410,Fostering People Ltd
Nottinghamshire County Council,1111/1001,Children and Young People,CYP,Third Party Payments,EGA,20/02/2012,11-07289,2777.29,Hope Fostering Services Ltd
Nottinghamshire County Council,1111/1001,Children and Young People,CYP,Third Party Payments,EGA,20/02/2012,11-07290,2922.99,Hope Fostering Services Ltd
Nottinghamshire County Council,1111/1001,Children and Young People,CYP,Third Party Payments,EGA,20/02/2012,11-07291,2922.99,Hope Fostering Services Ltd
Nottinghamshire County Council,1111/1001,Children and Young People,CYP,Third Party Payments,EGA,20/02/2012,11-07292,2777.29,Hope Fostering Services Ltd
Nottinghamshire County Council,1111/1001,Children and Young People,CYP,Third Party Payments,EGA,20/02/2012,11-07293,1485.68,Hope Fostering Services Ltd
Nottinghamshire County Council,1111/1001,Children and Young People,CYP,Third Party Payments,EGA,20/02/2012,11-07295,3096.9,Fostering People Ltd
Nottinghamshire County Council,1111/1001,Children and Young People,CYP,Third Party Payments,EGA,20/02/2012,11-07296,4076.5,Fostering People Ltd
Nottinghamshire County Council,1111/1001,Children and Young People,CYP,Third Party Payments,EGA,20/02/2012,11-07297,1043.9,Fostering People Ltd
Nottinghamshire County Council,1111/1001,Children and Young People,CYP,Third Party Payments,EGA,20/02/2012,11-07300,3074.27,Jay Fostering
Nottinghamshire County Council,1111/1001,Children and Young People,CYP,Third Party Payments,EGA,20/02/2012,11-07301,3184.63,The National Fostering Agency
Nottinghamshire County Council,1111/1001,Children and Young People,CYP,Third Party Payments,EGA,20/02/2012,11-07302,3373.11,The National Fostering Agency
Nottinghamshire County Council,1111/1001,Children and Young People,CYP,Third Party Payments,EGA,20/02/2012,11-07303,3219.97,The National Fostering Agency
Nottinghamshire County Council,1111/1001,Children and Young People,CYP,Third Party Payments,EGA,20/02/2012,11-07304,3300.57,The National Fostering Agency
Nottinghamshire County Council,1111/1001,Children and Young People,CYP,Third Party Payments,EGA,20/02/2012,11-07305,3290.65,The National Fostering Agency
Nottinghamshire County Council,1111/1001,Children and Young People,CYP,Third Party Payments,EGA,20/02/2012,11-07306,3481.92,The National Fostering Agency
Nottinghamshire County Council,1111/1001,Children and Young People,CYP,Third Party Payments,EGA,21/02/2012,11-03282,1586.84,Stepping Stones
Nottinghamshire County Council,1111/1001,Children and Young People,CYP,Third Party Payments,EGA,21/02/2012,11-03283,2280.6,Foster Care Associates Ltd
Nottinghamshire County Council,1111/1001,Children and Young People,CYP,Third Party Payments,EGA,21/02/2012,11-03284,3332.81,Foster Care Associates Ltd
Nottinghamshire County Council,1111/1001,Children and Young People,CYP,Third Party Payments,EGA,21/02/2012,11-03285,671.95,Foster Care Associates Ltd
Nottinghamshire County Council,1111/1001,Children and Young People,CYP,Third Party Payments,EGA,21/02/2012,11-03286,1357.5,Foster Care Associates Ltd
Nottinghamshire County Council,1111/1001,Children and Young People,CYP,Third Party Payments,EGA,21/02/2012,11-03287,12000,Blue Mountain Homes Ltd
Nottinghamshire County Council,1111/1001,Children and Young People,CYP,Third Party Payments,EGA,21/02/2012,11-03288,12000,Blue Mountain Homes Ltd
Nottinghamshire County Council,1111/1001,Children and Young People,CYP,Third Party Payments,EGA,21/02/2012,11-03289,14000,Blue Mountain Homes Ltd
Nottinghamshire County Council,1111/1001,Children and Young People,CYP,Third Party Payments,EGA,21/02/2012,11-03290,800,Blue Mountain Homes Ltd
Nottinghamshire County Council,1111/1001,Children and Young People,CYP,Third Party Payments,EGA,21/02/2012,11-03291,14000,Blue Mountain Homes Ltd
Nottinghamshire County Council,1111/1001,Children and Young People,CYP,Third Party Payments,EGA,21/02/2012,11-03292,800,Blue Mountain Homes Ltd
Nottinghamshire County Council,1111/1001,Children and Young People,CYP,Third Party Payments,EGA,21/02/2012,11-03293,799.96,Castle Homes Care Ltd
Nottinghamshire County Council,1111/1001,Children and Young People,CYP,Third Party Payments,EGA,21/02/2012,11-03294,6242.78,Treehouse Care Fostering Solutions
Nottinghamshire County Council,1111/1001,Children and Young People,CYP,Third Party Payments,EGA,21/02/2012,11-03295,6062.67,Fostering People Ltd
Nottinghamshire County Council,1111/1001,Children and Young People,CYP,Third Party Payments,EGA,21/02/2012,11-03296,36883,Wings Education Ltd
Nottinghamshire County Council,1111/1001,Children and Young People,CYP,Third Party Payments,EGA,21/02/2012,11-03298,17207,Wings Education Ltd
Nottinghamshire County Council,1111/1001,Children and Young People,CYP,Third Party Payments,EGA,21/02/2012,11-03299,17207,Wings Education Ltd
Nottinghamshire County Council,1111/1001,Children and Young People,CYP,Third Party Payments,EGA,21/02/2012,11-03300,36883,Wings Education Ltd
Nottinghamshire County Council,1111/1001,Children and Young People,CYP,Third Party Payments,EGA,21/02/2012,11-03301,47119,Kisimul School
Nottinghamshire County Council,1111/1001,Children and Young People,CYP,Third Party Payments,EGA,21/02/2012,11-03302,4819.85,Pathway Care Solutions Ltd
Nottinghamshire County Council,1111/1001,Children and Young People,CYP,Third Party Payments,EGA,21/02/2012,11-03336,32567,Nottinghamshire Healthcare Nhs Trus
Nottinghamshire County Council,1111/1001,Children and Young People,CYP,Third Party Payments,EGA,21/02/2012,11-03346,164245.64,North Notts College - DUPLICATE
Nottinghamshire County Council,1111/1001,Children and Young People,CYP,Third Party Payments,EGA,21/02/2012,11-03347,177685.34,North Notts College - DUPLICATE
Nottinghamshire County Council,1111/1001,Children and Young People,CYP,Third Party Payments,EGA,21/02/2012,11-03348,162652.24,North Notts College - DUPLICATE
Nottinghamshire County Council,1111/1001,Children and Young People,CYP,Third Party Payments,EGA,21/02/2012,11-03355,3655.5,Team Fostering
Nottinghamshire County Council,1111/1001,Children and Young People,CYP,Third Party Payments,EGA,21/02/2012,11-07157,19233.25,S Yorks Victim Offender Mediation S
Nottinghamshire County Council,1111/1001,Children and Young People,CYP,Third Party Payments,EGA,21/02/2012,11-07316,3260.43,Jay Fostering
Nottinghamshire County Council,1111/1001,Children and Young People,CYP,Third Party Payments,EGA,21/02/2012,11-07319,3074.27,Jay Fostering
Nottinghamshire County Council,1111/1001,Children and Young People,CYP,Third Party Payments,EGA,21/02/2012,11-07323,3396.98,The National Fostering Agency
Nottinghamshire County Council,1111/1001,Children and Young People,CYP,Third Party Payments,EGA,21/02/2012,11-07324,3219.97,The National Fostering Agency
Nottinghamshire County Council,1111/1001,Children and Young People,CYP,Third Party Payments,EGA,22/02/2012,11-02710,828,Quayside Care Ltd
Nottinghamshire County Council,1111/1001,Children and Young People,CYP,Third Party Payments,EGA,22/02/2012,11-03433,2950.8,16 Plus
Nottinghamshire County Council,1111/1001,Children and Young People,CYP,Third Party Payments,EGA,22/02/2012,11-03434,5562.95,Compass Services For Children Ltd
Nottinghamshire County Council,1111/1001,Children and Young People,CYP,Third Party Payments,EGA,22/02/2012,11-03435,4208.25,Foster Care Associates Ltd
Nottinghamshire County Council,1111/1001,Children and Young People,CYP,Third Party Payments,EGA,22/02/2012,11-03436,2628.4,Foster Care Associates Ltd
Nottinghamshire County Council,1111/1001,Children and Young People,CYP,Third Party Payments,EGA,22/02/2012,11-03437,3143.4,Foster Care Associates Ltd
Nottinghamshire County Council,1111/1001,Children and Young People,CYP,Third Party Payments,EGA,22/02/2012,11-03439,3096.9,Fostering People Ltd
Nottinghamshire County Council,1111/1001,Children and Young People,CYP,Third Party Payments,EGA,22/02/2012,11-03440,4208.25,Foster Care Associates Ltd
Nottinghamshire County Council,1111/1001,Children and Young People,CYP,Third Party Payments,EGA,22/02/2012,11-07265,4118.57,By The Bridge
Nottinghamshire County Council,1111/1001,Children and Young People,CYP,Third Party Payments,EGA,23/02/2012,11-01302,746.9,HOOSC-Heathlands Out Of School Club
Nottinghamshire County Council,1111/1001,Children and Young People,CYP,Third Party Payments,EGA,23/02/2012,11-02668,650,Oxford Brookes University
Nottinghamshire County Council,1111/1001,Children and Young People,CYP,Third Party Payments,EGA,23/02/2012,11-03552,746.9,Cherubs Child Care Centre
Nottinghamshire County Council,1111/1001,Children and Young People,CYP,Third Party Payments,EGA,23/02/2012,11-03554,746.9,Zoe's Childminding
Nottinghamshire County Council,1111/1001,Children and Young People,CYP,Third Party Payments,EGA,23/02/2012,11-03669,782,Eden Supported Living Ltd
Nottinghamshire County Council,1111/1001,Children and Young People,CYP,Third Party Payments,EGA,23/02/2012,11-03688,9942.86,Northerncare
Nottinghamshire County Council,1111/1001,Children and Young People,CYP,Third Party Payments,EGA,24/02/2012,11-01007,862.5,Quayside Care Ltd
Nottinghamshire County Council,1111/1001,Children and Young People,CYP,Third Party Payments,EGA,24/02/2012,11-02681,506,Foster Care Associates Ltd
Nottinghamshire County Council,1111/1001,Children and Young People,CYP,Third Party Payments,EGA,24/02/2012,11-02699,897,Quayside Care Ltd
Nottinghamshire County Council,1111/1001,Children and Young People,CYP,Third Party Payments,EGA,24/02/2012,11-02701,897,Quayside Care Ltd
Nottinghamshire County Council,1111/1001,Children and Young People,CYP,Third Party Payments,EGA,24/02/2012,11-03808,17207,Wings Education Ltd
Nottinghamshire County Council,1111/1001,Children and Young People,CYP,Third Party Payments,EGA,24/02/2012,11-03809,17207,Wings Education Ltd
Nottinghamshire County Council,1111/1001,Children and Young People,CYP,Third Party Payments,EGA,24/02/2012,11-03842,733.14,Foster Care Associates Ltd
Nottinghamshire County Council,1111/1001,Children and Young People,CYP,Third Party Payments,EGA,24/02/2012,11-03843,501.1,Fostering People Ltd
Nottinghamshire County Council,1111/1001,Children and Young People,CYP,Third Party Payments,EGA,27/02/2012,11-02712,1992.68,Foster Care Associates Ltd
Nottinghamshire County Council,1111/1001,Children and Young People,CYP,Third Party Payments,EGA,27/02/2012,11-02751,1992.68,Foster Care Associates Ltd
Nottinghamshire County Council,1111/1001,Children and Young People,CYP,Third Party Payments,EGA,27/02/2012,11-03007,2282.8,Fosterplus Ltd
Nottinghamshire County Council,1111/1001,Children and Young People,CYP,Third Party Payments,EGA,27/02/2012,11-03138,37441.75,Pre School Learning Alliance
Nottinghamshire County Council,1111/1001,Children and Young People,CYP,Third Party Payments,EGA,27/02/2012,11-03297,4843.8,Foster Care Associates Ltd
Nottinghamshire County Council,1111/1001,Children and Young People,CYP,Third Party Payments,EGA,27/02/2012,11-06885,1992.68,Foster Care Associates Ltd
Nottinghamshire County Council,1111/1001,Children and Young People,CYP,Third Party Payments,EGA,27/02/2012,11-06886,9942.86,Northerncare
Nottinghamshire County Council,1111/1001,Children and Young People,CYP,Third Party Payments,EGA,27/02/2012,11-07298,3430.77,Foster Care Associates Ltd
Nottinghamshire County Council,1111/1001,Children and Young People,CYP,Third Party Payments,EGA,27/02/2012,11-07299,3332.81,Foster Care Associates Ltd
Nottinghamshire County Council,1111/1001,Children and Young People,CYP,Third Party Payments,EGA,27/02/2012,11-07315,4039.92,Foster Care Associates Ltd
Nottinghamshire County Council,1111/1001,Children and Young People,CYP,Third Party Payments,EGA,27/02/2012,11-07327,6076,Foster Care Associates Ltd
Nottinghamshire County Council,1111/1001,Children and Young People,CYP,Third Party Payments,EGA,28/02/2012,11-06928,52787.1,Hesley Group Ltd
Nottinghamshire County Council,1111/1001,Children and Young People,CYP,Third Party Payments,EGA,28/02/2012,11-06930,1224.5,Foster Care Associates Ltd
Nottinghamshire County Council,1111/1001,Children and Young People,CYP,Third Party Payments,EGA,28/02/2012,11-07281,3270.5,Fostering People Ltd
Nottinghamshire County Council,1111/1001,Children and Young People,CYP,Third Party Payments,EGA,29/02/2012,11-02682,542.1,Foster Care Associates Ltd
Nottinghamshire County Council,1111/1001,Children and Young People,CYP,Third Party Payments,EGA,29/02/2012,11-06970,720.4,Turnaround
Nottinghamshire County Council,1111/1001,Children and Young People,CYP,Third Party Payments,EGA,29/02/2012,11-06971,18821.43,Turnaround
Nottinghamshire County Council,1111/1001,Children and Young People,CYP,Third Party Payments,EGA,29/02/2012,11-06972,18821.43,Turnaround
Nottinghamshire County Council,1111/1001,Children and Young People,CYP,Third Party Payments,EHA,02/02/2012,11-00518,860,Dfw Adoption
Nottinghamshire County Council,1111/1001,Children and Young People,CYP,Third Party Payments,EHA,20/02/2012,11-02983,27885,Cabrini Childrens Society
Nottinghamshire County Council,1111/1001,Children and Young People,CYP,Third Party Payments,EHA,20/02/2012,11-07273,1250,Yorkshire Adoption Agency Ltd
Nottinghamshire County Council,1111/1001,Children and Young People,CYP,Third Party Payments,EHA,22/02/2012,11-03441,860,Dfw Adoption
Nottinghamshire County Council,1111/1001,Children and Young People,CYP,Transfer Payments,GAA,03/02/2012,11-00909,765.6,Darren C Coe
Nottinghamshire County Council,1111/1001,Children and Young People,CYP,Transfer Payments,GAA,08/02/2012,11-00202,600,The Dukeries College
Nottinghamshire County Council,1111/1001,Children and Young People,CYP,Transfer Payments,GAA,13/02/2012,11-02204,1158.3,Spirita Ltd
Nottinghamshire County Council,1111/1001,Children and Young People,CYP,Transfer Payments,GAA,23/02/2012,11-02043,4499,Metropolitan Housing Trust
Nottinghamshire County Council,1111/1001,Children and Young People,CYP,Transfer Payments,GAA,23/02/2012,11-03547,9100,Tring Park School
Nottinghamshire County Council,1111/1001,Children and Young People,CYP,Transfer Payments,GAA,23/02/2012,11-03561,1498,Lupton Reddish Solicitors
Nottinghamshire County Council,1111/1001,Children and Young People,CYP,Support Services,HAA,01/02/2012,11-00085,1785.86,Glenn Ryder Coaches
Nottinghamshire County Council,1111/1001,Children and Young People,CYP,Support Services,HAA,01/02/2012,11-00086,1755.1,Glenn Ryder Coaches
Nottinghamshire County Council,1111/1001,Children and Young People,CYP,Support Services,HAA,01/02/2012,11-00328,1329.12,Gem Mini Travel Ltd
Nottinghamshire County Council,1111/1001,Children and Young People,CYP,Support Services,HAA,01/02/2012,11-00334,2125.34,Nottm City Transport Ltd
Nottinghamshire County Council,1111/1001,Children and Young People,CYP,Support Services,HAA,02/02/2012,11-00048,2088,Midland Fleet Maintenance
Nottinghamshire County Council,1111/1001,Children and Young People,CYP,Support Services,HAA,03/02/2012,11-00799,2071,Garys Coaches Ltd
Nottinghamshire County Council,1111/1001,Children and Young People,CYP,Support Services,HAA,03/02/2012,11-00803,2254.85,Freeway Coaches Ltd
Nottinghamshire County Council,1111/1001,Children and Young People,CYP,Support Services,HAA,03/02/2012,11-00804,2820.1,Freeway Coaches Ltd
Nottinghamshire County Council,1111/1001,Children and Young People,CYP,Support Services,HAA,03/02/2012,11-00805,2219.45,Freeway Coaches Ltd
Nottinghamshire County Council,1111/1001,Children and Young People,CYP,Support Services,HAA,06/02/2012,11-00946,337.5, Sutton Cent Comm Coll - DO NOT USE
Nottinghamshire County Council,1111/1001,Children and Young People,CYP,Support Services,HAA,08/02/2012,11-00202,3748.55,The Dukeries College
Nottinghamshire County Council,1111/1001,Children and Young People,CYP,Support Services,HAA,08/02/2012,11-01448,2674.43,Glenn Ryder Coaches
Nottinghamshire County Council,1111/1001,Children and Young People,CYP,Support Services,HAA,08/02/2012,11-01449,2552.05,Glenn Ryder Coaches
Nottinghamshire County Council,1111/1001,Children and Young People,CYP,Support Services,HAA,08/02/2012,11-01454,9932.6,Premiere Travel Ltd
Nottinghamshire County Council,1111/1001,Children and Young People,CYP,Support Services,HAA,08/02/2012,11-01455,19011.91,Premiere Travel Ltd
Nottinghamshire County Council,1111/1001,Children and Young People,CYP,Support Services,HAA,08/02/2012,11-01457,3133.65,Premiere Travel Ltd
Nottinghamshire County Council,1111/1001,Children and Young People,CYP,Support Services,HAA,08/02/2012,11-01458,3035.66,Redfern Travel
Nottinghamshire County Council,1111/1001,Children and Young People,CYP,Support Services,HAA,08/02/2012,11-01459,2938.8,Redfern Travel
Nottinghamshire County Council,1111/1001,Children and Young People,CYP,Support Services,HAA,08/02/2012,11-01460,2796.15,Redfern Travel
Nottinghamshire County Council,1111/1001,Children and Young People,CYP,Support Services,HAA,08/02/2012,11-01461,18672.35,Redfern Travel
Nottinghamshire County Council,1111/1001,Children and Young People,CYP,Support Services,HAA,08/02/2012,11-01462,10832.3,Redfern Travel
Nottinghamshire County Council,1111/1001,Children and Young People,CYP,Support Services,HAA,08/02/2012,11-01464,2435.25,Redfern Travel
Nottinghamshire County Council,1111/1001,Children and Young People,CYP,Support Services,HAA,08/02/2012,11-01467,1708.1,Vale Travel
Nottinghamshire County Council,1111/1001,Children and Young People,CYP,Support Services,HAA,08/02/2012,11-01470,600,Ace Of Mansfield Ltd
Nottinghamshire County Council,1111/1001,Children and Young People,CYP,Support Services,HAA,08/02/2012,11-01472,2117.2,Arnold Acorn Travel
Nottinghamshire County Council,1111/1001,Children and Young People,CYP,Support Services,HAA,08/02/2012,11-01546,1985,F & J Marriott T/A Unity Coaches
Nottinghamshire County Council,1111/1001,Children and Young People,CYP,Support Services,HAA,08/02/2012,11-01564,1979,Marshalls Of Sutton On Trent Ltd
Nottinghamshire County Council,1111/1001,Children and Young People,CYP,Support Services,HAA,08/02/2012,11-01567,2346.42,Marshalls Of Sutton On Trent Ltd
Nottinghamshire County Council,1111/1001,Children and Young People,CYP,Support Services,HAA,08/02/2012,11-01574,2831,Marshalls Of Sutton On Trent Ltd
Nottinghamshire County Council,1111/1001,Children and Young People,CYP,Support Services,HAA,08/02/2012,11-01579,958.5,Nottm Minibuses & Coaches
Nottinghamshire County Council,1111/1001,Children and Young People,CYP,Support Services,HAA,08/02/2012,11-01581,1642,Trent Motor Traction Company Ltd
Nottinghamshire County Council,1111/1001,Children and Young People,CYP,Support Services,HAA,08/02/2012,11-01586,1695.75,Trent Motor Traction Company Ltd
Nottinghamshire County Council,1111/1001,Children and Young People,CYP,Support Services,HAA,08/02/2012,11-01595,1839.15,Trent Motor Traction Company Ltd
Nottinghamshire County Council,1111/1001,Children and Young People,CYP,Support Services,HAA,08/02/2012,11-01598,1606.35,Jc Coaches
Nottinghamshire County Council,1111/1001,Children and Young People,CYP,Support Services,HAA,08/02/2012,11-01602,9944.55,K & H Doyle Coaches Ltd
Nottinghamshire County Council,1111/1001,Children and Young People,CYP,Support Services,HAA,08/02/2012,11-01608,2631.56,C W Moxon Ltd
Nottinghamshire County Council,1111/1001,Children and Young People,CYP,Support Services,HAA,08/02/2012,11-01610,2999.05,C W Moxon Ltd
Nottinghamshire County Council,1111/1001,Children and Young People,CYP,Support Services,HAA,08/02/2012,11-01612,2003.75,Dunn Motor Traction
Nottinghamshire County Council,1111/1001,Children and Young People,CYP,Support Services,HAA,08/02/2012,11-01613,1446.68,Dunn Motor Traction
Nottinghamshire County Council,1111/1001,Children and Young People,CYP,Support Services,HAA,08/02/2012,11-01614,2582.19,Dunn Motor Traction
Nottinghamshire County Council,1111/1001,Children and Young People,CYP,Support Services,HAA,08/02/2012,11-01615,2041.12,Dunn Motor Traction
Nottinghamshire County Council,1111/1001,Children and Young People,CYP,Support Services,HAA,08/02/2012,11-01616,4987.5,Dunn Motor Traction
Nottinghamshire County Council,1111/1001,Children and Young People,CYP,Support Services,HAA,09/02/2012,11-01730,3084.4,Sharpes Of Nottingham
Nottinghamshire County Council,1111/1001,Children and Young People,CYP,Support Services,HAA,09/02/2012,11-01731,2438.31,Sharpes Of Nottingham
Nottinghamshire County Council,1111/1001,Children and Young People,CYP,Support Services,HAA,09/02/2012,11-01732,2346.78,Sharpes Of Nottingham
Nottinghamshire County Council,1111/1001,Children and Young People,CYP,Support Services,HAA,09/02/2012,11-01733,2640.7,Sharpes Of Nottingham
Nottinghamshire County Council,1111/1001,Children and Young People,CYP,Support Services,HAA,09/02/2012,11-01736,13263.2,Johnson Bros Tours Ltd
Nottinghamshire County Council,1111/1001,Children and Young People,CYP,Support Services,HAA,09/02/2012,11-01737,3458.48,Johnson Bros Tours Ltd
Nottinghamshire County Council,1111/1001,Children and Young People,CYP,Support Services,HAA,09/02/2012,11-01772,6439.88,F & J Marriott T/A Unity Coaches
Nottinghamshire County Council,1111/1001,Children and Young People,CYP,Support Services,HAA,09/02/2012,11-01776,1444,AOT Coaches
Nottinghamshire County Council,1111/1001,Children and Young People,CYP,Support Services,HAA,09/02/2012,11-01777,1984.8,AOT Coaches
Nottinghamshire County Council,1111/1001,Children and Young People,CYP,Support Services,HAA,09/02/2012,11-01778,2926,AOT Coaches
Nottinghamshire County Council,1111/1001,Children and Young People,CYP,Support Services,HAA,09/02/2012,11-01779,2061.35,AOT Coaches
Nottinghamshire County Council,1111/1001,Children and Young People,CYP,Support Services,HAA,09/02/2012,11-01780,2574.31,AOT Coaches
Nottinghamshire County Council,1111/1001,Children and Young People,CYP,Support Services,HAA,09/02/2012,11-01781,2086.4,AOT Coaches
Nottinghamshire County Council,1111/1001,Children and Young People,CYP,Support Services,HAA,09/02/2012,11-01787,2766.19,Tiger European Uk Ltd
Nottinghamshire County Council,1111/1001,Children and Young People,CYP,Support Services,HAA,09/02/2012,11-01788,2403,Tiger European Uk Ltd
Nottinghamshire County Council,1111/1001,Children and Young People,CYP,Support Services,HAA,09/02/2012,11-01789,2407.68,Tiger European Uk Ltd
Nottinghamshire County Council,1111/1001,Children and Young People,CYP,Support Services,HAA,09/02/2012,11-01790,2363,Tiger European Uk Ltd
Nottinghamshire County Council,1111/1001,Children and Young People,CYP,Support Services,HAA,09/02/2012,11-01792,5338.85,Wilfreda Beehive
Nottinghamshire County Council,1111/1001,Children and Young People,CYP,Support Services,HAA,10/02/2012,11-01982,2169.55,Sharpes Of Nottingham
Nottinghamshire County Council,1111/1001,Children and Young People,CYP,Support Services,HAA,10/02/2012,11-01987,3125.2,Travel Wright Ltd
Nottinghamshire County Council,1111/1001,Children and Young People,CYP,Support Services,HAA,10/02/2012,11-01988,2918.56,Travel Wright Ltd
Nottinghamshire County Council,1111/1001,Children and Young People,CYP,Support Services,HAA,10/02/2012,11-01989,2956.22,Travel Wright Ltd
Nottinghamshire County Council,1111/1001,Children and Young People,CYP,Support Services,HAA,10/02/2012,11-01990,1400,Travel Wright Ltd
Nottinghamshire County Council,1111/1001,Children and Young People,CYP,Support Services,HAA,10/02/2012,11-01991,1378,Travel Wright Ltd
Nottinghamshire County Council,1111/1001,Children and Young People,CYP,Support Services,HAA,10/02/2012,11-01992,2712.6,Travel Wright Ltd
Nottinghamshire County Council,1111/1001,Children and Young People,CYP,Support Services,HAA,10/02/2012,11-01994,120,Travel Wright Ltd
Nottinghamshire County Council,1111/1001,Children and Young People,CYP,Support Services,HAA,10/02/2012,11-01997,2732.58,Nottm City Transport Ltd
Nottinghamshire County Council,1111/1001,Children and Young People,CYP,Support Services,HAA,13/02/2012,11-02109,2114.35,Malcolm Keith Hearson
Nottinghamshire County Council,1111/1001,Children and Young People,CYP,Support Services,HAA,13/02/2012,11-02110,2455.65,Malcolm Keith Hearson
Nottinghamshire County Council,1111/1001,Children and Young People,CYP,Support Services,HAA,13/02/2012,11-02111,1080,Kirkhams Coaches
Nottinghamshire County Council,1111/1001,Children and Young People,CYP,Support Services,HAA,13/02/2012,11-02116,3224.14,Silverdale Tours Nottm Ltd
Nottinghamshire County Council,1111/1001,Children and Young People,CYP,Support Services,HAA,13/02/2012,11-02117,2440.1,Silverdale Tours Nottm Ltd
Nottinghamshire County Council,1111/1001,Children and Young People,CYP,Support Services,HAA,13/02/2012,11-02118,2874.9,Silverdale Tours Nottm Ltd
Nottinghamshire County Council,1111/1001,Children and Young People,CYP,Support Services,HAA,13/02/2012,11-02119,2549.1,Silverdale Tours Nottm Ltd
Nottinghamshire County Council,1111/1001,Children and Young People,CYP,Support Services,HAA,13/02/2012,11-02120,1592.37,Silverdale Tours Nottm Ltd
Nottinghamshire County Council,1111/1001,Children and Young People,CYP,Support Services,HAA,13/02/2012,11-02146,3145.5,Stagecoach Services Ltd
Nottinghamshire County Council,1111/1001,Children and Young People,CYP,Support Services,HAA,13/02/2012,11-02159,4448.95,Stagecoach Services Ltd
Nottinghamshire County Council,1111/1001,Children and Young People,CYP,Support Services,HAA,13/02/2012,11-02160,4493.65,Stagecoach Services Ltd
Nottinghamshire County Council,1111/1001,Children and Young People,CYP,Support Services,HAA,13/02/2012,11-02161,2900,Stagecoach Services Ltd
Nottinghamshire County Council,1111/1001,Children and Young People,CYP,Support Services,HAA,13/02/2012,11-02162,2580,Paul S Winson Coaches
Nottinghamshire County Council,1111/1001,Children and Young People,CYP,Support Services,HAA,13/02/2012,11-02163,2861.6,Paul S Winson Coaches
Nottinghamshire County Council,1111/1001,Children and Young People,CYP,Support Services,HAA,13/02/2012,11-02164,2803.45,Paul S Winson Coaches
Nottinghamshire County Council,1111/1001,Children and Young People,CYP,Support Services,HAA,13/02/2012,11-02174,1200,Kirkby College
Nottinghamshire County Council,1111/1001,Children and Young People,CYP,Support Services,HAA,14/02/2012,11-02376,2718.7,Silverdale Tours Nottm Ltd
Nottinghamshire County Council,1111/1001,Children and Young People,CYP,Support Services,HAA,14/02/2012,11-02377,2619.2,Silverdale Tours Nottm Ltd
Nottinghamshire County Council,1111/1001,Children and Young People,CYP,Support Services,HAA,14/02/2012,11-02445,1682.75,Jb Tours Watnall Ltd
Nottinghamshire County Council,1111/1001,Children and Young People,CYP,Support Services,HAA,17/02/2012,11-02214,5550.62,The Dukeries College
Nottinghamshire County Council,1111/1001,Children and Young People,CYP,Support Services,HAA,21/02/2012,11-03198,3373.46,Premiere Travel Ltd
Nottinghamshire County Council,1111/1001,Children and Young People,CYP,Support Services,HAA,21/02/2012,11-03199,2958,Premiere Travel Ltd
Nottinghamshire County Council,1111/1001,Children and Young People,CYP,Support Services,HAA,21/02/2012,11-03240,2045,Gem Mini Travel Ltd
Nottinghamshire County Council,1111/1001,Children and Young People,CYP,Support Services,HAA,24/02/2012,11-03827,2067,AOT Coaches
Nottinghamshire County Council,1111/1001,Children and Young People,CYP,Support Services,HAA,24/02/2012,11-03828,2435,C W Moxon Ltd
Nottinghamshire County Council,1111/1001,Children and Young People,CYP,Support Services,HAA,24/02/2012,11-03831,5520.6,Wallis Coachways
Nottinghamshire County Council,1111/1001,Children and Young People,CYP,Support Services,HAA,24/02/2012,11-03832,2683.4,Wallis Coachways
Nottinghamshire County Council,1111/1001,Children and Young People,CYP,Income,JBA,21/02/2012,11-03333,1244,South Nottinghamshire Academy
Nottinghamshire County Council,1111/1001,Children and Young People,CYP,Income,JBA,21/02/2012,11-03334,3563,Toothill Academy
Nottinghamshire County Council,1111/1001,Adult Social Care and Health,ASCH,Employee Related,ABA,17/02/2012,11-07252,2000,Newark & Sherwood District Council
Nottinghamshire County Council,1111/1001,Adult Social Care and Health,ASCH,Employee Related,ABA,24/02/2012,11-03816,1071.6,Evro Ltd
Nottinghamshire County Council,1111/1001,Adult Social Care and Health,ASCH,Premises Related,BAA,06/02/2012,11-00963,6600,Paul Hunt Electrical Ltd
Nottinghamshire County Council,1111/1001,Adult Social Care and Health,ASCH,Premises Related,BAA,07/02/2012,11-01306,782.06,Ashwell Maintenance Ltd
Nottinghamshire County Council,1111/1001,Adult Social Care and Health,ASCH,Premises Related,BAA,15/02/2012,11-02585,589,Slack & Co Floorcoverings
Nottinghamshire County Council,1111/1001,Adult Social Care and Health,ASCH,Premises Related,BAA,16/02/2012,11-07226,3750,C A Thompson Ltd T/A Ultraseal
Nottinghamshire County Council,1111/1001,Adult Social Care and Health,ASCH,Premises Related,BAA,16/02/2012,11-07227,1500,C A Thompson Ltd T/A Ultraseal
Nottinghamshire County Council,1111/1001,Adult Social Care and Health,ASCH,Premises Related,BAA,29/02/2012,11-07106,721.5,County Supplies (NCC)
Nottinghamshire County Council,1111/1001,Adult Social Care and Health,ASCH,Premises Related,BCA,08/02/2012,11-07107,1089.45,Coal 4 Energy Ltd
Nottinghamshire County Council,1111/1001,Adult Social Care and Health,ASCH,Premises Related,BCA,09/02/2012,11-01939,2051.71,Oceans Of Fun
Nottinghamshire County Council,1111/1001,Adult Social Care and Health,ASCH,Premises Related,BCA,15/02/2012,11-02561,597.27,Eon Energy Services
Nottinghamshire County Council,1111/1001,Adult Social Care and Health,ASCH,Premises Related,BDA,02/02/2012,11-00584,798.44,Progress Care Housing Assoc Ltd
Nottinghamshire County Council,1111/1001,Adult Social Care and Health,ASCH,Premises Related,BDA,02/02/2012,11-00592,1561.8,Renaissance Social Housing
Nottinghamshire County Council,1111/1001,Adult Social Care and Health,ASCH,Premises Related,BDA,03/02/2012,11-00854,4766.52,Making It! Enterprises Ltd
Nottinghamshire County Council,1111/1001,Adult Social Care and Health,ASCH,Premises Related,BDA,06/02/2012,11-01033,1205.1,Making It! Enterprises Ltd
Nottinghamshire County Council,1111/1001,Adult Social Care and Health,ASCH,Premises Related,BDA,07/02/2012,11-01289,4251.52,Making It! Enterprises Ltd
Nottinghamshire County Council,1111/1001,Adult Social Care and Health,ASCH,Premises Related,BDA,07/02/2012,11-01290,1046,Making It! Enterprises Ltd
Nottinghamshire County Council,1111/1001,Adult Social Care and Health,ASCH,Premises Related,BDA,09/02/2012,11-01811,682,Grove Street Methodist Church
Nottinghamshire County Council,1111/1001,Adult Social Care and Health,ASCH,Premises Related,BDA,13/02/2012,11-02278,645.03,Progress Care Housing Assoc Ltd
Nottinghamshire County Council,1111/1001,Adult Social Care and Health,ASCH,Premises Related,BDA,13/02/2012,11-07158,1561.28,Making It! Enterprises Ltd
Nottinghamshire County Council,1111/1001,Adult Social Care and Health,ASCH,Premises Related,BDA,15/02/2012,11-02501,1254.4,Making It! Enterprises Ltd
Nottinghamshire County Council,1111/1001,Adult Social Care and Health,ASCH,Premises Related,BDA,17/02/2012,11-02947,798.44,Progress Care Housing Assoc Ltd
Nottinghamshire County Council,1111/1001,Adult Social Care and Health,ASCH,Premises Related,BDA,20/02/2012,11-07309,5400,Selston Arts & Community College
Nottinghamshire County Council,1111/1001,Adult Social Care and Health,ASCH,Premises Related,BDA,28/02/2012,11-06925,1075.05,Progress Care Housing Assoc Ltd
Nottinghamshire County Council,1111/1001,Adult Social Care and Health,ASCH,Premises Related,BFA,03/02/2012,11-00870,1191.46,Anglian Water Services Ltd
Nottinghamshire County Council,1111/1001,Adult Social Care and Health,ASCH,Premises Related,BFA,03/02/2012,11-00871,4988.01,Severn Trent Water Ltd
Nottinghamshire County Council,1111/1001,Adult Social Care and Health,ASCH,Premises Related,BFA,07/02/2012,11-01353,593.71,Severn Trent Water Ltd
Nottinghamshire County Council,1111/1001,Adult Social Care and Health,ASCH,Premises Related,BFA,08/02/2012,11-01643,6533.04,Severn Trent Water Ltd
Nottinghamshire County Council,1111/1001,Adult Social Care and Health,ASCH,Premises Related,BFA,08/02/2012,11-01644,1092.72,Severn Trent Water Ltd
Nottinghamshire County Council,1111/1001,Adult Social Care and Health,ASCH,Premises Related,BFA,08/02/2012,11-01649,1874.79,Severn Trent Water Ltd
Nottinghamshire County Council,1111/1001,Adult Social Care and Health,ASCH,Premises Related,BFA,10/02/2012,11-02050,880.95,Severn Trent Water Ltd
Nottinghamshire County Council,1111/1001,Adult Social Care and Health,ASCH,Premises Related,BFA,10/02/2012,11-02051,880.95,Severn Trent Water Ltd
Nottinghamshire County Council,1111/1001,Adult Social Care and Health,ASCH,Premises Related,BFA,15/02/2012,11-02657,4836.49,Severn Trent Water Ltd
Nottinghamshire County Council,1111/1001,Adult Social Care and Health,ASCH,Premises Related,BFA,17/02/2012,11-02053,3125.3,Severn Trent Water Ltd
Nottinghamshire County Council,1111/1001,Adult Social Care and Health,ASCH,Premises Related,BFA,17/02/2012,11-02583,583.21,Severn Trent Water Ltd
Nottinghamshire County Council,1111/1001,Adult Social Care and Health,ASCH,Premises Related,BFA,21/02/2012,11-03279,3982.8,Severn Trent Water Ltd
Nottinghamshire County Council,1111/1001,Adult Social Care and Health,ASCH,Premises Related,BFA,22/02/2012,11-03454,2092.52,Severn Trent Water Ltd
Nottinghamshire County Council,1111/1001,Adult Social Care and Health,ASCH,Premises Related,BFA,22/02/2012,11-03455,912.54,Severn Trent Water Ltd
Nottinghamshire County Council,1111/1001,Adult Social Care and Health,ASCH,Premises Related,BFA,22/02/2012,11-03495,892.97,Severn Trent Water Ltd
Nottinghamshire County Council,1111/1001,Adult Social Care and Health,ASCH,Premises Related,BFA,23/02/2012,11-03555,1564.13,Severn Trent Water Ltd
Nottinghamshire County Council,1111/1001,Adult Social Care and Health,ASCH,Premises Related,BFA,23/02/2012,11-03691,2533.25,Severn Trent Water Ltd
Nottinghamshire County Council,1111/1001,Adult Social Care and Health,ASCH,Premises Related,BFA,24/02/2012,11-03557,2087.08,Severn Trent Water Ltd
Nottinghamshire County Council,1111/1001,Adult Social Care and Health,ASCH,Premises Related,BFA,24/02/2012,11-03559,1421.32,Severn Trent Water Ltd
Nottinghamshire County Council,1111/1001,Adult Social Care and Health,ASCH,Premises Related,BFA,27/02/2012,11-03556,1346.52,Severn Trent Water Ltd
Nottinghamshire County Council,1111/1001,Adult Social Care and Health,ASCH,Premises Related,BFA,29/02/2012,11-06986,1158.67,Severn Trent Water Ltd
Nottinghamshire County Council,1111/1001,Adult Social Care and Health,ASCH,Premises Related,BGA,15/02/2012,11-02621,2754.15,Envirotec
Nottinghamshire County Council,1111/1001,Adult Social Care and Health,ASCH,Premises Related,BGA,20/02/2012,11-03036,535,Harold Potter & Company Ltd
Nottinghamshire County Council,1111/1001,Adult Social Care and Health,ASCH,Premises Related,BJA,13/02/2012,11-02093,3146.54,Phs All Clear Ltd
Nottinghamshire County Council,1111/1001,Adult Social Care and Health,ASCH,Premises Related,BJA,14/02/2012,11-02312,549.25,Bunzl Uk Ltd Trading As Greenham
Nottinghamshire County Council,1111/1001,Adult Social Care and Health,ASCH,Premises Related,BJA,14/02/2012,11-02401,1968.2,Phs Group Plc
Nottinghamshire County Council,1111/1001,Adult Social Care and Health,ASCH,Premises Related,BJA,15/02/2012,11-02622,651.42,Phs Group Plc
Nottinghamshire County Council,1111/1001,Adult Social Care and Health,ASCH,Premises Related,BJA,17/02/2012,11-07238,1875,Envirotec
Nottinghamshire County Council,1111/1001,Adult Social Care and Health,ASCH,Premises Related,BJA,29/02/2012,11-07105,440.34,County Supplies (NCC)
Nottinghamshire County Council,1111/1001,Adult Social Care and Health,ASCH,Transport Related,CCA,01/02/2012,11-00308,990,1st 4 Care Ltd
Nottinghamshire County Council,1111/1001,Adult Social Care and Health,ASCH,Transport Related,CCA,01/02/2012,11-00309,676.8,1st 4 Care Ltd
Nottinghamshire County Council,1111/1001,Adult Social Care and Health,ASCH,Transport Related,CCA,01/02/2012,11-00310,1144,1st 4 Care Ltd
Nottinghamshire County Council,1111/1001,Adult Social Care and Health,ASCH,Transport Related,CCA,01/02/2012,11-00322,2160,1st 4 Care Ltd
Nottinghamshire County Council,1111/1001,Adult Social Care and Health,ASCH,Transport Related,CCA,01/02/2012,11-00333,1980,Town Taxis Ltd
Nottinghamshire County Council,1111/1001,Adult Social Care and Health,ASCH,Transport Related,CCA,03/02/2012,11-00790,2705.6,Hawkins Taxis & Transport
Nottinghamshire County Council,1111/1001,Adult Social Care and Health,ASCH,Transport Related,CCA,03/02/2012,11-00863,1764,1st 4 Care Ltd
Nottinghamshire County Council,1111/1001,Adult Social Care and Health,ASCH,Transport Related,CCA,07/02/2012,11-01295,2021.14,Norsaca Society Office
Nottinghamshire County Council,1111/1001,Adult Social Care and Health,ASCH,Transport Related,CCA,08/02/2012,11-01599,3763.41,Trevor Bailey Travel Ltd
Nottinghamshire County Council,1111/1001,Adult Social Care and Health,ASCH,Transport Related,CCA,09/02/2012,11-01775,2978.01,Premier Taxis
Nottinghamshire County Council,1111/1001,Adult Social Care and Health,ASCH,Transport Related,CCA,09/02/2012,11-01795,1890,Town Taxis Ltd
Nottinghamshire County Council,1111/1001,Adult Social Care and Health,ASCH,Transport Related,CCA,10/02/2012,11-02000,1680,1st 4 Care Ltd
Nottinghamshire County Council,1111/1001,Adult Social Care and Health,ASCH,Transport Related,CCA,10/02/2012,11-02001,1848,1st 4 Care Ltd
Nottinghamshire County Council,1111/1001,Adult Social Care and Health,ASCH,Transport Related,CCA,13/02/2012,11-02166,936,Rio Cabs
Nottinghamshire County Council,1111/1001,Adult Social Care and Health,ASCH,Transport Related,CCA,14/02/2012,11-02318,2437.44,Alert Cars Ltd
Nottinghamshire County Council,1111/1001,Adult Social Care and Health,ASCH,Transport Related,CCA,14/02/2012,11-02319,629.66,A Line Taxis
Nottinghamshire County Council,1111/1001,Adult Social Care and Health,ASCH,Transport Related,CCA,14/02/2012,11-02320,696.5,200 Cars Ltd
Nottinghamshire County Council,1111/1001,Adult Social Care and Health,ASCH,Transport Related,CCA,14/02/2012,11-02321,566.5,200 Cars Ltd
Nottinghamshire County Council,1111/1001,Adult Social Care and Health,ASCH,Transport Related,CCA,14/02/2012,11-02322,766.4,200 Cars Ltd
Nottinghamshire County Council,1111/1001,Adult Social Care and Health,ASCH,Transport Related,CCA,14/02/2012,11-02323,715,CBC Taxis Ltd
Nottinghamshire County Council,1111/1001,Adult Social Care and Health,ASCH,Transport Related,CCA,14/02/2012,11-02324,769,CBC Taxis Ltd
Nottinghamshire County Council,1111/1001,Adult Social Care and Health,ASCH,Transport Related,CCA,14/02/2012,11-02325,811.8,CBC Taxis Ltd
Nottinghamshire County Council,1111/1001,Adult Social Care and Health,ASCH,Transport Related,CCA,14/02/2012,11-02326,1349.2,CBC Taxis Ltd
Nottinghamshire County Council,1111/1001,Adult Social Care and Health,ASCH,Transport Related,CCA,14/02/2012,11-02327,1286.7,CBC Taxis Ltd
Nottinghamshire County Council,1111/1001,Adult Social Care and Health,ASCH,Transport Related,CCA,14/02/2012,11-02328,1031.9,CBC Taxis Ltd
Nottinghamshire County Council,1111/1001,Adult Social Care and Health,ASCH,Transport Related,CCA,14/02/2012,11-02329,1801.5,CBC Taxis Ltd
Nottinghamshire County Council,1111/1001,Adult Social Care and Health,ASCH,Transport Related,CCA,14/02/2012,11-02330,1349.2,CBC Taxis Ltd
Nottinghamshire County Council,1111/1001,Adult Social Care and Health,ASCH,Transport Related,CCA,14/02/2012,11-02331,1462.5,CBC Taxis Ltd
Nottinghamshire County Council,1111/1001,Adult Social Care and Health,ASCH,Transport Related,CCA,14/02/2012,11-02332,1583.1,CBC Taxis Ltd
Nottinghamshire County Council,1111/1001,Adult Social Care and Health,ASCH,Transport Related,CCA,14/02/2012,11-02333,1193,CBC Taxis Ltd
Nottinghamshire County Council,1111/1001,Adult Social Care and Health,ASCH,Transport Related,CCA,14/02/2012,11-02334,1061.1,CBC Taxis Ltd
Nottinghamshire County Council,1111/1001,Adult Social Care and Health,ASCH,Transport Related,CCA,14/02/2012,11-02335,17187.5,Ace Of Mansfield Ltd
Nottinghamshire County Council,1111/1001,Adult Social Care and Health,ASCH,Transport Related,CCA,14/02/2012,11-02336,1330.2,Acorn Travel
Nottinghamshire County Council,1111/1001,Adult Social Care and Health,ASCH,Transport Related,CCA,14/02/2012,11-02337,1632.48,Acorn Travel
Nottinghamshire County Council,1111/1001,Adult Social Care and Health,ASCH,Transport Related,CCA,14/02/2012,11-02338,1414.96,Acorn Travel
Nottinghamshire County Council,1111/1001,Adult Social Care and Health,ASCH,Transport Related,CCA,14/02/2012,11-02339,1075.88,Acorn Travel
Nottinghamshire County Council,1111/1001,Adult Social Care and Health,ASCH,Transport Related,CCA,14/02/2012,11-02340,1648,Alpha Cars
Nottinghamshire County Council,1111/1001,Adult Social Care and Health,ASCH,Transport Related,CCA,14/02/2012,11-02341,800,Anitas Contracts
Nottinghamshire County Council,1111/1001,Adult Social Care and Health,ASCH,Transport Related,CCA,14/02/2012,11-02342,1081,Bingham Cabs
Nottinghamshire County Council,1111/1001,Adult Social Care and Health,ASCH,Transport Related,CCA,14/02/2012,11-02343,960,Bridges Transport Services
Nottinghamshire County Council,1111/1001,Adult Social Care and Health,ASCH,Transport Related,CCA,14/02/2012,11-02344,1170,Bridges Transport Services
Nottinghamshire County Council,1111/1001,Adult Social Care and Health,ASCH,Transport Related,CCA,14/02/2012,11-02345,3313.59,Bridges Transport Services
Nottinghamshire County Council,1111/1001,Adult Social Care and Health,ASCH,Transport Related,CCA,14/02/2012,11-02346,2047.29,Bridges Transport Services
Nottinghamshire County Council,1111/1001,Adult Social Care and Health,ASCH,Transport Related,CCA,14/02/2012,11-02347,850,Bridges Transport Services
Nottinghamshire County Council,1111/1001,Adult Social Care and Health,ASCH,Transport Related,CCA,14/02/2012,11-02348,1235,Bridges Transport Services
Nottinghamshire County Council,1111/1001,Adult Social Care and Health,ASCH,Transport Related,CCA,14/02/2012,11-02349,540,Bridges Transport Services
Nottinghamshire County Council,1111/1001,Adult Social Care and Health,ASCH,Transport Related,CCA,14/02/2012,11-02350,1200,Bridges Transport Services
Nottinghamshire County Council,1111/1001,Adult Social Care and Health,ASCH,Transport Related,CCA,14/02/2012,11-02351,905,Bridges Transport Services
Nottinghamshire County Council,1111/1001,Adult Social Care and Health,ASCH,Transport Related,CCA,14/02/2012,11-02352,630,Bridges Transport Services
Nottinghamshire County Council,1111/1001,Adult Social Care and Health,ASCH,Transport Related,CCA,14/02/2012,11-02353,538.2,Bridges Transport Services
Nottinghamshire County Council,1111/1001,Adult Social Care and Health,ASCH,Transport Related,CCA,14/02/2012,11-02354,2825.4,D G Private Hire Ltd
Nottinghamshire County Council,1111/1001,Adult Social Care and Health,ASCH,Transport Related,CCA,14/02/2012,11-02355,765.8,D G Private Hire Ltd
Nottinghamshire County Council,1111/1001,Adult Social Care and Health,ASCH,Transport Related,CCA,14/02/2012,11-02356,1547.6,D G Private Hire Ltd
Nottinghamshire County Council,1111/1001,Adult Social Care and Health,ASCH,Transport Related,CCA,14/02/2012,11-02357,4174.1,D G Private Hire Ltd
Nottinghamshire County Council,1111/1001,Adult Social Care and Health,ASCH,Transport Related,CCA,14/02/2012,11-02358,1702.5,D G Private Hire Ltd
Nottinghamshire County Council,1111/1001,Adult Social Care and Health,ASCH,Transport Related,CCA,14/02/2012,11-02359,713.2,D G Private Hire Ltd
Nottinghamshire County Council,1111/1001,Adult Social Care and Health,ASCH,Transport Related,CCA,14/02/2012,11-02360,8291.1,D G Private Hire Ltd
Nottinghamshire County Council,1111/1001,Adult Social Care and Health,ASCH,Transport Related,CCA,14/02/2012,11-02361,1855.5,D G Private Hire Ltd
Nottinghamshire County Council,1111/1001,Adult Social Care and Health,ASCH,Transport Related,CCA,14/02/2012,11-02363,1212,Galaxy Cabs
Nottinghamshire County Council,1111/1001,Adult Social Care and Health,ASCH,Transport Related,CCA,14/02/2012,11-02365,686.4,Aaeron Cars
Nottinghamshire County Council,1111/1001,Adult Social Care and Health,ASCH,Transport Related,CCA,14/02/2012,11-02366,713.4,Aaeron Cars
Nottinghamshire County Council,1111/1001,Adult Social Care and Health,ASCH,Transport Related,CCA,14/02/2012,11-02374,8205.5,Abacus Cars
Nottinghamshire County Council,1111/1001,Adult Social Care and Health,ASCH,Transport Related,CCA,14/02/2012,11-02375,1508,Abacus Cars
Nottinghamshire County Council,1111/1001,Adult Social Care and Health,ASCH,Transport Related,CCA,14/02/2012,11-02384,3571.56,Diamond Cars
Nottinghamshire County Council,1111/1001,Adult Social Care and Health,ASCH,Transport Related,CCA,14/02/2012,11-02417,1449,Central Cars Nottm Ltd
Nottinghamshire County Council,1111/1001,Adult Social Care and Health,ASCH,Transport Related,CCA,14/02/2012,11-02418,1058.9,Central Cars Nottm Ltd
Nottinghamshire County Council,1111/1001,Adult Social Care and Health,ASCH,Transport Related,CCA,14/02/2012,11-02419,1489.8,Central Cars Nottm Ltd
Nottinghamshire County Council,1111/1001,Adult Social Care and Health,ASCH,Transport Related,CCA,14/02/2012,11-02420,1333.8,Central Cars Nottm Ltd
Nottinghamshire County Council,1111/1001,Adult Social Care and Health,ASCH,Transport Related,CCA,14/02/2012,11-02421,1551.1,Central Cars Nottm Ltd
Nottinghamshire County Council,1111/1001,Adult Social Care and Health,ASCH,Transport Related,CCA,14/02/2012,11-02425,570,Central Cars Nottm Ltd
Nottinghamshire County Council,1111/1001,Adult Social Care and Health,ASCH,Transport Related,CCA,14/02/2012,11-02433,2279.34,Ja Travel Ltd
Nottinghamshire County Council,1111/1001,Adult Social Care and Health,ASCH,Transport Related,CCA,14/02/2012,11-02435,897.7,Ng11 Cars
Nottinghamshire County Council,1111/1001,Adult Social Care and Health,ASCH,Transport Related,CCA,14/02/2012,11-02439,1676.6,1st 4 Care Ltd
Nottinghamshire County Council,1111/1001,Adult Social Care and Health,ASCH,Transport Related,CCA,14/02/2012,11-02444,839,Petes Taxi Service
Nottinghamshire County Council,1111/1001,Adult Social Care and Health,ASCH,Transport Related,CCA,14/02/2012,11-02446,839.3,Nunns Cars
Nottinghamshire County Council,1111/1001,Adult Social Care and Health,ASCH,Transport Related,CCA,14/02/2012,11-02447,812,Nunns Cars
Nottinghamshire County Council,1111/1001,Adult Social Care and Health,ASCH,Transport Related,CCA,14/02/2012,11-02448,1055.3,Nunns Cars
Nottinghamshire County Council,1111/1001,Adult Social Care and Health,ASCH,Transport Related,CCA,14/02/2012,11-02449,679.8,Nunns Cars
Nottinghamshire County Council,1111/1001,Adult Social Care and Health,ASCH,Transport Related,CCA,14/02/2012,11-02450,1882,Nunns Cars
Nottinghamshire County Council,1111/1001,Adult Social Care and Health,ASCH,Transport Related,CCA,14/02/2012,11-02451,1135.8,Nunns Cars
Nottinghamshire County Council,1111/1001,Adult Social Care and Health,ASCH,Transport Related,CCA,14/02/2012,11-02453,3200,P & P Taxis
Nottinghamshire County Council,1111/1001,Adult Social Care and Health,ASCH,Transport Related,CCA,14/02/2012,11-02454,2996,P & P Taxis
Nottinghamshire County Council,1111/1001,Adult Social Care and Health,ASCH,Transport Related,CCA,14/02/2012,11-02455,588,P & P Taxis
Nottinghamshire County Council,1111/1001,Adult Social Care and Health,ASCH,Transport Related,CCA,14/02/2012,11-02456,987,P & P Taxis
Nottinghamshire County Council,1111/1001,Adult Social Care and Health,ASCH,Transport Related,CCA,14/02/2012,11-02457,1006,P & P Taxis
Nottinghamshire County Council,1111/1001,Adult Social Care and Health,ASCH,Transport Related,CCA,14/02/2012,11-02458,532,P & P Taxis
Nottinghamshire County Council,1111/1001,Adult Social Care and Health,ASCH,Transport Related,CCA,14/02/2012,11-02459,3592,P & P Taxis
Nottinghamshire County Council,1111/1001,Adult Social Care and Health,ASCH,Transport Related,CCA,14/02/2012,11-02460,700,P & P Taxis
Nottinghamshire County Council,1111/1001,Adult Social Care and Health,ASCH,Transport Related,CCA,14/02/2012,11-02461,630,P & P Taxis
Nottinghamshire County Council,1111/1001,Adult Social Care and Health,ASCH,Transport Related,CCA,14/02/2012,11-02462,588,P & P Taxis
Nottinghamshire County Council,1111/1001,Adult Social Care and Health,ASCH,Transport Related,CCA,14/02/2012,11-02464,698.2,Town Taxis Ltd
Nottinghamshire County Council,1111/1001,Adult Social Care and Health,ASCH,Transport Related,CCA,16/02/2012,11-02689,192,Leicester Housing Association Ltd
Nottinghamshire County Council,1111/1001,Adult Social Care and Health,ASCH,Transport Related,CCA,16/02/2012,11-02713,288,Leicester Housing Association Ltd
Nottinghamshire County Council,1111/1001,Adult Social Care and Health,ASCH,Transport Related,CCA,16/02/2012,11-02718,2376,1st 4 Care Ltd
Nottinghamshire County Council,1111/1001,Adult Social Care and Health,ASCH,Transport Related,CCA,16/02/2012,11-02720,1144,1st 4 Care Ltd
Nottinghamshire County Council,1111/1001,Adult Social Care and Health,ASCH,Transport Related,CCA,16/02/2012,11-02721,1386,1st 4 Care Ltd
Nottinghamshire County Council,1111/1001,Adult Social Care and Health,ASCH,Transport Related,CCA,16/02/2012,11-02723,1184.4,1st 4 Care Ltd
Nottinghamshire County Council,1111/1001,Adult Social Care and Health,ASCH,Transport Related,CCA,16/02/2012,11-02743,1018.8,1st 4 Care Ltd
Nottinghamshire County Council,1111/1001,Adult Social Care and Health,ASCH,Transport Related,CCA,16/02/2012,11-02780,789,1st 4 Care Ltd
Nottinghamshire County Council,1111/1001,Adult Social Care and Health,ASCH,Transport Related,CCA,16/02/2012,11-02895,1188.6,1st 4 Care Ltd
Nottinghamshire County Council,1111/1001,Adult Social Care and Health,ASCH,Transport Related,CCA,17/02/2012,11-02285,914.4,Norsaca Society Office
Nottinghamshire County Council,1111/1001,Adult Social Care and Health,ASCH,Transport Related,CCA,17/02/2012,11-02928,637.5,Bn Gibson Ltd
Nottinghamshire County Council,1111/1001,Adult Social Care and Health,ASCH,Transport Related,CCA,21/02/2012,11-03188,2888.65,Taxicover Uk Ltd
Nottinghamshire County Council,1111/1001,Adult Social Care and Health,ASCH,Transport Related,CCA,21/02/2012,11-03189,1054.35,Taxicover Uk Ltd
Nottinghamshire County Council,1111/1001,Adult Social Care and Health,ASCH,Transport Related,CCA,21/02/2012,11-03190,1259.6,Southside Cars
Nottinghamshire County Council,1111/1001,Adult Social Care and Health,ASCH,Transport Related,CCA,21/02/2012,11-03191,2147,Cabline Uk Ltd
Nottinghamshire County Council,1111/1001,Adult Social Care and Health,ASCH,Transport Related,CCA,21/02/2012,11-03192,1220,Cabline Uk Ltd
Nottinghamshire County Council,1111/1001,Adult Social Care and Health,ASCH,Transport Related,CCA,21/02/2012,11-03196,1504,Cabline Uk Ltd
Nottinghamshire County Council,1111/1001,Adult Social Care and Health,ASCH,Transport Related,CCA,21/02/2012,11-03200,8314.8,Cem Muskham Ltd T/A Z Cars
Nottinghamshire County Council,1111/1001,Adult Social Care and Health,ASCH,Transport Related,CCA,21/02/2012,11-03203,8469.35,Shelleys Taxis Ltd
Nottinghamshire County Council,1111/1001,Adult Social Care and Health,ASCH,Transport Related,CCA,21/02/2012,11-03206,2938.04,Sprays Transport Ltd
Nottinghamshire County Council,1111/1001,Adult Social Care and Health,ASCH,Transport Related,CCA,21/02/2012,11-03207,2175.24,Sprays Transport Ltd
Nottinghamshire County Council,1111/1001,Adult Social Care and Health,ASCH,Transport Related,CCA,21/02/2012,11-03208,2459.1,F & J Marriott T/A Unity Coaches
Nottinghamshire County Council,1111/1001,Adult Social Care and Health,ASCH,Transport Related,CCA,21/02/2012,11-03209,2717.82,F & J Marriott T/A Unity Coaches
Nottinghamshire County Council,1111/1001,Adult Social Care and Health,ASCH,Transport Related,CCA,21/02/2012,11-03210,3066,F & J Marriott T/A Unity Coaches
Nottinghamshire County Council,1111/1001,Adult Social Care and Health,ASCH,Transport Related,CCA,21/02/2012,11-03211,2949.24,Vallances Coaches
Nottinghamshire County Council,1111/1001,Adult Social Care and Health,ASCH,Transport Related,CCA,21/02/2012,11-03223,123.99,Bn Gibson Ltd
Nottinghamshire County Council,1111/1001,Adult Social Care and Health,ASCH,Transport Related,CCA,21/02/2012,11-03226,1554,Bn Gibson Ltd
Nottinghamshire County Council,1111/1001,Adult Social Care and Health,ASCH,Transport Related,CCA,21/02/2012,11-03241,3106,Tims Taxi
Nottinghamshire County Council,1111/1001,Adult Social Care and Health,ASCH,Transport Related,CCA,21/02/2012,11-03245,2436.96,Trevor Bailey Travel Ltd
Nottinghamshire County Council,1111/1001,Adult Social Care and Health,ASCH,Transport Related,CCA,21/02/2012,11-03246,1498.28,Aj Travel
Nottinghamshire County Council,1111/1001,Adult Social Care and Health,ASCH,Transport Related,CCA,21/02/2012,11-03248,553.8,Town Taxis Ltd
Nottinghamshire County Council,1111/1001,Adult Social Care and Health,ASCH,Transport Related,CCA,21/02/2012,11-03249,4149,Town Taxis Ltd
Nottinghamshire County Council,1111/1001,Adult Social Care and Health,ASCH,Transport Related,CCA,23/02/2012,11-03697,1837.4,Norsaca Society Office
Nottinghamshire County Council,1111/1001,Adult Social Care and Health,ASCH,Transport Related,CCA,24/02/2012,11-03789,2970,1st 4 Care Ltd
Nottinghamshire County Council,1111/1001,Adult Social Care and Health,ASCH,Transport Related,CCA,24/02/2012,11-03790,1787.5,1st 4 Care Ltd
Nottinghamshire County Council,1111/1001,Adult Social Care and Health,ASCH,Transport Related,CCA,24/02/2012,11-03819,2625.66,Alert Cars Ltd
Nottinghamshire County Council,1111/1001,Adult Social Care and Health,ASCH,Transport Related,CCA,27/02/2012,11-03906,425,Nottingham City Council
Nottinghamshire County Council,1111/1001,Adult Social Care and Health,ASCH,Transport Related,CCA,29/02/2012,11-06983,527.67,Our Centre - (DUIPLICATE)
Nottinghamshire County Council,1111/1001,Adult Social Care and Health,ASCH,Transport Related,CEA,10/02/2012,11-00595,265.95,Capita Resourcing Social Care & Hou
Nottinghamshire County Council,1111/1001,Adult Social Care and Health,ASCH,Transport Related,CEA,10/02/2012,11-00597,351.9,Capita Resourcing Social Care & Hou
Nottinghamshire County Council,1111/1001,Adult Social Care and Health,ASCH,Transport Related,CEA,17/02/2012,11-02599,9,Capita Resourcing Social Care & Hou
Nottinghamshire County Council,1111/1001,Adult Social Care and Health,ASCH,Transport Related,CEA,17/02/2012,11-02623,20.7,Capita Resourcing Social Care & Hou
Nottinghamshire County Council,1111/1001,Adult Social Care and Health,ASCH,Transport Related,CEA,24/02/2012,11-03702,11.16,Capita Resourcing Social Care & Hou
Nottinghamshire County Council,1111/1001,Adult Social Care and Health,ASCH,Supplies & Services,DAA,03/02/2012,11-00841,658.12,Watchwise Ltd
Nottinghamshire County Council,1111/1001,Adult Social Care and Health,ASCH,Supplies & Services,DAA,07/02/2012,11-01290,12.5,Making It! Enterprises Ltd
Nottinghamshire County Council,1111/1001,Adult Social Care and Health,ASCH,Supplies & Services,DAA,08/02/2012,11-01684,502.4,Panelco Ltd
Nottinghamshire County Council,1111/1001,Adult Social Care and Health,ASCH,Supplies & Services,DAA,08/02/2012,11-01687,996.8,Panelco Ltd
Nottinghamshire County Council,1111/1001,Adult Social Care and Health,ASCH,Supplies & Services,DAA,09/02/2012,11-01708,1919.61,Oliver Douglas Ltd
Nottinghamshire County Council,1111/1001,Adult Social Care and Health,ASCH,Supplies & Services,DAA,09/02/2012,11-01808,566.99,Barclays Asset & Sales Finance
Nottinghamshire County Council,1111/1001,Adult Social Care and Health,ASCH,Supplies & Services,DAA,09/02/2012,11-01809,593.42,Ddc Dolphin Ltd
Nottinghamshire County Council,1111/1001,Adult Social Care and Health,ASCH,Supplies & Services,DAA,09/02/2012,11-01810,1317.9,Wilson Electrics Ltd
Nottinghamshire County Council,1111/1001,Adult Social Care and Health,ASCH,Supplies & Services,DAA,09/02/2012,11-01815,718.76,William Freer Limited
Nottinghamshire County Council,1111/1001,Adult Social Care and Health,ASCH,Supplies & Services,DAA,09/02/2012,11-07088,691,Dishwashers Direct Ltd
Nottinghamshire County Council,1111/1001,Adult Social Care and Health,ASCH,Supplies & Services,DAA,13/02/2012,11-02095,2689,Garners Food Service Equipment
Nottinghamshire County Council,1111/1001,Adult Social Care and Health,ASCH,Supplies & Services,DAA,13/02/2012,11-02298,1072,Countrywide Healthcare Supplies
Nottinghamshire County Council,1111/1001,Adult Social Care and Health,ASCH,Supplies & Services,DAA,13/02/2012,11-02300,514.6,Phs Group Plc
Nottinghamshire County Council,1111/1001,Adult Social Care and Health,ASCH,Supplies & Services,DAA,14/02/2012,11-02316,770,Trojan Consultants Ltd
Nottinghamshire County Council,1111/1001,Adult Social Care and Health,ASCH,Supplies & Services,DAA,14/02/2012,11-02413,67343.02,British Red Cross Society
Nottinghamshire County Council,1111/1001,Adult Social Care and Health,ASCH,Supplies & Services,DAA,15/02/2012,11-02547,3626,Slack & Co Floorcoverings
Nottinghamshire County Council,1111/1001,Adult Social Care and Health,ASCH,Supplies & Services,DAA,16/02/2012,11-02800,827,Pineapple Contracts
Nottinghamshire County Council,1111/1001,Adult Social Care and Health,ASCH,Supplies & Services,DAA,21/02/2012,11-03157,1451.85,Rack Systems Engineering Ltd
Nottinghamshire County Council,1111/1001,Adult Social Care and Health,ASCH,Supplies & Services,DAA,21/02/2012,11-03160,1599,Certwood Ltd
Nottinghamshire County Council,1111/1001,Adult Social Care and Health,ASCH,Supplies & Services,DAA,21/02/2012,11-03163,574.4,Lathams Ltd
Nottinghamshire County Council,1111/1001,Adult Social Care and Health,ASCH,Supplies & Services,DAA,21/02/2012,11-03166,966,Papworth Furniture Ltd
Nottinghamshire County Council,1111/1001,Adult Social Care and Health,ASCH,Supplies & Services,DAA,21/02/2012,11-03168,2479.86,Lathams Ltd
Nottinghamshire County Council,1111/1001,Adult Social Care and Health,ASCH,Supplies & Services,DAA,21/02/2012,11-03356,1128.78,Care Shop
Nottinghamshire County Council,1111/1001,Adult Social Care and Health,ASCH,Supplies & Services,DAA,22/02/2012,11-03490,733.25,Carlton Design
Nottinghamshire County Council,1111/1001,Adult Social Care and Health,ASCH,Supplies & Services,DAA,24/02/2012,11-03717,402812.49,British Red Cross Society
Nottinghamshire County Council,1111/1001,Adult Social Care and Health,ASCH,Supplies & Services,DAA,27/02/2012,11-03849,871.25,Travis Perkins Trading Company Ltd
Nottinghamshire County Council,1111/1001,Adult Social Care and Health,ASCH,Supplies & Services,DAA,29/02/2012,11-07105,12.9,County Supplies (NCC)
Nottinghamshire County Council,1111/1001,Adult Social Care and Health,ASCH,Supplies & Services,DBA,01/02/2012,11-00413,7988.37,M Maloney Country Butchers & B Ltd
Nottinghamshire County Council,1111/1001,Adult Social Care and Health,ASCH,Supplies & Services,DBA,01/02/2012,11-00415,3646.99,Hallam Country Fresh Foods Ltd
Nottinghamshire County Council,1111/1001,Adult Social Care and Health,ASCH,Supplies & Services,DBA,01/02/2012,11-00417,4948.51,M Maloney Country Butchers & B Ltd
Nottinghamshire County Council,1111/1001,Adult Social Care and Health,ASCH,Supplies & Services,DBA,01/02/2012,11-00418,6803.68,M Maloney Country Butchers & B Ltd
Nottinghamshire County Council,1111/1001,Adult Social Care and Health,ASCH,Supplies & Services,DBA,02/02/2012,11-00486,1799.14,Brake Bros Ltd
Nottinghamshire County Council,1111/1001,Adult Social Care and Health,ASCH,Supplies & Services,DBA,02/02/2012,11-00488,1153.59,Brake Bros Ltd
Nottinghamshire County Council,1111/1001,Adult Social Care and Health,ASCH,Supplies & Services,DBA,02/02/2012,11-00489,2283.1,Brake Bros Ltd
Nottinghamshire County Council,1111/1001,Adult Social Care and Health,ASCH,Supplies & Services,DBA,02/02/2012,11-00534,2478.01,Arnold Dairies Ltd
Nottinghamshire County Council,1111/1001,Adult Social Care and Health,ASCH,Supplies & Services,DBA,02/02/2012,11-00535,6122.03,Brake Bros Ltd
Nottinghamshire County Council,1111/1001,Adult Social Care and Health,ASCH,Supplies & Services,DBA,02/02/2012,11-00583,2464.43,Arnold Dairies Ltd
Nottinghamshire County Council,1111/1001,Adult Social Care and Health,ASCH,Supplies & Services,DBA,03/02/2012,11-00826,895.47,Brake Bros Ltd
Nottinghamshire County Council,1111/1001,Adult Social Care and Health,ASCH,Supplies & Services,DBA,03/02/2012,11-00828,2465.37,Brake Bros Ltd
Nottinghamshire County Council,1111/1001,Adult Social Care and Health,ASCH,Supplies & Services,DBA,03/02/2012,11-00833,4650.98,Brake Bros Ltd
Nottinghamshire County Council,1111/1001,Adult Social Care and Health,ASCH,Supplies & Services,DBA,03/02/2012,11-00835,36.35,Brake Bros Ltd
Nottinghamshire County Council,1111/1001,Adult Social Care and Health,ASCH,Supplies & Services,DBA,07/02/2012,11-01356,3532.43,Hallam Country Fresh Foods Ltd
Nottinghamshire County Council,1111/1001,Adult Social Care and Health,ASCH,Supplies & Services,DBA,13/02/2012,11-02082,7351.23,M Maloney Country Butchers & B Ltd
Nottinghamshire County Council,1111/1001,Adult Social Care and Health,ASCH,Supplies & Services,DBA,13/02/2012,11-02084,4832.09,M Maloney Country Butchers & B Ltd
Nottinghamshire County Council,1111/1001,Adult Social Care and Health,ASCH,Supplies & Services,DBA,15/02/2012,11-02533,2641.13,Arnold Dairies Ltd
Nottinghamshire County Council,1111/1001,Adult Social Care and Health,ASCH,Supplies & Services,DBA,15/02/2012,11-02549,3472.9,Hallam Country Fresh Foods Ltd
Nottinghamshire County Council,1111/1001,Adult Social Care and Health,ASCH,Supplies & Services,DBA,15/02/2012,11-02550,6822.73,Brake Bros Ltd
Nottinghamshire County Council,1111/1001,Adult Social Care and Health,ASCH,Supplies & Services,DBA,15/02/2012,11-02551,116.32,Brake Bros Ltd
Nottinghamshire County Council,1111/1001,Adult Social Care and Health,ASCH,Supplies & Services,DBA,15/02/2012,11-02552,1288.35,Brake Bros Ltd
Nottinghamshire County Council,1111/1001,Adult Social Care and Health,ASCH,Supplies & Services,DBA,15/02/2012,11-02553,2388.13,Brake Bros Ltd
Nottinghamshire County Council,1111/1001,Adult Social Care and Health,ASCH,Supplies & Services,DBA,17/02/2012,11-02921,568.09,Brake Bros Ltd
Nottinghamshire County Council,1111/1001,Adult Social Care and Health,ASCH,Supplies & Services,DBA,17/02/2012,11-02922,2716.92,Brake Bros Ltd
Nottinghamshire County Council,1111/1001,Adult Social Care and Health,ASCH,Supplies & Services,DBA,17/02/2012,11-02923,3811.28,Brake Bros Ltd
Nottinghamshire County Council,1111/1001,Adult Social Care and Health,ASCH,Supplies & Services,DBA,17/02/2012,11-07247,972,F Smales & Son Fish Merchants Ltd
Nottinghamshire County Council,1111/1001,Adult Social Care and Health,ASCH,Supplies & Services,DBA,17/02/2012,11-07248,900,F Smales & Son Fish Merchants Ltd
Nottinghamshire County Council,1111/1001,Adult Social Care and Health,ASCH,Supplies & Services,DBA,20/02/2012,11-07257,639.68,Mkg Food Products Ltd
Nottinghamshire County Council,1111/1001,Adult Social Care and Health,ASCH,Supplies & Services,DBA,20/02/2012,11-07258,2058.3,Mkg Food Products Ltd
Nottinghamshire County Council,1111/1001,Adult Social Care and Health,ASCH,Supplies & Services,DBA,21/02/2012,11-03269,3516.76,Hallam Country Fresh Foods Ltd
Nottinghamshire County Council,1111/1001,Adult Social Care and Health,ASCH,Supplies & Services,DBA,22/02/2012,11-03420,2505.73,Arnold Dairies Ltd
Nottinghamshire County Council,1111/1001,Adult Social Care and Health,ASCH,Supplies & Services,DBA,23/02/2012,11-03543,2544.4,Arnold Dairies Ltd
Nottinghamshire County Council,1111/1001,Adult Social Care and Health,ASCH,Supplies & Services,DBA,23/02/2012,11-07217,709.2,Nestle Uk Ltd
Nottinghamshire County Council,1111/1001,Adult Social Care and Health,ASCH,Supplies & Services,DBA,28/02/2012,11-06888,6762.93,M Maloney Country Butchers & B Ltd
Nottinghamshire County Council,1111/1001,Adult Social Care and Health,ASCH,Supplies & Services,DBA,28/02/2012,11-06889,7406.73,M Maloney Country Butchers & B Ltd
Nottinghamshire County Council,1111/1001,Adult Social Care and Health,ASCH,Supplies & Services,DBA,28/02/2012,11-06890,540.62,Brake Bros Ltd
Nottinghamshire County Council,1111/1001,Adult Social Care and Health,ASCH,Supplies & Services,DBA,29/02/2012,11-06980,2527.8,Brake Bros Ltd
Nottinghamshire County Council,1111/1001,Adult Social Care and Health,ASCH,Supplies & Services,DBA,29/02/2012,11-06981,6585.7,Brake Bros Ltd
Nottinghamshire County Council,1111/1001,Adult Social Care and Health,ASCH,Supplies & Services,DBA,29/02/2012,11-06982,1464.68,Brake Bros Ltd
Nottinghamshire County Council,1111/1001,Adult Social Care and Health,ASCH,Supplies & Services,DBA,29/02/2012,11-06984,333.24,Brake Bros Ltd
Nottinghamshire County Council,1111/1001,Adult Social Care and Health,ASCH,Supplies & Services,DBA,29/02/2012,11-07037,2719.33,Hallam Country Fresh Foods Ltd
Nottinghamshire County Council,1111/1001,Adult Social Care and Health,ASCH,Supplies & Services,DCA,09/02/2012,11-07124,3697.06,Wilson Electrics Ltd
Nottinghamshire County Council,1111/1001,Adult Social Care and Health,ASCH,Supplies & Services,DCA,10/02/2012,11-02070,968.12,The Sunlight Service Group Ltd
Nottinghamshire County Council,1111/1001,Adult Social Care and Health,ASCH,Supplies & Services,DDA,29/02/2012,11-07105,156.3,County Supplies (NCC)
Nottinghamshire County Council,1111/1001,Adult Social Care and Health,ASCH,Supplies & Services,DEA,01/02/2012,11-00099,8950,MHE Consultancy Ltd
Nottinghamshire County Council,1111/1001,Adult Social Care and Health,ASCH,Supplies & Services,DEA,01/02/2012,11-07045,588,Moving Services Group
Nottinghamshire County Council,1111/1001,Adult Social Care and Health,ASCH,Supplies & Services,DEA,01/02/2012,11-07047,5995.97,Carers Federation Ltd
Nottinghamshire County Council,1111/1001,Adult Social Care and Health,ASCH,Supplies & Services,DEA,06/02/2012,11-00933,614,Handyman Plus
Nottinghamshire County Council,1111/1001,Adult Social Care and Health,ASCH,Supplies & Services,DEA,06/02/2012,11-00975,5200.78,Notts Fire & Rescue Service
Nottinghamshire County Council,1111/1001,Adult Social Care and Health,ASCH,Supplies & Services,DEA,06/02/2012,11-00991,531.5,Sues Maintenance Services
Nottinghamshire County Council,1111/1001,Adult Social Care and Health,ASCH,Supplies & Services,DEA,09/02/2012,11-01313,12693,Nottingham City Council
Nottinghamshire County Council,1111/1001,Adult Social Care and Health,ASCH,Supplies & Services,DEA,13/02/2012,11-02172,620,Classique Fascias
Nottinghamshire County Council,1111/1001,Adult Social Care and Health,ASCH,Supplies & Services,DEA,14/02/2012,11-02392,578,Cw Plumbing Heating & Gas Services
Nottinghamshire County Council,1111/1001,Adult Social Care and Health,ASCH,Supplies & Services,DEA,14/02/2012,11-02394,634,Pgs Joinery Services Ltd
Nottinghamshire County Council,1111/1001,Adult Social Care and Health,ASCH,Supplies & Services,DEA,17/02/2012,11-02970,3000,Public & Corporate Economic Consult
Nottinghamshire County Council,1111/1001,Adult Social Care and Health,ASCH,Supplies & Services,DEA,17/02/2012,11-02976,647.5,Rjm Alarms & Electrical
Nottinghamshire County Council,1111/1001,Adult Social Care and Health,ASCH,Supplies & Services,DEA,17/02/2012,11-02977,504.5,PS Property Maintenance Services
Nottinghamshire County Council,1111/1001,Adult Social Care and Health,ASCH,Supplies & Services,DEA,20/02/2012,11-03006,1000,De Montfort University
Nottinghamshire County Council,1111/1001,Adult Social Care and Health,ASCH,Supplies & Services,DEA,22/02/2012,11-03443,583.5,Alan Unwin Horticultural Services
Nottinghamshire County Council,1111/1001,Adult Social Care and Health,ASCH,Supplies & Services,DEA,23/02/2012,11-03520,550,MHE Consultancy Ltd
Nottinghamshire County Council,1111/1001,Adult Social Care and Health,ASCH,Supplies & Services,DEA,27/02/2012,11-03935,593.5,Intex Building & Maintenance
Nottinghamshire County Council,1111/1001,Adult Social Care and Health,ASCH,Supplies & Services,DFA,06/02/2012,11-00986,500,Fp Teleset
Nottinghamshire County Council,1111/1001,Adult Social Care and Health,ASCH,Supplies & Services,DFA,07/02/2012,11-01290,116,Making It! Enterprises Ltd
Nottinghamshire County Council,1111/1001,Adult Social Care and Health,ASCH,Supplies & Services,DFA,08/02/2012,11-00205,650,Royal Mail
Nottinghamshire County Council,1111/1001,Adult Social Care and Health,ASCH,Supplies & Services,DFA,15/02/2012,11-02563,1128,Lantec Services Ltd
Nottinghamshire County Council,1111/1001,Adult Social Care and Health,ASCH,Supplies & Services,DFA,16/02/2012,11-07214,18500,Tallon Monitoring Ltd
Nottinghamshire County Council,1111/1001,Adult Social Care and Health,ASCH,Supplies & Services,DFA,23/02/2012,11-07108,8000.2,Linthwaite Ltd T/A GTI Ltd
Nottinghamshire County Council,1111/1001,Adult Social Care and Health,ASCH,Supplies & Services,DFA,23/02/2012,11-07330,693,Tunstall Healthcare Uk Ltd
Nottinghamshire County Council,1111/1001,Adult Social Care and Health,ASCH,Supplies & Services,DFA,23/02/2012,11-07331,1540,Tunstall Healthcare Uk Ltd
Nottinghamshire County Council,1111/1001,Adult Social Care and Health,ASCH,Supplies & Services,DFA,24/02/2012,11-07333,833,Tunstall Healthcare Uk Ltd
Nottinghamshire County Council,1111/1001,Adult Social Care and Health,ASCH,Supplies & Services,DHA,01/02/2012,11-00348,4020,Headway Nottingham
Nottinghamshire County Council,1111/1001,Adult Social Care and Health,ASCH,Supplies & Services,DHA,02/02/2012,11-00484,6230,The Stroke Assoc
Nottinghamshire County Council,1111/1001,Adult Social Care and Health,ASCH,Supplies & Services,DHA,03/02/2012,11-00862,523.88,Time Out Care Services Ltd
Nottinghamshire County Council,1111/1001,Adult Social Care and Health,ASCH,Supplies & Services,DHA,07/02/2012,11-01252,1653,Care & Comfort Community Services
Nottinghamshire County Council,1111/1001,Adult Social Care and Health,ASCH,Supplies & Services,DHA,07/02/2012,11-01311,4444.5,Nottinghamshire Deaf Society
Nottinghamshire County Council,1111/1001,Adult Social Care and Health,ASCH,Supplies & Services,DHA,07/02/2012,11-01391,6250,Bassetlaw Primary Care Trust
Nottinghamshire County Council,1111/1001,Adult Social Care and Health,ASCH,Supplies & Services,DHA,08/02/2012,11-01431,1170,Headway Nottingham
Nottinghamshire County Council,1111/1001,Adult Social Care and Health,ASCH,Supplies & Services,DHA,09/02/2012,11-01802,5871.25,Nottingham Citycare Partnership
Nottinghamshire County Council,1111/1001,Adult Social Care and Health,ASCH,Supplies & Services,DHA,09/02/2012,11-01807,6553.25,The Stroke Assoc
Nottinghamshire County Council,1111/1001,Adult Social Care and Health,ASCH,Supplies & Services,DHA,10/02/2012,11-01976,1590,Headway Nottingham
Nottinghamshire County Council,1111/1001,Adult Social Care and Health,ASCH,Supplies & Services,DHA,10/02/2012,11-01977,3230,Headway Nottingham
Nottinghamshire County Council,1111/1001,Adult Social Care and Health,ASCH,Supplies & Services,DHA,10/02/2012,11-02064,6553.25,The Stroke Assoc
Nottinghamshire County Council,1111/1001,Adult Social Care and Health,ASCH,Supplies & Services,DHA,14/02/2012,11-02393,9250,The Stroke Assoc
Nottinghamshire County Council,1111/1001,Adult Social Care and Health,ASCH,Supplies & Services,DHA,15/02/2012,11-02534,7045.79,Alzheimers Society
Nottinghamshire County Council,1111/1001,Adult Social Care and Health,ASCH,Supplies & Services,DHA,15/02/2012,11-02597,988,Age Uk Nottm & Notts
Nottinghamshire County Council,1111/1001,Adult Social Care and Health,ASCH,Supplies & Services,DHA,15/02/2012,11-02612,1140,Age Uk Nottm & Notts
Nottinghamshire County Council,1111/1001,Adult Social Care and Health,ASCH,Supplies & Services,DHA,15/02/2012,11-02614,720,Alzheimers Society
Nottinghamshire County Council,1111/1001,Adult Social Care and Health,ASCH,Supplies & Services,DHA,15/02/2012,11-02615,3686,Age Uk Nottm & Notts
Nottinghamshire County Council,1111/1001,Adult Social Care and Health,ASCH,Supplies & Services,DHA,15/02/2012,11-02618,1044,Alzheimers Society
Nottinghamshire County Council,1111/1001,Adult Social Care and Health,ASCH,Supplies & Services,DHA,16/02/2012,11-02664,6553.25,The Stroke Assoc
Nottinghamshire County Council,1111/1001,Adult Social Care and Health,ASCH,Supplies & Services,DHA,16/02/2012,11-02801,2016,Alzheimers Society
Nottinghamshire County Council,1111/1001,Adult Social Care and Health,ASCH,Supplies & Services,DHA,17/02/2012,11-02971,510,Headway Nottingham
Nottinghamshire County Council,1111/1001,Adult Social Care and Health,ASCH,Supplies & Services,DHA,22/02/2012,11-03359,4182.15,Crossroads Care East Midlands
Nottinghamshire County Council,1111/1001,Adult Social Care and Health,ASCH,Supplies & Services,DHA,22/02/2012,11-03403,2590,Headway Nottingham
Nottinghamshire County Council,1111/1001,Adult Social Care and Health,ASCH,Supplies & Services,DHA,22/02/2012,11-03410,1110,Headway Nottingham
Nottinghamshire County Council,1111/1001,Adult Social Care and Health,ASCH,Supplies & Services,DHA,22/02/2012,11-03447,1672,Age Uk Nottm & Notts
Nottinghamshire County Council,1111/1001,Adult Social Care and Health,ASCH,Supplies & Services,DHA,22/02/2012,11-03449,2052,Age Uk Nottm & Notts
Nottinghamshire County Council,1111/1001,Adult Social Care and Health,ASCH,Supplies & Services,DHA,23/02/2012,11-03665,9254.25,The Stroke Assoc
Nottinghamshire County Council,1111/1001,Adult Social Care and Health,ASCH,Supplies & Services,DHA,24/02/2012,11-03841,2356,Age Uk Nottm & Notts
Nottinghamshire County Council,1111/1001,Adult Social Care and Health,ASCH,Supplies & Services,DKA,07/02/2012,11-00289,1350,Grapevine Marketing Agency Ltd
Nottinghamshire County Council,1111/1001,Adult Social Care and Health,ASCH,Supplies & Services,DKA,13/02/2012,11-02295,1121,Victoria Carpets Of Worksop
Nottinghamshire County Council,1111/1001,Adult Social Care and Health,ASCH,Supplies & Services,DKA,14/02/2012,11-02413,374.64,British Red Cross Society
Nottinghamshire County Council,1111/1001,Adult Social Care and Health,ASCH,Supplies & Services,DKA,17/02/2012,11-02937,757.6,Premier Pets Hotel Ltd
Nottinghamshire County Council,1111/1001,Adult Social Care and Health,ASCH,Supplies & Services,DKA,21/02/2012,11-03177,852.5,Abbsolstaff Boarding Kennels & Catt
Nottinghamshire County Council,1111/1001,Adult Social Care and Health,ASCH,Supplies & Services,DKA,24/02/2012,11-03717,32788.4,British Red Cross Society
Nottinghamshire County Council,1111/1001,Adult Social Care and Health,ASCH,Third Party Payments,EBA,14/02/2012,11-07114,5000,Nottingham Mencap
Nottinghamshire County Council,1111/1001,Adult Social Care and Health,ASCH,Third Party Payments,EBA,20/02/2012,11-02981,1600,University Of Northampton
Nottinghamshire County Council,1111/1001,Adult Social Care and Health,ASCH,Third Party Payments,EBA,23/02/2012,11-07228,13538.72,Nottingham City Council
Nottinghamshire County Council,1111/1001,Adult Social Care and Health,ASCH,Third Party Payments,ECA,14/02/2012,11-02413,5177,British Red Cross Society
Nottinghamshire County Council,1111/1001,Adult Social Care and Health,ASCH,Third Party Payments,EEA,02/02/2012,11-00578,6500,Rushcliffe Community Voluntary Serv
Nottinghamshire County Council,1111/1001,Adult Social Care and Health,ASCH,Third Party Payments,EEA,02/02/2012,11-00579,6500,Bassetlaw Action Centre
Nottinghamshire County Council,1111/1001,Adult Social Care and Health,ASCH,Third Party Payments,EGA,01/02/2012,11-00004,1679.56,Mencap Accounts Region 2
Nottinghamshire County Council,1111/1001,Adult Social Care and Health,ASCH,Third Party Payments,EGA,01/02/2012,11-00005,1952.56,Mencap Accounts Region 2
Nottinghamshire County Council,1111/1001,Adult Social Care and Health,ASCH,Third Party Payments,EGA,01/02/2012,11-00006,782.88,Mencap Accounts Region 2
Nottinghamshire County Council,1111/1001,Adult Social Care and Health,ASCH,Third Party Payments,EGA,01/02/2012,11-00007,1799.88,Mencap Accounts Region 2
Nottinghamshire County Council,1111/1001,Adult Social Care and Health,ASCH,Third Party Payments,EGA,01/02/2012,11-00008,1119.56,Mencap Accounts Region 2
Nottinghamshire County Council,1111/1001,Adult Social Care and Health,ASCH,Third Party Payments,EGA,01/02/2012,11-00010,559.2,Mencap Accounts Region 2
Nottinghamshire County Council,1111/1001,Adult Social Care and Health,ASCH,Third Party Payments,EGA,01/02/2012,11-00011,549.14,Mencap Accounts Region 2
Nottinghamshire County Council,1111/1001,Adult Social Care and Health,ASCH,Third Party Payments,EGA,01/02/2012,11-00012,3713.6,Mencap Accounts Region 2
Nottinghamshire County Council,1111/1001,Adult Social Care and Health,ASCH,Third Party Payments,EGA,01/02/2012,11-00013,2564.28,Mencap Accounts Region 2
Nottinghamshire County Council,1111/1001,Adult Social Care and Health,ASCH,Third Party Payments,EGA,01/02/2012,11-00014,2072.88,Mencap Accounts Region 2
Nottinghamshire County Council,1111/1001,Adult Social Care and Health,ASCH,Third Party Payments,EGA,01/02/2012,11-00017,2682.8,Mencap Accounts Region 2
Nottinghamshire County Council,1111/1001,Adult Social Care and Health,ASCH,Third Party Payments,EGA,01/02/2012,11-00018,992.58,Mencap Accounts Region 2
Nottinghamshire County Council,1111/1001,Adult Social Care and Health,ASCH,Third Party Payments,EGA,01/02/2012,11-00019,546,Mencap Accounts Region 2
Nottinghamshire County Council,1111/1001,Adult Social Care and Health,ASCH,Third Party Payments,EGA,01/02/2012,11-00020,622,Mencap Accounts Region 2
Nottinghamshire County Council,1111/1001,Adult Social Care and Health,ASCH,Third Party Payments,EGA,01/02/2012,11-00021,1638.08,Mencap Accounts Region 2
Nottinghamshire County Council,1111/1001,Adult Social Care and Health,ASCH,Third Party Payments,EGA,01/02/2012,11-00022,1228.76,Mencap Accounts Region 2
Nottinghamshire County Council,1111/1001,Adult Social Care and Health,ASCH,Third Party Payments,EGA,01/02/2012,11-00023,694.72,Mencap Accounts Region 2
Nottinghamshire County Council,1111/1001,Adult Social Care and Health,ASCH,Third Party Payments,EGA,01/02/2012,11-00024,3075.08,Mencap Accounts Region 2
Nottinghamshire County Council,1111/1001,Adult Social Care and Health,ASCH,Third Party Payments,EGA,01/02/2012,11-00025,559.2,Mencap Accounts Region 2
Nottinghamshire County Council,1111/1001,Adult Social Care and Health,ASCH,Third Party Payments,EGA,01/02/2012,11-00026,1146.68,Mencap Accounts Region 2
Nottinghamshire County Council,1111/1001,Adult Social Care and Health,ASCH,Third Party Payments,EGA,01/02/2012,11-00027,1555.92,Mencap Accounts Region 2
Nottinghamshire County Council,1111/1001,Adult Social Care and Health,ASCH,Third Party Payments,EGA,01/02/2012,11-00028,3629.32,Mencap Accounts Region 2
Nottinghamshire County Council,1111/1001,Adult Social Care and Health,ASCH,Third Party Payments,EGA,01/02/2012,11-00029,1467.9,Mencap Accounts Region 2
Nottinghamshire County Council,1111/1001,Adult Social Care and Health,ASCH,Third Party Payments,EGA,01/02/2012,11-00030,736,Mencap Accounts Region 2
Nottinghamshire County Council,1111/1001,Adult Social Care and Health,ASCH,Third Party Payments,EGA,01/02/2012,11-00032,2524.72,Mencap Accounts Region 2
Nottinghamshire County Council,1111/1001,Adult Social Care and Health,ASCH,Third Party Payments,EGA,01/02/2012,11-00033,782.88,Mencap Accounts Region 2
Nottinghamshire County Council,1111/1001,Adult Social Care and Health,ASCH,Third Party Payments,EGA,01/02/2012,11-00034,2142.52,Mencap Accounts Region 2
Nottinghamshire County Council,1111/1001,Adult Social Care and Health,ASCH,Third Party Payments,EGA,01/02/2012,11-00035,833.4,Mencap Accounts Region 2
Nottinghamshire County Council,1111/1001,Adult Social Care and Health,ASCH,Third Party Payments,EGA,01/02/2012,11-00036,2142.52,Mencap Accounts Region 2
Nottinghamshire County Council,1111/1001,Adult Social Care and Health,ASCH,Third Party Payments,EGA,01/02/2012,11-00037,1342.08,Mencap Accounts Region 2
Nottinghamshire County Council,1111/1001,Adult Social Care and Health,ASCH,Third Party Payments,EGA,01/02/2012,11-00038,503.28,Mencap Accounts Region 2
Nottinghamshire County Council,1111/1001,Adult Social Care and Health,ASCH,Third Party Payments,EGA,01/02/2012,11-00039,3310.12,Mencap Accounts Region 2
Nottinghamshire County Council,1111/1001,Adult Social Care and Health,ASCH,Third Party Payments,EGA,01/02/2012,11-00040,2510.68,Mencap Accounts Region 2
Nottinghamshire County Council,1111/1001,Adult Social Care and Health,ASCH,Third Party Payments,EGA,01/02/2012,11-00041,2933.96,Mencap Accounts Region 2
Nottinghamshire County Council,1111/1001,Adult Social Care and Health,ASCH,Third Party Payments,EGA,01/02/2012,11-00042,1761,Mencap Accounts Region 2
Nottinghamshire County Council,1111/1001,Adult Social Care and Health,ASCH,Third Party Payments,EGA,01/02/2012,11-00043,900.92,Mencap Accounts Region 2
Nottinghamshire County Council,1111/1001,Adult Social Care and Health,ASCH,Third Party Payments,EGA,01/02/2012,11-00044,2715.56,Mencap Accounts Region 2
Nottinghamshire County Council,1111/1001,Adult Social Care and Health,ASCH,Third Party Payments,EGA,01/02/2012,11-00045,1590.68,Mencap Accounts Region 2
Nottinghamshire County Council,1111/1001,Adult Social Care and Health,ASCH,Third Party Payments,EGA,01/02/2012,11-00047,5228.56,Mencap Accounts Region 2
Nottinghamshire County Council,1111/1001,Adult Social Care and Health,ASCH,Third Party Payments,EGA,01/02/2012,11-00050,3881.48,Mencap Accounts Region 2
Nottinghamshire County Council,1111/1001,Adult Social Care and Health,ASCH,Third Party Payments,EGA,01/02/2012,11-00051,764.4,Mencap Accounts Region 2
Nottinghamshire County Council,1111/1001,Adult Social Care and Health,ASCH,Third Party Payments,EGA,01/02/2012,11-00052,1228.96,Mencap Accounts Region 2
Nottinghamshire County Council,1111/1001,Adult Social Care and Health,ASCH,Third Party Payments,EGA,01/02/2012,11-00053,6992.36,Mencap Accounts Region 2
Nottinghamshire County Council,1111/1001,Adult Social Care and Health,ASCH,Third Party Payments,EGA,01/02/2012,11-00054,2484.76,Mencap Accounts Region 2
Nottinghamshire County Council,1111/1001,Adult Social Care and Health,ASCH,Third Party Payments,EGA,01/02/2012,11-00055,2184.44,Mencap Accounts Region 2
Nottinghamshire County Council,1111/1001,Adult Social Care and Health,ASCH,Third Party Payments,EGA,01/02/2012,11-00056,2682.8,Mencap Accounts Region 2
Nottinghamshire County Council,1111/1001,Adult Social Care and Health,ASCH,Third Party Payments,EGA,01/02/2012,11-00057,625.05,Mencap Accounts Region 2
Nottinghamshire County Council,1111/1001,Adult Social Care and Health,ASCH,Third Party Payments,EGA,01/02/2012,11-00058,1258.2,Mencap Accounts Region 2
Nottinghamshire County Council,1111/1001,Adult Social Care and Health,ASCH,Third Party Payments,EGA,01/02/2012,11-00059,887.73,Mencap Accounts Region 2
Nottinghamshire County Council,1111/1001,Adult Social Care and Health,ASCH,Third Party Payments,EGA,01/02/2012,11-00060,569.6,Mencap Accounts Region 2
Nottinghamshire County Council,1111/1001,Adult Social Care and Health,ASCH,Third Party Payments,EGA,01/02/2012,11-00064,1119.56,Mencap Accounts Region 2
Nottinghamshire County Council,1111/1001,Adult Social Care and Health,ASCH,Third Party Payments,EGA,01/02/2012,11-00065,5610,Mencap Accounts Region 2
Nottinghamshire County Council,1111/1001,Adult Social Care and Health,ASCH,Third Party Payments,EGA,01/02/2012,11-00066,1232,Mencap Accounts Region 2
Nottinghamshire County Council,1111/1001,Adult Social Care and Health,ASCH,Third Party Payments,EGA,01/02/2012,11-00067,1799.88,Mencap Accounts Region 2
Nottinghamshire County Council,1111/1001,Adult Social Care and Health,ASCH,Third Party Payments,EGA,01/02/2012,11-00068,503.28,Mencap Accounts Region 2
Nottinghamshire County Council,1111/1001,Adult Social Care and Health,ASCH,Third Party Payments,EGA,01/02/2012,11-00069,1935.12,Mencap Accounts Region 2
Nottinghamshire County Council,1111/1001,Adult Social Care and Health,ASCH,Third Party Payments,EGA,01/02/2012,11-00072,5228.56,Mencap Accounts Region 2
Nottinghamshire County Council,1111/1001,Adult Social Care and Health,ASCH,Third Party Payments,EGA,01/02/2012,11-00073,1679.56,Mencap Accounts Region 2
Nottinghamshire County Council,1111/1001,Adult Social Care and Health,ASCH,Third Party Payments,EGA,01/02/2012,11-00074,1638.08,Mencap Accounts Region 2
Nottinghamshire County Council,1111/1001,Adult Social Care and Health,ASCH,Third Party Payments,EGA,01/02/2012,11-00075,2564.28,Mencap Accounts Region 2
Nottinghamshire County Council,1111/1001,Adult Social Care and Health,ASCH,Third Party Payments,EGA,01/02/2012,11-00079,1133.19,Mencap Accounts Region 2
Nottinghamshire County Council,1111/1001,Adult Social Care and Health,ASCH,Third Party Payments,EGA,01/02/2012,11-00080,982.8,Mencap Accounts Region 2
Nottinghamshire County Council,1111/1001,Adult Social Care and Health,ASCH,Third Party Payments,EGA,01/02/2012,11-00081,2837.25,Mencap Accounts Region 2
Nottinghamshire County Council,1111/1001,Adult Social Care and Health,ASCH,Third Party Payments,EGA,01/02/2012,11-00082,782,Mencap Accounts Region 2
Nottinghamshire County Council,1111/1001,Adult Social Care and Health,ASCH,Third Party Payments,EGA,01/02/2012,11-00087,726.96,Mencap Accounts Region 2
Nottinghamshire County Council,1111/1001,Adult Social Care and Health,ASCH,Third Party Payments,EGA,01/02/2012,11-00089,1380,Mencap Accounts Region 2
